Workbook

Sheet 1129
A1: Customer | B1: InvoiceAmount | C1: InvoiceDate | D1: Due Date | I1: Report Category | J1: Lower | K1: Upper
A2: Dang, Trista | B2: 343 | C2: 2013-11-08 | D2: 2014-02-23 | J2: 1 | K2: 30
A3: Potts, Burma | B3: 1939 | C3: 2014-02-05 | D3: 2014-03-23 | J3: 31 | K3: 60
A4: Caruso, Ninfa | B4: 3774 | C4: 2014-04-27 | D4: 2014-06-09 | J4: 61 | K4: 90
A5: Mosier, Maude | B5: 4378 | C5: 2013-11-29 | D5: 2014-02-03 | J5: 90 | K5: 365
A6: Casper, Senaida | B6: 2168 | C6: 2014-03-11 | D6: 2014-05-13
A7: Lemieux, Kiana | B7: 873 | C7: 2014-01-16 | D7: 2014-02-17
A8: Cousins, Jeniffer | B8: 6013 | C8: 2013-11-28 | D8: 2014-03-18
A9: Moe, Christi | B9: 4914 | C9: 2014-02-12 | D9: 2014-03-05 | H9: Excel Magic Trick 1128: Aging Accounts Receivable Reports On Multiple Sheets With Array Formula
A10: Rapp, Jeni | B10: 245 | C10: 2014-04-09 | D10: 2014-06-05 | H10: Excel Magic Trick 1129: Aging Accounts Receivable Reports Using Slicer &Excel Table Feature
A11: Whitman, Donita | B11: 311 | C11: 2014-03-18 | D11: 2014-05-23 | H11: Excel Magic Trick 1130: Aging Accounts Receivable Reports Using Advanced Filter
A12: Galindo, Retha | B12: 1251 | C12: 2014-01-21 | D12: 2014-02-16 | H12: Excel Magic Trick 1131: Aging Accounts Receivable Reports On Multiple Sheets With PivotTable
A13: Mcintosh, Janeth | B13: 1017 | C13: 2014-01-29 | D13: 2014-02-26
A14: Brant, Elouise | B14: 6476 | C14: 2014-01-11 | D14: 2014-03-04
A15: Oconnor, Nery | B15: 2006 | C15: 2014-03-29 | D15: 2014-05-06
A16: Larsen, Kaila | B16: 1441 | C16: 2014-06-01 | D16: 2014-07-28
A17: Brackett, Curtis | B17: 4850 | C17: 2014-02-27 | D17: 2014-03-20
A18: Glynn, Louis | B18: 2995 | C18: 2014-03-27 | D18: 2014-05-29
A19: Angulo, Dierdre | B19: 6260 | C19: 2014-03-30 | D19: 2014-06-12
A20: Barger, Lorelei | B20: 1858 | C20: 2014-04-14 | D20: 2014-07-02
A21: Byers, Natisha | B21: 2940 | C21: 2014-04-04 | D21: 2014-05-07
A22: Whited, Un | B22: 4797 | C22: 2013-10-10 | D22: 2013-12-05
A23: Easter, Valarie | B23: 3496 | C23: 2014-04-25 | D23: 2014-06-27
A24: Tolbert, Yoshiko | B24: 1891 | C24: 2014-04-08 | D24: 2014-04-30
A25: Newby, Kiersten | B25: 1011 | C25: 2014-03-14 | D25: 2014-04-27
A26: Shank, Sebastian | B26: 3612 | C26: 2014-04-08 | D26: 2014-05-14
A27: Saldana, Venita | B27: 2486 | C27: 2014-04-12 | D27: 2014-06-30
A28: Ho, Sylvie | B28: 4292 | C28: 2013-11-04 | D28: 2013-12-21
A29: Schubert, Gwenn | B29: 6497 | C29: 2014-03-09 | D29: 2014-04-10
A30: Eldridge, Bridgett | B30: 4280 | C30: 2014-05-11 | D30: 2014-07-13
A31: Adam, Elmer | B31: 3920 | C31: 2014-05-14 | D31: 2014-06-21
A32: Allred, Elina | B32: 2846 | C32: 2014-04-16 | D32: 2014-05-17
A33: Arnett, Helaine | B33: 777 | C33: 2014-03-23 | D33: 2014-05-18
A34: Pack, Bradly | B34: 1027 | C34: 2014-04-26 | D34: 2014-06-18
A35: Hardison, Kacy | B35: 3452 | C35: 2014-04-22 | D35: 2014-06-18
A36: Zook, Corrinne | B36: 1718 | C36: 2013-10-04 | D36: 2014-01-09
A37: Pimentel, Cristopher | B37: 1290 | C37: 2013-11-30 | D37: 2014-04-21
A38: Grooms, Otilia | B38: 1070 | C38: 2014-04-19 | D38: 2014-05-14
A39: Buffington, Fonda | B39: 1184 | C39: 2014-05-28 | D39: 2014-07-24
A40: Loftin, Burton | B40: 6383 | C40: 2014-05-30 | D40: 2014-07-28
A41: Bray, Errol | B41: 3869 | C41: 2014-04-17 | D41: 2014-06-07
A42: Toler, Evita | B42: 5022 | C42: 2014-05-17 | D42: 2014-07-06
A43: Shah, Celsa | B43: 1411 | C43: 2014-01-02 | D43: 2014-02-02
A44: Turk, Hildegarde | B44: 3851 | C44: 2014-05-07 | D44: 2014-06-27
A45: Hummel, Joya | B45: 3030 | C45: 2014-04-07 | D45: 2014-05-07
A46: Scanlon, Catherina | B46: 3458 | C46: 2014-03-03 | D46: 2014-05-15
A47: Johns, Yuonne | B47: 1414 | C47: 2013-11-25 | D47: 2014-01-30
A48: Clemmons, Delpha | B48: 2034 | C48: 2014-05-08 | D48: 2014-07-16
A49: Heaton, Lin | B49: 4377 | C49: 2014-05-28 | D49: 2014-07-05
A50: Muniz, Domitila | B50: 4272 | C50: 2014-05-29 | D50: 2014-08-02
A51: Hickey, Melina | B51: 3531 | C51: 2013-11-03 | D51: 2013-12-21
A52: Dupont, Mica | B52: 125 | C52: 2014-01-30 | D52: 2014-03-08
A53: Hindman, Dorthey | B53: 2647 | C53: 2014-04-25 | D53: 2014-05-30
A54: Dumas, Genie | B54: 4559 | C54: 2014-03-01 | D54: 2014-04-30
A55: Leary, Janelle | B55: 5027 | C55: 2014-03-17 | D55: 2014-04-18
A56: Jeffery, Alaine | B56: 6372 | C56: 2014-04-07 | D56: 2014-06-05
A57: Bittner, Kiyoko | B57: 5185 | C57: 2014-03-11 | D57: 2014-05-25
A58: Marcus, Iona | B58: 3080 | C58: 2014-03-23 | D58: 2014-04-30
A59: Beals, Wyatt | B59: 5987 | C59: 2014-04-01 | D59: 2014-06-19
A60: Button, Berna | B60: 4582 | C60: 2014-02-23 | D60: 2014-05-13
A61: Gillen, Andree | B61: 4033 | C61: 2014-05-13 | D61: 2014-07-12
A62: Paz, Maia | B62: 4294 | C62: 2014-04-22 | D62: 2014-06-14
A63: Mathias, Debrah | B63: 1416 | C63: 2013-10-10 | D63: 2013-11-11
A64: Larose, Gwyneth | B64: 3815 | C64: 2014-03-02 | D64: 2014-04-29
A65: Roach, Allena | B65: 5443 | C65: 2014-03-14 | D65: 2014-05-25
A66: Carey, Kristan | B66: 5095 | C66: 2014-04-03 | D66: 2014-05-30
A67: Hickson, Margareta | B67: 2972 | C67: 2014-05-18 | D67: 2014-07-18
A68: Breeden, Karol | B68: 2095 | C68: 2014-03-23 | D68: 2014-05-31
A69: Hancock, Richie | B69: 4841 | C69: 2014-05-31 | D69: 2014-07-04
A70: Pride, Adolfo | B70: 448 | C70: 2014-04-05 | D70: 2014-06-10
A71: Boyles, Ilda | B71: 5741 | C71: 2014-04-12 | D71: 2014-05-09
A72: Kinard, Laquita | B72: 3459 | C72: 2014-02-28 | D72: 2014-03-22
A73: Ervin, Lavern | B73: 1025 | C73: 2014-04-02 | D73: 2014-05-19
A74: Watt, Edward | B74: 3994 | C74: 2014-05-11 | D74: 2014-06-24
A75: Fournier, Dorene | B75: 4471 | C75: 2014-04-30 | D75: 2014-07-08
A76: Hook, Marisela | B76: 6475 | C76: 2014-03-04 | D76: 2014-05-21
A77: Wofford, Reyes | B77: 4865 | C77: 2013-10-21 | D77: 2014-03-11
A78: Pak, Dollie | B78: 1644 | C78: 2014-04-16 | D78: 2014-06-19
A79: Torrence, Armida | B79: 2031 | C79: 2014-03-10 | D79: 2014-05-08
A80: Eckert, Xiomara | B80: 3741 | C80: 2014-03-04 | D80: 2014-05-03
A81: Minor, Ranee | B81: 5264 | C81: 2014-05-12 | D81: 2014-06-23
A82: Hutchens, Maryanne | B82: 1651 | C82: 2014-05-23 | D82: 2014-07-02
A83: Doughty, Teena | B83: 3457 | C83: 2014-04-10 | D83: 2014-06-29
A84: Hanley, Leatrice | B84: 2038 | C84: 2013-10-31 | D84: 2014-01-19
A85: Freedman, Kathlyn | B85: 4562 | C85: 2013-12-23 | D85: 2014-01-24
A86: Grimes, Isis | B86: 4694 | C86: 2014-01-24 | D86: 2014-03-28
A87: Perreault, Angelique | B87: 2402 | C87: 2014-01-06 | D87: 2014-01-28
A88: Walter, Bernardina | B88: 5660 | C88: 2014-01-03 | D88: 2014-03-22
A89: Parr, Consuela | B89: 2246 | C89: 2014-01-24 | D89: 2014-03-26
A90: Reece, Maisie | B90: 5914 | C90: 2014-02-17 | D90: 2014-05-08
A91: Harlow, Carmel | B91: 5513 | C91: 2014-02-28 | D91: 2014-04-19
A92: Honeycutt, Lane | B92: 4806 | C92: 2014-03-15 | D92: 2014-05-24
A93: Cass, Anthony | B93: 2015 | C93: 2014-05-04 | D93: 2014-06-13
A94: Steffen, Malinda | B94: 3282 | C94: 2013-10-01 | D94: 2014-02-23
A95: Mccrary, Merlyn | B95: 4569 | C95: 2014-01-26 | D95: 2014-02-18
A96: Littleton, Izola | B96: 2220 | C96: 2014-03-01 | D96: 2014-04-12
A97: Nieves, Treva | B97: 4303 | C97: 2014-04-17 | D97: 2014-07-01
A98: Mclean, Eldora | B98: 1929 | C98: 2013-10-14 | D98: 2014-03-10
A99: Dancy, Deena | B99: 2449 | C99: 2014-03-07 | D99: 2014-04-12
A100: Anglin, Thanh | B100: 1617 | C100: 2013-10-21 | D100: 2014-01-22
A101: Schrader, Numbers | B101: 2138 | C101: 2014-02-25 | D101: 2014-03-30
A102: Edgar, Dusti | B102: 5261 | C102: 2013-11-05 | D102: 2014-02-20
A103: Eldridge, Beckie | B103: 2932 | C103: 2014-02-27 | D103: 2014-03-22
A104: Picard, Margherita | B104: 4596 | C104: 2014-05-26 | D104: 2014-07-11
A105: Sander, Carin | B105: 6391 | C105: 2014-04-29 | D105: 2014-06-14
A106: Bonilla, Michel | B106: 5394 | C106: 2013-12-31 | D106: 2014-03-07
A107: Hartmann, Samual | B107: 5171 | C107: 2014-03-10 | D107: 2014-04-14
A108: Dew, Kaye | B108: 3267 | C108: 2014-04-10 | D108: 2014-06-27
A109: Fuchs, Anneliese | B109: 523 | C109: 2014-03-27 | D109: 2014-05-04
A110: Timmons, Devon | B110: 3480 | C110: 2014-04-24 | D110: 2014-06-29
A111: Gallagher, Damian | B111: 6121 | C111: 2014-04-19 | D111: 2014-05-10
A112: Coffin, Wai | B112: 3147 | C112: 2014-05-17 | D112: 2014-07-21
A113: Wick, Tamatha | B113: 3094 | C113: 2014-01-26 | D113: 2014-03-25
A114: Elston, Shara | B114: 4993 | C114: 2014-04-10 | D114: 2014-06-18
A115: Fitzpatrick, Hunter | B115: 5603 | C115: 2014-04-29 | D115: 2014-06-03
A116: Paquette, Cathey | B116: 2412 | C116: 2014-04-29 | D116: 2014-06-08
A117: Mcreynolds, Fern | B117: 1641 | C117: 2014-03-24 | D117: 2014-04-30
A118: Damico, Ammie | B118: 4335 | C118: 2014-06-01 | D118: 2014-07-15
A119: Gallardo, Armida | B119: 855 | C119: 2014-03-30 | D119: 2014-05-27
A120: Lentz, Rosana | B120: 1822 | C120: 2013-10-29 | D120: 2014-03-10
A121: Delossantos, Son | B121: 61 | C121: 2014-05-16 | D121: 2014-07-11
A122: Cortes, Petrina | B122: 4477 | C122: 2014-05-11 | D122: 2014-07-10
A123: Settle, Madelene | B123: 111 | C123: 2013-10-20 | D123: 2014-01-08
A124: Hibbard, Marceline | B124: 4904 | C124: 2013-12-21 | D124: 2014-05-09
A125: Seidel, Maren | B125: 879 | C125: 2014-04-17 | D125: 2014-05-23
A126: Oconner, Glynda | B126: 3469 | C126: 2014-04-22 | D126: 2014-06-09
A127: Spooner, Maryln | B127: 1530 | C127: 2014-05-30 | D127: 2014-08-04
A128: Briones, Adria | B128: 499 | C128: 2014-04-23 | D128: 2014-05-01
A129: Roden, Marylee | B129: 5077 | C129: 2014-05-30 | D129: 2014-08-03
A130: Valentin, Regena | B130: 5153 | C130: 2014-01-17 | D130: 2014-02-07
A131: Tillman, Yasmine | B131: 4718 | C131: 2014-05-09 | D131: 2014-07-01
A132: Burrows, Merideth | B132: 4393 | C132: 2014-05-15 | D132: 2014-06-27
A133: Shuman, Cordia | B133: 5681 | C133: 2013-12-07 | D133: 2014-03-20
A134: Crump, Glinda | B134: 2257 | C134: 2014-05-05 | D134: 2014-06-07
A135: Silverman, Delmar | B135: 2237 | C135: 2013-10-15 | D135: 2014-01-30
A136: Gilman, Romona | B136: 970 | C136: 2013-12-11 | D136: 2014-01-17
A137: Kyle, Addie | B137: 205 | C137: 2014-04-26 | D137: 2014-07-04
A138: Epps, Eldora | B138: 1712 | C138: 2014-04-25 | D138: 2014-06-10
A139: Smiley, Brunilda | B139: 282 | C139: 2014-01-21 | D139: 2014-02-14
A140: Pennell, Willena | B140: 1440 | C140: 2013-10-06 | D140: 2014-01-26
A141: Shah, Lorenza | B141: 2656 | C141: 2014-05-23 | D141: 2014-07-01
A142: Thigpen, Mia | B142: 5517 | C142: 2013-10-17 | D142: 2014-01-17
A143: Patino, Joseph | B143: 2686 | C143: 2014-04-18 | D143: 2014-05-31
A144: Coombs, Rasheeda | B144: 4241 | C144: 2013-12-14 | D144: 2014-03-01
A145: Epstein, Lakia | B145: 3821 | C145: 2014-04-20 | D145: 2014-05-31
A146: Dailey, Joel | B146: 1099 | C146: 2014-03-24 | D146: 2014-05-08
A147: Blanchard, Rubi | B147: 3450 | C147: 2014-04-25 | D147: 2014-07-01
A148: Nutt, Altagracia | B148: 2044 | C148: 2014-05-29 | D148: 2014-07-22
A149: Haight, Darrick | B149: 4343 | C149: 2014-04-13 | D149: 2014-05-13
A150: Hemphill, Monnie | B150: 5836 | C150: 2013-12-13 | D150: 2014-02-13
A151: Parson, Terrilyn | B151: 5444 | C151: 2014-04-04 | D151: 2014-05-16
A152: Mccall, Kasie | B152: 2633 | C152: 2014-04-23 | D152: 2014-05-12
A153: Pollack, Latesha | B153: 1059 | C153: 2014-05-18 | D153: 2014-07-05
A154: Rubin, Reynaldo | B154: 6493 | C154: 2014-04-17 | D154: 2014-05-20
A155: Brill, Evelynn | B155: 835 | C155: 2013-11-23 | D155: 2014-03-15
A156: Irby, Tama | B156: 3846 | C156: 2013-11-02 | D156: 2014-01-12
A157: Hatton, Faustina | B157: 5513 | C157: 2014-05-01 | D157: 2014-05-31
A158: Finnegan, Marine | B158: 1025 | C158: 2014-03-29 | D158: 2014-06-14
A159: Pierson, Effie | B159: 1927 | C159: 2014-03-05 | D159: 2014-04-16
A160: Ashe, Beata | B160: 2743 | C160: 2014-04-15 | D160: 2014-06-30
A161: Taft, Lala | B161: 329 | C161: 2014-04-03 | D161: 2014-06-16
A162: Rutledge, Apryl | B162: 4869 | C162: 2014-04-22 | D162: 2014-06-02
A163: Byrnes, Edmundo | B163: 2476 | C163: 2014-02-27 | D163: 2014-05-08
A164: Baca, Tressa | B164: 175 | C164: 2013-10-06 | D164: 2013-12-14
A165: Mckinley, Gay | B165: 584 | C165: 2014-03-21 | D165: 2014-06-06
A166: Mckeown, Aisha | B166: 3846 | C166: 2014-02-09 | D166: 2014-04-20
A167: Ezell, Scarlet | B167: 5955 | C167: 2014-03-06 | D167: 2014-05-14
A168: Conners, Julissa | B168: 2780 | C168: 2014-02-02 | D168: 2014-04-03
A169: Herrick, Jae | B169: 4013 | C169: 2014-01-21 | D169: 2014-03-07
A170: Pereira, Otilia | B170: 6470 | C170: 2014-01-18 | D170: 2014-02-09
A171: Hilliard, Dion | B171: 4254 | C171: 2014-03-15 | D171: 2014-05-25
A172: Rayford, Karol | B172: 5857 | C172: 2014-06-01 | D172: 2014-07-30
A173: Lavigne, Zetta | B173: 5594 | C173: 2014-03-16 | D173: 2014-04-28
A174: Doty, Zoila | B174: 3366 | C174: 2014-01-06 | D174: 2014-02-12
A175: Bedford, Michael | B175: 137 | C175: 2014-04-23 | D175: 2014-04-29
A176: Barden, Billye | B176: 4044 | C176: 2014-04-05 | D176: 2014-05-08
A177: Stoddard, Sondra | B177: 3095 | C177: 2014-04-02 | D177: 2014-06-16
A178: Varner, Alba | B178: 5636 | C178: 2014-01-12 | D178: 2014-02-24
A179: Harlow, Gilda | B179: 6267 | C179: 2014-01-16 | D179: 2014-03-25
A180: Vallejo, Ophelia | B180: 867 | C180: 2014-03-19 | D180: 2014-05-15
A181: Shields, Madie | B181: 13 | C181: 2014-03-17 | D181: 2014-05-02
A182: Mcconnell, Jonna | B182: 1499 | C182: 2014-01-05 | D182: 2014-03-12
A183: Horn, Elissa | B183: 1575 | C183: 2014-05-18 | D183: 2014-07-08
A184: Beebe, Leonila | B184: 3750 | C184: 2014-03-31 | D184: 2014-06-17
A185: Snow, Tamera | B185: 2132 | C185: 2014-04-12 | D185: 2014-05-15
A186: Creel, Jodee | B186: 4158 | C186: 2014-04-24 | D186: 2014-05-31
A187: Joy, Vern | B187: 5658 | C187: 2014-05-08 | D187: 2014-07-01
A188: Dorsey, Khalilah | B188: 217 | C188: 2014-01-05 | D188: 2014-01-26
A189: Meek, Exie | B189: 4107 | C189: 2014-03-28 | D189: 2014-04-23
A190: Marvin, Maybell | B190: 1356 | C190: 2013-12-27 | D190: 2014-02-28
A191: Mccain, Elba | B191: 6448 | C191: 2013-10-05 | D191: 2013-11-16
A192: Breen, Dakota | B192: 1752 | C192: 2014-05-18 | D192: 2014-06-18
A193: Benner, Valda | B193: 1956 | C193: 2014-03-04 | D193: 2014-05-05
A194: Spalding, Elisha | B194: 3522 | C194: 2014-04-09 | D194: 2014-06-04
A195: Lance, Mitsue | B195: 1704 | C195: 2014-01-21 | D195: 2014-03-03
A196: Monahan, Tanika | B196: 1601 | C196: 2014-04-25 | D196: 2014-05-28
A197: Gold, Theola | B197: 715 | C197: 2014-01-05 | D197: 2014-02-13
A198: Carlisle, Cameron | B198: 4416 | C198: 2014-03-31 | D198: 2014-04-30
A199: Tobin, Dalila | B199: 1098 | C199: 2014-05-05 | D199: 2014-07-04
A200: Clanton, Kendall | B200: 2508 | C200: 2014-02-17 | D200: 2014-04-28
... 1 more rows

Sheet 1129(an)
A1: Excel Magic Trick 1128: Aging Accounts Receivable Reports On Multiple Sheets With Array Formula | H1: Lookup1 | I1: Report Category | J1: Lower | K1: Upper
A2: Excel Magic Trick 1129: Aging Accounts Receivable Reports Using Slicer &Excel Table Feature | H2: =J2 -> 1 | I2: =J2&" >= Days Late <= "&K2 -> 1 >= Days Late <= 30 | J2: 1 | K2: 30
A3: Excel Magic Trick 1130: Aging Accounts Receivable Reports Using Advanced Filter | H3: =J3 -> 31 | I3: =J3&" >= Days Late <= "&K3 -> 31 >= Days Late <= 60 | J3: 31 | K3: 60
A4: Excel Magic Trick 1131: Aging Accounts Receivable Reports On Multiple Sheets With PivotTable | H4: 61 | I4: 61 >= Days Late <= 90 | J4: 61 | K4: 90
H5: 90 | I5: 90 >= Days Late <= 365 | J5: 90 | K5: 365
A7: Customer | B7: InvoiceAmount | C7: InvoiceDate | D7: Due Date | E7: Dates Late | F7: Report Category
A8: Mclean, Eldora | B8: 1929 | C8: 2013-10-14 | D8: 2014-03-10 | E8: =D8-C8 -> 147 | F8: =VLOOKUP(E8,$H$2:$I$5,2) -> 90 >= Days Late <= 365
A9: Steffen, Malinda | B9: 3282 | C9: 2013-10-01 | D9: 2014-02-23 | E9: 145 | F9: 90 >= Days Late <= 365
A10: Pimentel, Cristopher | B10: 1290 | C10: 2013-11-30 | D10: 2014-04-21 | E10: 142 | F10: 90 >= Days Late <= 365
A11: Wofford, Reyes | B11: 4865 | C11: 2013-10-21 | D11: 2014-03-11 | E11: 141 | F11: 90 >= Days Late <= 365
A12: Hibbard, Marceline | B12: 4904 | C12: 2013-12-21 | D12: 2014-05-09 | E12: 139 | F12: 90 >= Days Late <= 365
A13: Lentz, Rosana | B13: 1822 | C13: 2013-10-29 | D13: 2014-03-10 | E13: 132 | F13: 90 >= Days Late <= 365
A14: Pennell, Willena | B14: 1440 | C14: 2013-10-06 | D14: 2014-01-26 | E14: 112 | F14: 90 >= Days Late <= 365
A15: Brill, Evelynn | B15: 835 | C15: 2013-11-23 | D15: 2014-03-15 | E15: 112 | F15: 90 >= Days Late <= 365
A16: Cousins, Jeniffer | B16: 6013 | C16: 2013-11-28 | D16: 2014-03-18 | E16: 110 | F16: 90 >= Days Late <= 365
A17: Dang, Trista | B17: 343 | C17: 2013-11-08 | D17: 2014-02-23 | E17: 107 | F17: 90 >= Days Late <= 365
A18: Edgar, Dusti | B18: 5261 | C18: 2013-11-05 | D18: 2014-02-20 | E18: 107 | F18: 90 >= Days Late <= 365
A19: Silverman, Delmar | B19: 2237 | C19: 2013-10-15 | D19: 2014-01-30 | E19: 107 | F19: 90 >= Days Late <= 365
A20: Shuman, Cordia | B20: 5681 | C20: 2013-12-07 | D20: 2014-03-20 | E20: 103 | F20: 90 >= Days Late <= 365
A21: Zook, Corrinne | B21: 1718 | C21: 2013-10-04 | D21: 2014-01-09 | E21: 97 | F21: 90 >= Days Late <= 365
A22: Anglin, Thanh | B22: 1617 | C22: 2013-10-21 | D22: 2014-01-22 | E22: 93 | F22: 90 >= Days Late <= 365
A23: Thigpen, Mia | B23: 5517 | C23: 2013-10-17 | D23: 2014-01-17 | E23: 92 | F23: 90 >= Days Late <= 365
A24: Doughty, Teena | B24: 3457 | C24: 2014-04-10 | D24: 2014-06-29 | E24: 80 | F24: 61 >= Days Late <= 90
A25: Hanley, Leatrice | B25: 2038 | C25: 2013-10-31 | D25: 2014-01-19 | E25: 80 | F25: 61 >= Days Late <= 90
A26: Reece, Maisie | B26: 5914 | C26: 2014-02-17 | D26: 2014-05-08 | E26: 80 | F26: 61 >= Days Late <= 90
A27: Settle, Madelene | B27: 111 | C27: 2013-10-20 | D27: 2014-01-08 | E27: 80 | F27: 61 >= Days Late <= 90
A28: Barger, Lorelei | B28: 1858 | C28: 2014-04-14 | D28: 2014-07-02 | E28: 79 | F28: 61 >= Days Late <= 90
A29: Saldana, Venita | B29: 2486 | C29: 2014-04-12 | D29: 2014-06-30 | E29: 79 | F29: 61 >= Days Late <= 90
A30: Beals, Wyatt | B30: 5987 | C30: 2014-04-01 | D30: 2014-06-19 | E30: 79 | F30: 61 >= Days Late <= 90
A31: Button, Berna | B31: 4582 | C31: 2014-02-23 | D31: 2014-05-13 | E31: 79 | F31: 61 >= Days Late <= 90
A32: Hook, Marisela | B32: 6475 | C32: 2014-03-04 | D32: 2014-05-21 | E32: 78 | F32: 61 >= Days Late <= 90
A33: Walter, Bernardina | B33: 5660 | C33: 2014-01-03 | D33: 2014-03-22 | E33: 78 | F33: 61 >= Days Late <= 90
A34: Dew, Kaye | B34: 3267 | C34: 2014-04-10 | D34: 2014-06-27 | E34: 78 | F34: 61 >= Days Late <= 90
A35: Beebe, Leonila | B35: 3750 | C35: 2014-03-31 | D35: 2014-06-17 | E35: 78 | F35: 61 >= Days Late <= 90
A36: Coombs, Rasheeda | B36: 4241 | C36: 2013-12-14 | D36: 2014-03-01 | E36: 77 | F36: 61 >= Days Late <= 90
A37: Finnegan, Marine | B37: 1025 | C37: 2014-03-29 | D37: 2014-06-14 | E37: 77 | F37: 61 >= Days Late <= 90
A38: Mckinley, Gay | B38: 584 | C38: 2014-03-21 | D38: 2014-06-06 | E38: 77 | F38: 61 >= Days Late <= 90
A39: Ashe, Beata | B39: 2743 | C39: 2014-04-15 | D39: 2014-06-30 | E39: 76 | F39: 61 >= Days Late <= 90
A40: Bittner, Kiyoko | B40: 5185 | C40: 2014-03-11 | D40: 2014-05-25 | E40: =D40-C40 -> 75 | F40: =VLOOKUP(E40,$H$2:$I$5,2) -> 61 >= Days Late <= 90
A41: Nieves, Treva | B41: 4303 | C41: 2014-04-17 | D41: 2014-07-01 | E41: 75 | F41: 61 >= Days Late <= 90
A42: Stoddard, Sondra | B42: 3095 | C42: 2014-04-02 | D42: 2014-06-16 | E42: 75 | F42: 61 >= Days Late <= 90
A43: Angulo, Dierdre | B43: 6260 | C43: 2014-03-30 | D43: 2014-06-12 | E43: 74 | F43: 61 >= Days Late <= 90
A44: Taft, Lala | B44: 329 | C44: 2014-04-03 | D44: 2014-06-16 | E44: 74 | F44: 61 >= Days Late <= 90
A45: Scanlon, Catherina | B45: 3458 | C45: 2014-03-03 | D45: 2014-05-15 | E45: 73 | F45: 61 >= Days Late <= 90
A46: Roach, Allena | B46: 5443 | C46: 2014-03-14 | D46: 2014-05-25 | E46: 72 | F46: 61 >= Days Late <= 90
A47: Irby, Tama | B47: 3846 | C47: 2013-11-02 | D47: 2014-01-12 | E47: 71 | F47: 61 >= Days Late <= 90
A48: Hilliard, Dion | B48: 4254 | C48: 2014-03-15 | D48: 2014-05-25 | E48: 71 | F48: 61 >= Days Late <= 90
A49: Honeycutt, Lane | B49: 4806 | C49: 2014-03-15 | D49: 2014-05-24 | E49: 70 | F49: 61 >= Days Late <= 90
A50: Byrnes, Edmundo | B50: 2476 | C50: 2014-02-27 | D50: 2014-05-08 | E50: 70 | F50: 61 >= Days Late <= 90
A51: Mckeown, Aisha | B51: 3846 | C51: 2014-02-09 | D51: 2014-04-20 | E51: 70 | F51: 61 >= Days Late <= 90
A52: Clanton, Kendall | B52: 2508 | C52: 2014-02-17 | D52: 2014-04-28 | E52: 70 | F52: 61 >= Days Late <= 90
A53: Clemmons, Delpha | B53: 2034 | C53: 2014-05-08 | D53: 2014-07-16 | E53: 69 | F53: 61 >= Days Late <= 90
A54: Breeden, Karol | B54: 2095 | C54: 2014-03-23 | D54: 2014-05-31 | E54: 69 | F54: 61 >= Days Late <= 90
A55: Fournier, Dorene | B55: 4471 | C55: 2014-04-30 | D55: 2014-07-08 | E55: 69 | F55: 61 >= Days Late <= 90
A56: Elston, Shara | B56: 4993 | C56: 2014-04-10 | D56: 2014-06-18 | E56: 69 | F56: 61 >= Days Late <= 90
A57: Kyle, Addie | B57: 205 | C57: 2014-04-26 | D57: 2014-07-04 | E57: 69 | F57: 61 >= Days Late <= 90
A58: Baca, Tressa | B58: 175 | C58: 2013-10-06 | D58: 2013-12-14 | E58: 69 | F58: 61 >= Days Late <= 90
A59: Ezell, Scarlet | B59: 5955 | C59: 2014-03-06 | D59: 2014-05-14 | E59: 69 | F59: 61 >= Days Late <= 90
A60: Harlow, Gilda | B60: 6267 | C60: 2014-01-16 | D60: 2014-03-25 | E60: 68 | F60: 61 >= Days Late <= 90
A61: Blanchard, Rubi | B61: 3450 | C61: 2014-04-25 | D61: 2014-07-01 | E61: 67 | F61: 61 >= Days Late <= 90
A62: Mosier, Maude | B62: 4378 | C62: 2013-11-29 | D62: 2014-02-03 | E62: 66 | F62: 61 >= Days Late <= 90
A63: Whitman, Donita | B63: 311 | C63: 2014-03-18 | D63: 2014-05-23 | E63: 66 | F63: 61 >= Days Late <= 90
A64: Johns, Yuonne | B64: 1414 | C64: 2013-11-25 | D64: 2014-01-30 | E64: 66 | F64: 61 >= Days Late <= 90
A65: Pride, Adolfo | B65: 448 | C65: 2014-04-05 | D65: 2014-06-10 | E65: 66 | F65: 61 >= Days Late <= 90
A66: Bonilla, Michel | B66: 5394 | C66: 2013-12-31 | D66: 2014-03-07 | E66: 66 | F66: 61 >= Days Late <= 90
A67: Timmons, Devon | B67: 3480 | C67: 2014-04-24 | D67: 2014-06-29 | E67: 66 | F67: 61 >= Days Late <= 90
A68: Spooner, Maryln | B68: 1530 | C68: 2014-05-30 | D68: 2014-08-04 | E68: 66 | F68: 61 >= Days Late <= 90
A69: Mcconnell, Jonna | B69: 1499 | C69: 2014-01-05 | D69: 2014-03-12 | E69: 66 | F69: 61 >= Days Late <= 90
A70: Muniz, Domitila | B70: 4272 | C70: 2014-05-29 | D70: 2014-08-02 | E70: 65 | F70: 61 >= Days Late <= 90
A71: Coffin, Wai | B71: 3147 | C71: 2014-05-17 | D71: 2014-07-21 | E71: 65 | F71: 61 >= Days Late <= 90
A72: Roden, Marylee | B72: 5077 | C72: 2014-05-30 | D72: 2014-08-03 | E72: =D72-C72 -> 65 | F72: =VLOOKUP(E72,$H$2:$I$5,2) -> 61 >= Days Late <= 90
A73: Pak, Dollie | B73: 1644 | C73: 2014-04-16 | D73: 2014-06-19 | E73: 64 | F73: 61 >= Days Late <= 90
A74: Casper, Senaida | B74: 2168 | C74: 2014-03-11 | D74: 2014-05-13 | E74: 63 | F74: 61 >= Days Late <= 90
A75: Glynn, Louis | B75: 2995 | C75: 2014-03-27 | D75: 2014-05-29 | E75: 63 | F75: 61 >= Days Late <= 90
A76: Easter, Valarie | B76: 3496 | C76: 2014-04-25 | D76: 2014-06-27 | E76: 63 | F76: 61 >= Days Late <= 90
A77: Eldridge, Bridgett | B77: 4280 | C77: 2014-05-11 | D77: 2014-07-13 | E77: 63 | F77: 61 >= Days Late <= 90
A78: Grimes, Isis | B78: 4694 | C78: 2014-01-24 | D78: 2014-03-28 | E78: 63 | F78: 61 >= Days Late <= 90
A79: Marvin, Maybell | B79: 1356 | C79: 2013-12-27 | D79: 2014-02-28 | E79: 63 | F79: 61 >= Days Late <= 90
A80: Hemphill, Monnie | B80: 5836 | C80: 2013-12-13 | D80: 2014-02-13 | E80: 62 | F80: 61 >= Days Late <= 90
A81: Benner, Valda | B81: 1956 | C81: 2014-03-04 | D81: 2014-05-05 | E81: 62 | F81: 61 >= Days Late <= 90
A82: Hickson, Margareta | B82: 2972 | C82: 2014-05-18 | D82: 2014-07-18 | E82: 61 | F82: 61 >= Days Late <= 90
A83: Parr, Consuela | B83: 2246 | C83: 2014-01-24 | D83: 2014-03-26 | E83: 61 | F83: 61 >= Days Late <= 90
A84: Dumas, Genie | B84: 4559 | C84: 2014-03-01 | D84: 2014-04-30 | E84: 60 | F84: 31 >= Days Late <= 60
A85: Gillen, Andree | B85: 4033 | C85: 2014-05-13 | D85: 2014-07-12 | E85: 60 | F85: 31 >= Days Late <= 60
A86: Eckert, Xiomara | B86: 3741 | C86: 2014-03-04 | D86: 2014-05-03 | E86: 60 | F86: 31 >= Days Late <= 60
A87: Cortes, Petrina | B87: 4477 | C87: 2014-05-11 | D87: 2014-07-10 | E87: 60 | F87: 31 >= Days Late <= 60
A88: Conners, Julissa | B88: 2780 | C88: 2014-02-02 | D88: 2014-04-03 | E88: 60 | F88: 31 >= Days Late <= 60
A89: Tobin, Dalila | B89: 1098 | C89: 2014-05-05 | D89: 2014-07-04 | E89: 60 | F89: 31 >= Days Late <= 60
A90: Loftin, Burton | B90: 6383 | C90: 2014-05-30 | D90: 2014-07-28 | E90: 59 | F90: 31 >= Days Late <= 60
A91: Jeffery, Alaine | B91: 6372 | C91: 2014-04-07 | D91: 2014-06-05 | E91: 59 | F91: 31 >= Days Late <= 60
A92: Torrence, Armida | B92: 2031 | C92: 2014-03-10 | D92: 2014-05-08 | E92: 59 | F92: 31 >= Days Late <= 60
A93: Rayford, Karol | B93: 5857 | C93: 2014-06-01 | D93: 2014-07-30 | E93: 59 | F93: 31 >= Days Late <= 60
A94: Larose, Gwyneth | B94: 3815 | C94: 2014-03-02 | D94: 2014-04-29 | E94: 58 | F94: 31 >= Days Late <= 60
A95: Wick, Tamatha | B95: 3094 | C95: 2014-01-26 | D95: 2014-03-25 | E95: 58 | F95: 31 >= Days Late <= 60
A96: Gallardo, Armida | B96: 855 | C96: 2014-03-30 | D96: 2014-05-27 | E96: 58 | F96: 31 >= Days Late <= 60
A97: Rapp, Jeni | B97: 245 | C97: 2014-04-09 | D97: 2014-06-05 | E97: 57 | F97: 31 >= Days Late <= 60
A98: Larsen, Kaila | B98: 1441 | C98: 2014-06-01 | D98: 2014-07-28 | E98: 57 | F98: 31 >= Days Late <= 60
A99: Hardison, Kacy | B99: 3452 | C99: 2014-04-22 | D99: 2014-06-18 | E99: 57 | F99: 31 >= Days Late <= 60
A100: Buffington, Fonda | B100: 1184 | C100: 2014-05-28 | D100: 2014-07-24 | E100: 57 | F100: 31 >= Days Late <= 60
A101: Carey, Kristan | B101: 5095 | C101: 2014-04-03 | D101: 2014-05-30 | E101: 57 | F101: 31 >= Days Late <= 60
A102: Vallejo, Ophelia | B102: 867 | C102: 2014-03-19 | D102: 2014-05-15 | E102: 57 | F102: 31 >= Days Late <= 60
A103: Whited, Un | B103: 4797 | C103: 2013-10-10 | D103: 2013-12-05 | E103: 56 | F103: 31 >= Days Late <= 60
A104: Arnett, Helaine | B104: 777 | C104: 2014-03-23 | D104: 2014-05-18 | E104: =D104-C104 -> 56 | F104: =VLOOKUP(E104,$H$2:$I$5,2) -> 31 >= Days Late <= 60
A105: Delossantos, Son | B105: 61 | C105: 2014-05-16 | D105: 2014-07-11 | E105: 56 | F105: 31 >= Days Late <= 60
A106: Spalding, Elisha | B106: 3522 | C106: 2014-04-09 | D106: 2014-06-04 | E106: 56 | F106: 31 >= Days Late <= 60
A107: Nutt, Altagracia | B107: 2044 | C107: 2014-05-29 | D107: 2014-07-22 | E107: 54 | F107: 31 >= Days Late <= 60
A108: Joy, Vern | B108: 5658 | C108: 2014-05-08 | D108: 2014-07-01 | E108: 54 | F108: 31 >= Days Late <= 60
A109: Pack, Bradly | B109: 1027 | C109: 2014-04-26 | D109: 2014-06-18 | E109: 53 | F109: 31 >= Days Late <= 60
A110: Paz, Maia | B110: 4294 | C110: 2014-04-22 | D110: 2014-06-14 | E110: 53 | F110: 31 >= Days Late <= 60
A111: Tillman, Yasmine | B111: 4718 | C111: 2014-05-09 | D111: 2014-07-01 | E111: 53 | F111: 31 >= Days Late <= 60
A112: Brant, Elouise | B112: 6476 | C112: 2014-01-11 | D112: 2014-03-04 | E112: 52 | F112: 31 >= Days Late <= 60
A113: Bray, Errol | B113: 3869 | C113: 2014-04-17 | D113: 2014-06-07 | E113: 51 | F113: 31 >= Days Late <= 60
A114: Turk, Hildegarde | B114: 3851 | C114: 2014-05-07 | D114: 2014-06-27 | E114: 51 | F114: 31 >= Days Late <= 60
A115: Horn, Elissa | B115: 1575 | C115: 2014-05-18 | D115: 2014-07-08 | E115: 51 | F115: 31 >= Days Late <= 60
A116: Toler, Evita | B116: 5022 | C116: 2014-05-17 | D116: 2014-07-06 | E116: 50 | F116: 31 >= Days Late <= 60
A117: Harlow, Carmel | B117: 5513 | C117: 2014-02-28 | D117: 2014-04-19 | E117: 50 | F117: 31 >= Days Late <= 60
A118: Hickey, Melina | B118: 3531 | C118: 2013-11-03 | D118: 2013-12-21 | E118: 48 | F118: 31 >= Days Late <= 60
A119: Oconner, Glynda | B119: 3469 | C119: 2014-04-22 | D119: 2014-06-09 | E119: 48 | F119: 31 >= Days Late <= 60
A120: Pollack, Latesha | B120: 1059 | C120: 2014-05-18 | D120: 2014-07-05 | E120: 48 | F120: 31 >= Days Late <= 60
A121: Ho, Sylvie | B121: 4292 | C121: 2013-11-04 | D121: 2013-12-21 | E121: 47 | F121: 31 >= Days Late <= 60
A122: Ervin, Lavern | B122: 1025 | C122: 2014-04-02 | D122: 2014-05-19 | E122: 47 | F122: 31 >= Days Late <= 60
A123: Potts, Burma | B123: 1939 | C123: 2014-02-05 | D123: 2014-03-23 | E123: 46 | F123: 31 >= Days Late <= 60
A124: Picard, Margherita | B124: 4596 | C124: 2014-05-26 | D124: 2014-07-11 | E124: 46 | F124: 31 >= Days Late <= 60
A125: Sander, Carin | B125: 6391 | C125: 2014-04-29 | D125: 2014-06-14 | E125: 46 | F125: 31 >= Days Late <= 60
A126: Epps, Eldora | B126: 1712 | C126: 2014-04-25 | D126: 2014-06-10 | E126: 46 | F126: 31 >= Days Late <= 60
A127: Shields, Madie | B127: 13 | C127: 2014-03-17 | D127: 2014-05-02 | E127: 46 | F127: 31 >= Days Late <= 60
A128: Dailey, Joel | B128: 1099 | C128: 2014-03-24 | D128: 2014-05-08 | E128: 45 | F128: 31 >= Days Late <= 60
A129: Herrick, Jae | B129: 4013 | C129: 2014-01-21 | D129: 2014-03-07 | E129: 45 | F129: 31 >= Days Late <= 60
A130: Newby, Kiersten | B130: 1011 | C130: 2014-03-14 | D130: 2014-04-27 | E130: 44 | F130: 31 >= Days Late <= 60
A131: Watt, Edward | B131: 3994 | C131: 2014-05-11 | D131: 2014-06-24 | E131: 44 | F131: 31 >= Days Late <= 60
A132: Damico, Ammie | B132: 4335 | C132: 2014-06-01 | D132: 2014-07-15 | E132: 44 | F132: 31 >= Days Late <= 60
A133: Caruso, Ninfa | B133: 3774 | C133: 2014-04-27 | D133: 2014-06-09 | E133: 43 | F133: 31 >= Days Late <= 60
A134: Burrows, Merideth | B134: 4393 | C134: 2014-05-15 | D134: 2014-06-27 | E134: 43 | F134: 31 >= Days Late <= 60
A135: Patino, Joseph | B135: 2686 | C135: 2014-04-18 | D135: 2014-05-31 | E135: 43 | F135: 31 >= Days Late <= 60
A136: Lavigne, Zetta | B136: 5594 | C136: 2014-03-16 | D136: 2014-04-28 | E136: =D136-C136 -> 43 | F136: =VLOOKUP(E136,$H$2:$I$5,2) -> 31 >= Days Late <= 60
A137: Varner, Alba | B137: 5636 | C137: 2014-01-12 | D137: 2014-02-24 | E137: 43 | F137: 31 >= Days Late <= 60
A138: Minor, Ranee | B138: 5264 | C138: 2014-05-12 | D138: 2014-06-23 | E138: 42 | F138: 31 >= Days Late <= 60
A139: Littleton, Izola | B139: 2220 | C139: 2014-03-01 | D139: 2014-04-12 | E139: 42 | F139: 31 >= Days Late <= 60
A140: Parson, Terrilyn | B140: 5444 | C140: 2014-04-04 | D140: 2014-05-16 | E140: 42 | F140: 31 >= Days Late <= 60
A141: Pierson, Effie | B141: 1927 | C141: 2014-03-05 | D141: 2014-04-16 | E141: 42 | F141: 31 >= Days Late <= 60
A142: Mccain, Elba | B142: 6448 | C142: 2013-10-05 | D142: 2013-11-16 | E142: 42 | F142: 31 >= Days Late <= 60
A143: Epstein, Lakia | B143: 3821 | C143: 2014-04-20 | D143: 2014-05-31 | E143: 41 | F143: 31 >= Days Late <= 60
A144: Rutledge, Apryl | B144: 4869 | C144: 2014-04-22 | D144: 2014-06-02 | E144: 41 | F144: 31 >= Days Late <= 60
A145: Lance, Mitsue | B145: 1704 | C145: 2014-01-21 | D145: 2014-03-03 | E145: 41 | F145: 31 >= Days Late <= 60
A146: Hutchens, Maryanne | B146: 1651 | C146: 2014-05-23 | D146: 2014-07-02 | E146: 40 | F146: 31 >= Days Late <= 60
A147: Cass, Anthony | B147: 2015 | C147: 2014-05-04 | D147: 2014-06-13 | E147: 40 | F147: 31 >= Days Late <= 60
A148: Paquette, Cathey | B148: 2412 | C148: 2014-04-29 | D148: 2014-06-08 | E148: 40 | F148: 31 >= Days Late <= 60
A149: Shah, Lorenza | B149: 2656 | C149: 2014-05-23 | D149: 2014-07-01 | E149: 39 | F149: 31 >= Days Late <= 60
A150: Gold, Theola | B150: 715 | C150: 2014-01-05 | D150: 2014-02-13 | E150: 39 | F150: 31 >= Days Late <= 60
A151: Oconnor, Nery | B151: 2006 | C151: 2014-03-29 | D151: 2014-05-06 | E151: 38 | F151: 31 >= Days Late <= 60
A152: Adam, Elmer | B152: 3920 | C152: 2014-05-14 | D152: 2014-06-21 | E152: 38 | F152: 31 >= Days Late <= 60
A153: Heaton, Lin | B153: 4377 | C153: 2014-05-28 | D153: 2014-07-05 | E153: 38 | F153: 31 >= Days Late <= 60
A154: Marcus, Iona | B154: 3080 | C154: 2014-03-23 | D154: 2014-04-30 | E154: 38 | F154: 31 >= Days Late <= 60
A155: Fuchs, Anneliese | B155: 523 | C155: 2014-03-27 | D155: 2014-05-04 | E155: 38 | F155: 31 >= Days Late <= 60
A156: Dupont, Mica | B156: 125 | C156: 2014-01-30 | D156: 2014-03-08 | E156: 37 | F156: 31 >= Days Late <= 60
A157: Mcreynolds, Fern | B157: 1641 | C157: 2014-03-24 | D157: 2014-04-30 | E157: 37 | F157: 31 >= Days Late <= 60
A158: Gilman, Romona | B158: 970 | C158: 2013-12-11 | D158: 2014-01-17 | E158: 37 | F158: 31 >= Days Late <= 60
A159: Doty, Zoila | B159: 3366 | C159: 2014-01-06 | D159: 2014-02-12 | E159: 37 | F159: 31 >= Days Late <= 60
A160: Creel, Jodee | B160: 4158 | C160: 2014-04-24 | D160: 2014-05-31 | E160: 37 | F160: 31 >= Days Late <= 60
A161: Shank, Sebastian | B161: 3612 | C161: 2014-04-08 | D161: 2014-05-14 | E161: 36 | F161: 31 >= Days Late <= 60
A162: Dancy, Deena | B162: 2449 | C162: 2014-03-07 | D162: 2014-04-12 | E162: 36 | F162: 31 >= Days Late <= 60
A163: Seidel, Maren | B163: 879 | C163: 2014-04-17 | D163: 2014-05-23 | E163: 36 | F163: 31 >= Days Late <= 60
A164: Hindman, Dorthey | B164: 2647 | C164: 2014-04-25 | D164: 2014-05-30 | E164: 35 | F164: 31 >= Days Late <= 60
A165: Hartmann, Samual | B165: 5171 | C165: 2014-03-10 | D165: 2014-04-14 | E165: 35 | F165: 31 >= Days Late <= 60
A166: Fitzpatrick, Hunter | B166: 5603 | C166: 2014-04-29 | D166: 2014-06-03 | E166: 35 | F166: 31 >= Days Late <= 60
A167: Hancock, Richie | B167: 4841 | C167: 2014-05-31 | D167: 2014-07-04 | E167: 34 | F167: 31 >= Days Late <= 60
A168: Byers, Natisha | B168: 2940 | C168: 2014-04-04 | D168: 2014-05-07 | E168: =D168-C168 -> 33 | F168: =VLOOKUP(E168,$H$2:$I$5,2) -> 31 >= Days Late <= 60
A169: Schrader, Numbers | B169: 2138 | C169: 2014-02-25 | D169: 2014-03-30 | E169: 33 | F169: 31 >= Days Late <= 60
A170: Crump, Glinda | B170: 2257 | C170: 2014-05-05 | D170: 2014-06-07 | E170: 33 | F170: 31 >= Days Late <= 60
A171: Rubin, Reynaldo | B171: 6493 | C171: 2014-04-17 | D171: 2014-05-20 | E171: 33 | F171: 31 >= Days Late <= 60
A172: Barden, Billye | B172: 4044 | C172: 2014-04-05 | D172: 2014-05-08 | E172: 33 | F172: 31 >= Days Late <= 60
A173: Snow, Tamera | B173: 2132 | C173: 2014-04-12 | D173: 2014-05-15 | E173: 33 | F173: 31 >= Days Late <= 60
A174: Monahan, Tanika | B174: 1601 | C174: 2014-04-25 | D174: 2014-05-28 | E174: 33 | F174: 31 >= Days Late <= 60
A175: Spann, Randi | B175: 4101 | C175: 2014-05-29 | D175: 2014-07-01 | E175: 33 | F175: 31 >= Days Late <= 60
A176: Lemieux, Kiana | B176: 873 | C176: 2014-01-16 | D176: 2014-02-17 | E176: 32 | F176: 31 >= Days Late <= 60
A177: Schubert, Gwenn | B177: 6497 | C177: 2014-03-09 | D177: 2014-04-10 | E177: 32 | F177: 31 >= Days Late <= 60
A178: Leary, Janelle | B178: 5027 | C178: 2014-03-17 | D178: 2014-04-18 | E178: 32 | F178: 31 >= Days Late <= 60
A179: Mathias, Debrah | B179: 1416 | C179: 2013-10-10 | D179: 2013-11-11 | E179: 32 | F179: 31 >= Days Late <= 60
A180: Freedman, Kathlyn | B180: 4562 | C180: 2013-12-23 | D180: 2014-01-24 | E180: 32 | F180: 31 >= Days Late <= 60
A181: Allred, Elina | B181: 2846 | C181: 2014-04-16 | D181: 2014-05-17 | E181: 31 | F181: 31 >= Days Late <= 60
A182: Shah, Celsa | B182: 1411 | C182: 2014-01-02 | D182: 2014-02-02 | E182: 31 | F182: 31 >= Days Late <= 60
A183: Breen, Dakota | B183: 1752 | C183: 2014-05-18 | D183: 2014-06-18 | E183: 31 | F183: 31 >= Days Late <= 60
A184: Hummel, Joya | B184: 3030 | C184: 2014-04-07 | D184: 2014-05-07 | E184: 30 | F184: 1 >= Days Late <= 30
A185: Haight, Darrick | B185: 4343 | C185: 2014-04-13 | D185: 2014-05-13 | E185: 30 | F185: 1 >= Days Late <= 30
A186: Hatton, Faustina | B186: 5513 | C186: 2014-05-01 | D186: 2014-05-31 | E186: 30 | F186: 1 >= Days Late <= 30
A187: Carlisle, Cameron | B187: 4416 | C187: 2014-03-31 | D187: 2014-04-30 | E187: 30 | F187: 1 >= Days Late <= 30
A188: Mcintosh, Janeth | B188: 1017 | C188: 2014-01-29 | D188: 2014-02-26 | E188: 28 | F188: 1 >= Days Late <= 30
A189: Boyles, Ilda | B189: 5741 | C189: 2014-04-12 | D189: 2014-05-09 | E189: 27 | F189: 1 >= Days Late <= 30
A190: Galindo, Retha | B190: 1251 | C190: 2014-01-21 | D190: 2014-02-16 | E190: 26 | F190: 1 >= Days Late <= 30
A191: Meek, Exie | B191: 4107 | C191: 2014-03-28 | D191: 2014-04-23 | E191: 26 | F191: 1 >= Days Late <= 30
A192: Grooms, Otilia | B192: 1070 | C192: 2014-04-19 | D192: 2014-05-14 | E192: 25 | F192: 1 >= Days Late <= 30
A193: Smiley, Brunilda | B193: 282 | C193: 2014-01-21 | D193: 2014-02-14 | E193: 24 | F193: 1 >= Days Late <= 30
A194: Mccrary, Merlyn | B194: 4569 | C194: 2014-01-26 | D194: 2014-02-18 | E194: 23 | F194: 1 >= Days Late <= 30
A195: Eldridge, Beckie | B195: 2932 | C195: 2014-02-27 | D195: 2014-03-22 | E195: 23 | F195: 1 >= Days Late <= 30
A196: Tolbert, Yoshiko | B196: 1891 | C196: 2014-04-08 | D196: 2014-04-30 | E196: 22 | F196: 1 >= Days Late <= 30
A197: Kinard, Laquita | B197: 3459 | C197: 2014-02-28 | D197: 2014-03-22 | E197: 22 | F197: 1 >= Days Late <= 30
A198: Perreault, Angelique | B198: 2402 | C198: 2014-01-06 | D198: 2014-01-28 | E198: 22 | F198: 1 >= Days Late <= 30
A199: Pereira, Otilia | B199: 6470 | C199: 2014-01-18 | D199: 2014-02-09 | E199: 22 | F199: 1 >= Days Late <= 30
A200: Moe, Christi | B200: 4914 | C200: 2014-02-12 | D200: 2014-03-05 | E200: =D200-C200 -> 21 | F200: =VLOOKUP(E200,$H$2:$I$5,2) -> 1 >= Days Late <= 30
A201: Brackett, Curtis | B201: 4850 | C201: 2014-02-27 | D201: 2014-03-20 | E201: 21 | F201: 1 >= Days Late <= 30
... 6 more rows

Sheet 1130
A1: Excel Magic Trick 1128: Aging Accounts Receivable Reports On Multiple Sheets With Array Formula
A2: Excel Magic Trick 1129: Aging Accounts Receivable Reports Using Slicer &Excel Table Feature
A3: Excel Magic Trick 1130: Aging Accounts Receivable Reports Using Advanced Filter
A4: Excel Magic Trick 1131: Aging Accounts Receivable Reports On Multiple Sheets With PivotTable
A7: Customer | B7: InvoiceAmount | C7: InvoiceDate | D7: Due Date | G7: Days Late | H7: Days Late
A8: Mclean, Eldora | B8: 1929 | C8: 2013-10-14 | D8: 2014-03-10
A9: Potts, Burma | B9: 1939 | C9: 2014-02-05 | D9: 2014-03-23
A10: Caruso, Ninfa | B10: 3774 | C10: 2014-04-27 | D10: 2014-06-09
A11: Mosier, Maude | B11: 4378 | C11: 2013-11-29 | D11: 2014-02-03
A12: Casper, Senaida | B12: 2168 | C12: 2014-03-11 | D12: 2014-05-13
A13: Lemieux, Kiana | B13: 873 | C13: 2014-01-16 | D13: 2014-02-17
A14: Cousins, Jeniffer | B14: 6013 | C14: 2013-11-28 | D14: 2014-03-18
A15: Moe, Christi | B15: 4914 | C15: 2014-02-12 | D15: 2014-03-05
A16: Rapp, Jeni | B16: 245 | C16: 2014-04-09 | D16: 2014-06-05
A17: Whitman, Donita | B17: 311 | C17: 2014-03-18 | D17: 2014-05-23
A18: Galindo, Retha | B18: 1251 | C18: 2014-01-21 | D18: 2014-02-16
A19: Mcintosh, Janeth | B19: 1017 | C19: 2014-01-29 | D19: 2014-02-26
A20: Brant, Elouise | B20: 6476 | C20: 2014-01-11 | D20: 2014-03-04
A21: Oconnor, Nery | B21: 2006 | C21: 2014-03-29 | D21: 2014-05-06
A22: Larsen, Kaila | B22: 1441 | C22: 2014-06-01 | D22: 2014-07-28
A23: Brackett, Curtis | B23: 4850 | C23: 2014-02-27 | D23: 2014-03-20
A24: Glynn, Louis | B24: 2995 | C24: 2014-03-27 | D24: 2014-05-29
A25: Angulo, Dierdre | B25: 6260 | C25: 2014-03-30 | D25: 2014-06-12
A26: Barger, Lorelei | B26: 1858 | C26: 2014-04-14 | D26: 2014-07-02
A27: Byers, Natisha | B27: 2940 | C27: 2014-04-04 | D27: 2014-05-07
A28: Whited, Un | B28: 4797 | C28: 2013-10-10 | D28: 2013-12-05
A29: Easter, Valarie | B29: 3496 | C29: 2014-04-25 | D29: 2014-06-27
A30: Tolbert, Yoshiko | B30: 1891 | C30: 2014-04-08 | D30: 2014-04-30
A31: Newby, Kiersten | B31: 1011 | C31: 2014-03-14 | D31: 2014-04-27
A32: Shank, Sebastian | B32: 3612 | C32: 2014-04-08 | D32: 2014-05-14
A33: Saldana, Venita | B33: 2486 | C33: 2014-04-12 | D33: 2014-06-30
A34: Ho, Sylvie | B34: 4292 | C34: 2013-11-04 | D34: 2013-12-21
A35: Schubert, Gwenn | B35: 6497 | C35: 2014-03-09 | D35: 2014-04-10
A36: Eldridge, Bridgett | B36: 4280 | C36: 2014-05-11 | D36: 2014-07-13
A37: Adam, Elmer | B37: 3920 | C37: 2014-05-14 | D37: 2014-06-21
A38: Allred, Elina | B38: 2846 | C38: 2014-04-16 | D38: 2014-05-17
A39: Arnett, Helaine | B39: 777 | C39: 2014-03-23 | D39: 2014-05-18
A40: Pack, Bradly | B40: 1027 | C40: 2014-04-26 | D40: 2014-06-18
A41: Hardison, Kacy | B41: 3452 | C41: 2014-04-22 | D41: 2014-06-18
A42: Zook, Corrinne | B42: 1718 | C42: 2013-10-04 | D42: 2014-01-09
A43: Pimentel, Cristopher | B43: 1290 | C43: 2013-11-30 | D43: 2014-04-21
A44: Grooms, Otilia | B44: 1070 | C44: 2014-04-19 | D44: 2014-05-14
A45: Buffington, Fonda | B45: 1184 | C45: 2014-05-28 | D45: 2014-07-24
A46: Loftin, Burton | B46: 6383 | C46: 2014-05-30 | D46: 2014-07-28
A47: Bray, Errol | B47: 3869 | C47: 2014-04-17 | D47: 2014-06-07
A48: Toler, Evita | B48: 5022 | C48: 2014-05-17 | D48: 2014-07-06
A49: Shah, Celsa | B49: 1411 | C49: 2014-01-02 | D49: 2014-02-02
A50: Turk, Hildegarde | B50: 3851 | C50: 2014-05-07 | D50: 2014-06-27
A51: Hummel, Joya | B51: 3030 | C51: 2014-04-07 | D51: 2014-05-07
A52: Scanlon, Catherina | B52: 3458 | C52: 2014-03-03 | D52: 2014-05-15
A53: Johns, Yuonne | B53: 1414 | C53: 2013-11-25 | D53: 2014-01-30
A54: Clemmons, Delpha | B54: 2034 | C54: 2014-05-08 | D54: 2014-07-16
A55: Heaton, Lin | B55: 4377 | C55: 2014-05-28 | D55: 2014-07-05
A56: Muniz, Domitila | B56: 4272 | C56: 2014-05-29 | D56: 2014-08-02
A57: Hickey, Melina | B57: 3531 | C57: 2013-11-03 | D57: 2013-12-21
A58: Dupont, Mica | B58: 125 | C58: 2014-01-30 | D58: 2014-03-08
A59: Hindman, Dorthey | B59: 2647 | C59: 2014-04-25 | D59: 2014-05-30
A60: Dumas, Genie | B60: 4559 | C60: 2014-03-01 | D60: 2014-04-30
A61: Leary, Janelle | B61: 5027 | C61: 2014-03-17 | D61: 2014-04-18
A62: Jeffery, Alaine | B62: 6372 | C62: 2014-04-07 | D62: 2014-06-05
A63: Bittner, Kiyoko | B63: 5185 | C63: 2014-03-11 | D63: 2014-05-25
A64: Marcus, Iona | B64: 3080 | C64: 2014-03-23 | D64: 2014-04-30
A65: Beals, Wyatt | B65: 5987 | C65: 2014-04-01 | D65: 2014-06-19
A66: Button, Berna | B66: 4582 | C66: 2014-02-23 | D66: 2014-05-13
A67: Gillen, Andree | B67: 4033 | C67: 2014-05-13 | D67: 2014-07-12
A68: Paz, Maia | B68: 4294 | C68: 2014-04-22 | D68: 2014-06-14
A69: Mathias, Debrah | B69: 1416 | C69: 2013-10-10 | D69: 2013-11-11
A70: Larose, Gwyneth | B70: 3815 | C70: 2014-03-02 | D70: 2014-04-29
A71: Roach, Allena | B71: 5443 | C71: 2014-03-14 | D71: 2014-05-25
A72: Carey, Kristan | B72: 5095 | C72: 2014-04-03 | D72: 2014-05-30
A73: Hickson, Margareta | B73: 2972 | C73: 2014-05-18 | D73: 2014-07-18
A74: Breeden, Karol | B74: 2095 | C74: 2014-03-23 | D74: 2014-05-31
A75: Hancock, Richie | B75: 4841 | C75: 2014-05-31 | D75: 2014-07-04
A76: Pride, Adolfo | B76: 448 | C76: 2014-04-05 | D76: 2014-06-10
A77: Boyles, Ilda | B77: 5741 | C77: 2014-04-12 | D77: 2014-05-09
A78: Kinard, Laquita | B78: 3459 | C78: 2014-02-28 | D78: 2014-03-22
A79: Ervin, Lavern | B79: 1025 | C79: 2014-04-02 | D79: 2014-05-19
A80: Watt, Edward | B80: 3994 | C80: 2014-05-11 | D80: 2014-06-24
A81: Fournier, Dorene | B81: 4471 | C81: 2014-04-30 | D81: 2014-07-08
A82: Hook, Marisela | B82: 6475 | C82: 2014-03-04 | D82: 2014-05-21
A83: Wofford, Reyes | B83: 4865 | C83: 2013-10-21 | D83: 2014-03-11
A84: Pak, Dollie | B84: 1644 | C84: 2014-04-16 | D84: 2014-06-19
A85: Torrence, Armida | B85: 2031 | C85: 2014-03-10 | D85: 2014-05-08
A86: Eckert, Xiomara | B86: 3741 | C86: 2014-03-04 | D86: 2014-05-03
A87: Minor, Ranee | B87: 5264 | C87: 2014-05-12 | D87: 2014-06-23
A88: Hutchens, Maryanne | B88: 1651 | C88: 2014-05-23 | D88: 2014-07-02
A89: Doughty, Teena | B89: 3457 | C89: 2014-04-10 | D89: 2014-06-29
A90: Hanley, Leatrice | B90: 2038 | C90: 2013-10-31 | D90: 2014-01-19
A91: Freedman, Kathlyn | B91: 4562 | C91: 2013-12-23 | D91: 2014-01-24
A92: Grimes, Isis | B92: 4694 | C92: 2014-01-24 | D92: 2014-03-28
A93: Perreault, Angelique | B93: 2402 | C93: 2014-01-06 | D93: 2014-01-28
A94: Walter, Bernardina | B94: 5660 | C94: 2014-01-03 | D94: 2014-03-22
A95: Parr, Consuela | B95: 2246 | C95: 2014-01-24 | D95: 2014-03-26
A96: Reece, Maisie | B96: 5914 | C96: 2014-02-17 | D96: 2014-05-08
A97: Harlow, Carmel | B97: 5513 | C97: 2014-02-28 | D97: 2014-04-19
A98: Honeycutt, Lane | B98: 4806 | C98: 2014-03-15 | D98: 2014-05-24
A99: Cass, Anthony | B99: 2015 | C99: 2014-05-04 | D99: 2014-06-13
A100: Steffen, Malinda | B100: 3282 | C100: 2013-10-01 | D100: 2014-02-23
A101: Mccrary, Merlyn | B101: 4569 | C101: 2014-01-26 | D101: 2014-02-18
A102: Littleton, Izola | B102: 2220 | C102: 2014-03-01 | D102: 2014-04-12
A103: Nieves, Treva | B103: 4303 | C103: 2014-04-17 | D103: 2014-07-01
A104: Mclean, Eldora | B104: 1929 | C104: 2013-10-14 | D104: 2014-03-10
A105: Dancy, Deena | B105: 2449 | C105: 2014-03-07 | D105: 2014-04-12
A106: Anglin, Thanh | B106: 1617 | C106: 2013-10-21 | D106: 2014-01-22
A107: Schrader, Numbers | B107: 2138 | C107: 2014-02-25 | D107: 2014-03-30
A108: Edgar, Dusti | B108: 5261 | C108: 2013-11-05 | D108: 2014-02-20
A109: Eldridge, Beckie | B109: 2932 | C109: 2014-02-27 | D109: 2014-03-22
A110: Picard, Margherita | B110: 4596 | C110: 2014-05-26 | D110: 2014-07-11
A111: Sander, Carin | B111: 6391 | C111: 2014-04-29 | D111: 2014-06-14
A112: Bonilla, Michel | B112: 5394 | C112: 2013-12-31 | D112: 2014-03-07
A113: Hartmann, Samual | B113: 5171 | C113: 2014-03-10 | D113: 2014-04-14
A114: Dew, Kaye | B114: 3267 | C114: 2014-04-10 | D114: 2014-06-27
A115: Fuchs, Anneliese | B115: 523 | C115: 2014-03-27 | D115: 2014-05-04
A116: Timmons, Devon | B116: 3480 | C116: 2014-04-24 | D116: 2014-06-29
A117: Gallagher, Damian | B117: 6121 | C117: 2014-04-19 | D117: 2014-05-10
A118: Coffin, Wai | B118: 3147 | C118: 2014-05-17 | D118: 2014-07-21
A119: Wick, Tamatha | B119: 3094 | C119: 2014-01-26 | D119: 2014-03-25
A120: Elston, Shara | B120: 4993 | C120: 2014-04-10 | D120: 2014-06-18
A121: Fitzpatrick, Hunter | B121: 5603 | C121: 2014-04-29 | D121: 2014-06-03
A122: Paquette, Cathey | B122: 2412 | C122: 2014-04-29 | D122: 2014-06-08
A123: Mcreynolds, Fern | B123: 1641 | C123: 2014-03-24 | D123: 2014-04-30
A124: Damico, Ammie | B124: 4335 | C124: 2014-06-01 | D124: 2014-07-15
A125: Gallardo, Armida | B125: 855 | C125: 2014-03-30 | D125: 2014-05-27
A126: Lentz, Rosana | B126: 1822 | C126: 2013-10-29 | D126: 2014-03-10
A127: Delossantos, Son | B127: 61 | C127: 2014-05-16 | D127: 2014-07-11
A128: Cortes, Petrina | B128: 4477 | C128: 2014-05-11 | D128: 2014-07-10
A129: Settle, Madelene | B129: 111 | C129: 2013-10-20 | D129: 2014-01-08
A130: Hibbard, Marceline | B130: 4904 | C130: 2013-12-21 | D130: 2014-05-09
A131: Seidel, Maren | B131: 879 | C131: 2014-04-17 | D131: 2014-05-23
A132: Oconner, Glynda | B132: 3469 | C132: 2014-04-22 | D132: 2014-06-09
A133: Spooner, Maryln | B133: 1530 | C133: 2014-05-30 | D133: 2014-08-04
A134: Briones, Adria | B134: 499 | C134: 2014-04-23 | D134: 2014-05-01
A135: Roden, Marylee | B135: 5077 | C135: 2014-05-30 | D135: 2014-08-03
A136: Valentin, Regena | B136: 5153 | C136: 2014-01-17 | D136: 2014-02-07
A137: Tillman, Yasmine | B137: 4718 | C137: 2014-05-09 | D137: 2014-07-01
A138: Burrows, Merideth | B138: 4393 | C138: 2014-05-15 | D138: 2014-06-27
A139: Shuman, Cordia | B139: 5681 | C139: 2013-12-07 | D139: 2014-03-20
A140: Crump, Glinda | B140: 2257 | C140: 2014-05-05 | D140: 2014-06-07
A141: Silverman, Delmar | B141: 2237 | C141: 2013-10-15 | D141: 2014-01-30
A142: Gilman, Romona | B142: 970 | C142: 2013-12-11 | D142: 2014-01-17
A143: Kyle, Addie | B143: 205 | C143: 2014-04-26 | D143: 2014-07-04
A144: Epps, Eldora | B144: 1712 | C144: 2014-04-25 | D144: 2014-06-10
A145: Smiley, Brunilda | B145: 282 | C145: 2014-01-21 | D145: 2014-02-14
A146: Pennell, Willena | B146: 1440 | C146: 2013-10-06 | D146: 2014-01-26
A147: Shah, Lorenza | B147: 2656 | C147: 2014-05-23 | D147: 2014-07-01
A148: Thigpen, Mia | B148: 5517 | C148: 2013-10-17 | D148: 2014-01-17
A149: Patino, Joseph | B149: 2686 | C149: 2014-04-18 | D149: 2014-05-31
A150: Coombs, Rasheeda | B150: 4241 | C150: 2013-12-14 | D150: 2014-03-01
A151: Epstein, Lakia | B151: 3821 | C151: 2014-04-20 | D151: 2014-05-31
A152: Dailey, Joel | B152: 1099 | C152: 2014-03-24 | D152: 2014-05-08
A153: Blanchard, Rubi | B153: 3450 | C153: 2014-04-25 | D153: 2014-07-01
A154: Nutt, Altagracia | B154: 2044 | C154: 2014-05-29 | D154: 2014-07-22
A155: Haight, Darrick | B155: 4343 | C155: 2014-04-13 | D155: 2014-05-13
A156: Hemphill, Monnie | B156: 5836 | C156: 2013-12-13 | D156: 2014-02-13
A157: Parson, Terrilyn | B157: 5444 | C157: 2014-04-04 | D157: 2014-05-16
A158: Mccall, Kasie | B158: 2633 | C158: 2014-04-23 | D158: 2014-05-12
A159: Pollack, Latesha | B159: 1059 | C159: 2014-05-18 | D159: 2014-07-05
A160: Rubin, Reynaldo | B160: 6493 | C160: 2014-04-17 | D160: 2014-05-20
A161: Brill, Evelynn | B161: 835 | C161: 2013-11-23 | D161: 2014-03-15
A162: Irby, Tama | B162: 3846 | C162: 2013-11-02 | D162: 2014-01-12
A163: Hatton, Faustina | B163: 5513 | C163: 2014-05-01 | D163: 2014-05-31
A164: Finnegan, Marine | B164: 1025 | C164: 2014-03-29 | D164: 2014-06-14
A165: Pierson, Effie | B165: 1927 | C165: 2014-03-05 | D165: 2014-04-16
A166: Ashe, Beata | B166: 2743 | C166: 2014-04-15 | D166: 2014-06-30
A167: Taft, Lala | B167: 329 | C167: 2014-04-03 | D167: 2014-06-16
A168: Rutledge, Apryl | B168: 4869 | C168: 2014-04-22 | D168: 2014-06-02
A169: Byrnes, Edmundo | B169: 2476 | C169: 2014-02-27 | D169: 2014-05-08
A170: Baca, Tressa | B170: 175 | C170: 2013-10-06 | D170: 2013-12-14
A171: Mckinley, Gay | B171: 584 | C171: 2014-03-21 | D171: 2014-06-06
A172: Mckeown, Aisha | B172: 3846 | C172: 2014-02-09 | D172: 2014-04-20
A173: Ezell, Scarlet | B173: 5955 | C173: 2014-03-06 | D173: 2014-05-14
A174: Conners, Julissa | B174: 2780 | C174: 2014-02-02 | D174: 2014-04-03
A175: Herrick, Jae | B175: 4013 | C175: 2014-01-21 | D175: 2014-03-07
A176: Pereira, Otilia | B176: 6470 | C176: 2014-01-18 | D176: 2014-02-09
A177: Hilliard, Dion | B177: 4254 | C177: 2014-03-15 | D177: 2014-05-25
A178: Rayford, Karol | B178: 5857 | C178: 2014-06-01 | D178: 2014-07-30
A179: Lavigne, Zetta | B179: 5594 | C179: 2014-03-16 | D179: 2014-04-28
A180: Doty, Zoila | B180: 3366 | C180: 2014-01-06 | D180: 2014-02-12
A181: Bedford, Michael | B181: 137 | C181: 2014-04-23 | D181: 2014-04-29
A182: Barden, Billye | B182: 4044 | C182: 2014-04-05 | D182: 2014-05-08
A183: Stoddard, Sondra | B183: 3095 | C183: 2014-04-02 | D183: 2014-06-16
A184: Varner, Alba | B184: 5636 | C184: 2014-01-12 | D184: 2014-02-24
A185: Harlow, Gilda | B185: 6267 | C185: 2014-01-16 | D185: 2014-03-25
A186: Vallejo, Ophelia | B186: 867 | C186: 2014-03-19 | D186: 2014-05-15
A187: Shields, Madie | B187: 13 | C187: 2014-03-17 | D187: 2014-05-02
A188: Mcconnell, Jonna | B188: 1499 | C188: 2014-01-05 | D188: 2014-03-12
A189: Horn, Elissa | B189: 1575 | C189: 2014-05-18 | D189: 2014-07-08
A190: Beebe, Leonila | B190: 3750 | C190: 2014-03-31 | D190: 2014-06-17
A191: Snow, Tamera | B191: 2132 | C191: 2014-04-12 | D191: 2014-05-15
A192: Creel, Jodee | B192: 4158 | C192: 2014-04-24 | D192: 2014-05-31
A193: Joy, Vern | B193: 5658 | C193: 2014-05-08 | D193: 2014-07-01
A194: Dorsey, Khalilah | B194: 217 | C194: 2014-01-05 | D194: 2014-01-26
A195: Meek, Exie | B195: 4107 | C195: 2014-03-28 | D195: 2014-04-23
A196: Marvin, Maybell | B196: 1356 | C196: 2013-12-27 | D196: 2014-02-28
A197: Mccain, Elba | B197: 6448 | C197: 2013-10-05 | D197: 2013-11-16
A198: Breen, Dakota | B198: 1752 | C198: 2014-05-18 | D198: 2014-06-18
A199: Benner, Valda | B199: 1956 | C199: 2014-03-04 | D199: 2014-05-05
A200: Spalding, Elisha | B200: 3522 | C200: 2014-04-09 | D200: 2014-06-04
A201: Lance, Mitsue | B201: 1704 | C201: 2014-01-21 | D201: 2014-03-03
A202: Monahan, Tanika | B202: 1601 | C202: 2014-04-25 | D202: 2014-05-28
... 5 more rows

Sheet 1130 (an)
A1: Excel Magic Trick 1128: Aging Accounts Receivable Reports On Multiple Sheets With Array Formula | J1: Customer | K1: InvoiceAmount | L1: InvoiceDate | M1: Due Date | N1: Days Late
A2: Excel Magic Trick 1129: Aging Accounts Receivable Reports Using Slicer &Excel Table Feature | J2: Dumas, Genie | K2: 4559 | L2: 2014-03-01 | M2: 2014-04-30 | N2: 60
A3: Excel Magic Trick 1130: Aging Accounts Receivable Reports Using Advanced Filter | J3: Gillen, Andree | K3: 4033 | L3: 2014-05-13 | M3: 2014-07-12 | N3: 60
A4: Excel Magic Trick 1131: Aging Accounts Receivable Reports On Multiple Sheets With PivotTable | J4: Eckert, Xiomara | K4: 3741 | L4: 2014-03-04 | M4: 2014-05-03 | N4: 60
J5: Cortes, Petrina | K5: 4477 | L5: 2014-05-11 | M5: 2014-07-10 | N5: 60
J6: Conners, Julissa | K6: 2780 | L6: 2014-02-02 | M6: 2014-04-03 | N6: 60
A7: Customer | B7: InvoiceAmount | C7: InvoiceDate | D7: Due Date | E7: Days Late | G7: Days Late | H7: Days Late | J7: Tobin, Dalila | K7: 1098 | L7: 2014-05-05 | M7: 2014-07-04 | N7: 60
A8: Mclean, Eldora | B8: 1929 | C8: 2013-10-14 | D8: 2014-03-10 | E8: =D8-C8 -> 147 | G8: >=31 | H8: <=60 | J8: Loftin, Burton | K8: 6383 | L8: 2014-05-30 | M8: 2014-07-28 | N8: 59
A9: Steffen, Malinda | B9: 3282 | C9: 2013-10-01 | D9: 2014-02-23 | E9: =D9-C9 -> 145 | J9: Jeffery, Alaine | K9: 6372 | L9: 2014-04-07 | M9: 2014-06-05 | N9: 59
A10: Pimentel, Cristopher | B10: 1290 | C10: 2013-11-30 | D10: 2014-04-21 | E10: =D10-C10 -> 142 | J10: Torrence, Armida | K10: 2031 | L10: 2014-03-10 | M10: 2014-05-08 | N10: 59
A11: Wofford, Reyes | B11: 4865 | C11: 2013-10-21 | D11: 2014-03-11 | E11: =D11-C11 -> 141 | J11: Rayford, Karol | K11: 5857 | L11: 2014-06-01 | M11: 2014-07-30 | N11: 59
A12: Hibbard, Marceline | B12: 4904 | C12: 2013-12-21 | D12: 2014-05-09 | E12: =D12-C12 -> 139 | J12: Larose, Gwyneth | K12: 3815 | L12: 2014-03-02 | M12: 2014-04-29 | N12: 58
A13: Lentz, Rosana | B13: 1822 | C13: 2013-10-29 | D13: 2014-03-10 | E13: =D13-C13 -> 132 | J13: Wick, Tamatha | K13: 3094 | L13: 2014-01-26 | M13: 2014-03-25 | N13: 58
A14: Pennell, Willena | B14: 1440 | C14: 2013-10-06 | D14: 2014-01-26 | E14: =D14-C14 -> 112 | J14: Gallardo, Armida | K14: 855 | L14: 2014-03-30 | M14: 2014-05-27 | N14: 58
A15: Brill, Evelynn | B15: 835 | C15: 2013-11-23 | D15: 2014-03-15 | E15: =D15-C15 -> 112 | J15: Rapp, Jeni | K15: 245 | L15: 2014-04-09 | M15: 2014-06-05 | N15: 57
A16: Cousins, Jeniffer | B16: 6013 | C16: 2013-11-28 | D16: 2014-03-18 | E16: =D16-C16 -> 110 | J16: Larsen, Kaila | K16: 1441 | L16: 2014-06-01 | M16: 2014-07-28 | N16: 57
A17: Dang, Trista | B17: 343 | C17: 2013-11-08 | D17: 2014-02-23 | E17: =D17-C17 -> 107 | J17: Hardison, Kacy | K17: 3452 | L17: 2014-04-22 | M17: 2014-06-18 | N17: 57
A18: Edgar, Dusti | B18: 5261 | C18: 2013-11-05 | D18: 2014-02-20 | E18: =D18-C18 -> 107 | J18: Buffington, Fonda | K18: 1184 | L18: 2014-05-28 | M18: 2014-07-24 | N18: 57
A19: Silverman, Delmar | B19: 2237 | C19: 2013-10-15 | D19: 2014-01-30 | E19: =D19-C19 -> 107 | J19: Carey, Kristan | K19: 5095 | L19: 2014-04-03 | M19: 2014-05-30 | N19: 57
A20: Shuman, Cordia | B20: 5681 | C20: 2013-12-07 | D20: 2014-03-20 | E20: =D20-C20 -> 103 | J20: Vallejo, Ophelia | K20: 867 | L20: 2014-03-19 | M20: 2014-05-15 | N20: 57
A21: Zook, Corrinne | B21: 1718 | C21: 2013-10-04 | D21: 2014-01-09 | E21: =D21-C21 -> 97 | J21: Whited, Un | K21: 4797 | L21: 2013-10-10 | M21: 2013-12-05 | N21: 56
A22: Anglin, Thanh | B22: 1617 | C22: 2013-10-21 | D22: 2014-01-22 | E22: =D22-C22 -> 93 | J22: Arnett, Helaine | K22: 777 | L22: 2014-03-23 | M22: 2014-05-18 | N22: 56
A23: Thigpen, Mia | B23: 5517 | C23: 2013-10-17 | D23: 2014-01-17 | E23: =D23-C23 -> 92 | J23: Delossantos, Son | K23: 61 | L23: 2014-05-16 | M23: 2014-07-11 | N23: 56
A24: Doughty, Teena | B24: 3457 | C24: 2014-04-10 | D24: 2014-06-29 | E24: =D24-C24 -> 80 | J24: Spalding, Elisha | K24: 3522 | L24: 2014-04-09 | M24: 2014-06-04 | N24: 56
A25: Hanley, Leatrice | B25: 2038 | C25: 2013-10-31 | D25: 2014-01-19 | E25: =D25-C25 -> 80 | J25: Nutt, Altagracia | K25: 2044 | L25: 2014-05-29 | M25: 2014-07-22 | N25: 54
A26: Reece, Maisie | B26: 5914 | C26: 2014-02-17 | D26: 2014-05-08 | E26: =D26-C26 -> 80 | J26: Joy, Vern | K26: 5658 | L26: 2014-05-08 | M26: 2014-07-01 | N26: 54
A27: Settle, Madelene | B27: 111 | C27: 2013-10-20 | D27: 2014-01-08 | E27: =D27-C27 -> 80 | J27: Pack, Bradly | K27: 1027 | L27: 2014-04-26 | M27: 2014-06-18 | N27: 53
A28: Barger, Lorelei | B28: 1858 | C28: 2014-04-14 | D28: 2014-07-02 | E28: =D28-C28 -> 79 | J28: Paz, Maia | K28: 4294 | L28: 2014-04-22 | M28: 2014-06-14 | N28: 53
A29: Saldana, Venita | B29: 2486 | C29: 2014-04-12 | D29: 2014-06-30 | E29: =D29-C29 -> 79 | J29: Tillman, Yasmine | K29: 4718 | L29: 2014-05-09 | M29: 2014-07-01 | N29: 53
A30: Beals, Wyatt | B30: 5987 | C30: 2014-04-01 | D30: 2014-06-19 | E30: =D30-C30 -> 79 | J30: Brant, Elouise | K30: 6476 | L30: 2014-01-11 | M30: 2014-03-04 | N30: 52
A31: Button, Berna | B31: 4582 | C31: 2014-02-23 | D31: 2014-05-13 | E31: =D31-C31 -> 79 | J31: Bray, Errol | K31: 3869 | L31: 2014-04-17 | M31: 2014-06-07 | N31: 51
A32: Hook, Marisela | B32: 6475 | C32: 2014-03-04 | D32: 2014-05-21 | E32: =D32-C32 -> 78 | J32: Turk, Hildegarde | K32: 3851 | L32: 2014-05-07 | M32: 2014-06-27 | N32: 51
A33: Walter, Bernardina | B33: 5660 | C33: 2014-01-03 | D33: 2014-03-22 | E33: =D33-C33 -> 78 | J33: Horn, Elissa | K33: 1575 | L33: 2014-05-18 | M33: 2014-07-08 | N33: 51
A34: Dew, Kaye | B34: 3267 | C34: 2014-04-10 | D34: 2014-06-27 | E34: =D34-C34 -> 78 | J34: Toler, Evita | K34: 5022 | L34: 2014-05-17 | M34: 2014-07-06 | N34: 50
A35: Beebe, Leonila | B35: 3750 | C35: 2014-03-31 | D35: 2014-06-17 | E35: =D35-C35 -> 78 | J35: Harlow, Carmel | K35: 5513 | L35: 2014-02-28 | M35: 2014-04-19 | N35: 50
A36: Coombs, Rasheeda | B36: 4241 | C36: 2013-12-14 | D36: 2014-03-01 | E36: =D36-C36 -> 77 | J36: Hickey, Melina | K36: 3531 | L36: 2013-11-03 | M36: 2013-12-21 | N36: 48
A37: Finnegan, Marine | B37: 1025 | C37: 2014-03-29 | D37: 2014-06-14 | E37: =D37-C37 -> 77 | J37: Oconner, Glynda | K37: 3469 | L37: 2014-04-22 | M37: 2014-06-09 | N37: 48
A38: Mckinley, Gay | B38: 584 | C38: 2014-03-21 | D38: 2014-06-06 | E38: =D38-C38 -> 77 | J38: Pollack, Latesha | K38: 1059 | L38: 2014-05-18 | M38: 2014-07-05 | N38: 48
A39: Ashe, Beata | B39: 2743 | C39: 2014-04-15 | D39: 2014-06-30 | E39: =D39-C39 -> 76 | J39: Ho, Sylvie | K39: 4292 | L39: 2013-11-04 | M39: 2013-12-21 | N39: 47
A40: Bittner, Kiyoko | B40: 5185 | C40: 2014-03-11 | D40: 2014-05-25 | E40: =D40-C40 -> 75 | J40: Ervin, Lavern | K40: 1025 | L40: 2014-04-02 | M40: 2014-05-19 | N40: 47
A41: Nieves, Treva | B41: 4303 | C41: 2014-04-17 | D41: 2014-07-01 | E41: =D41-C41 -> 75 | J41: Potts, Burma | K41: 1939 | L41: 2014-02-05 | M41: 2014-03-23 | N41: 46
A42: Stoddard, Sondra | B42: 3095 | C42: 2014-04-02 | D42: 2014-06-16 | E42: =D42-C42 -> 75 | J42: Picard, Margherita | K42: 4596 | L42: 2014-05-26 | M42: 2014-07-11 | N42: 46
A43: Angulo, Dierdre | B43: 6260 | C43: 2014-03-30 | D43: 2014-06-12 | E43: =D43-C43 -> 74 | J43: Sander, Carin | K43: 6391 | L43: 2014-04-29 | M43: 2014-06-14 | N43: 46
A44: Taft, Lala | B44: 329 | C44: 2014-04-03 | D44: 2014-06-16 | E44: =D44-C44 -> 74 | J44: Epps, Eldora | K44: 1712 | L44: 2014-04-25 | M44: 2014-06-10 | N44: 46
A45: Scanlon, Catherina | B45: 3458 | C45: 2014-03-03 | D45: 2014-05-15 | E45: =D45-C45 -> 73 | J45: Shields, Madie | K45: 13 | L45: 2014-03-17 | M45: 2014-05-02 | N45: 46
A46: Roach, Allena | B46: 5443 | C46: 2014-03-14 | D46: 2014-05-25 | E46: =D46-C46 -> 72 | J46: Dailey, Joel | K46: 1099 | L46: 2014-03-24 | M46: 2014-05-08 | N46: 45
A47: Irby, Tama | B47: 3846 | C47: 2013-11-02 | D47: 2014-01-12 | E47: =D47-C47 -> 71 | J47: Herrick, Jae | K47: 4013 | L47: 2014-01-21 | M47: 2014-03-07 | N47: 45
A48: Hilliard, Dion | B48: 4254 | C48: 2014-03-15 | D48: 2014-05-25 | E48: =D48-C48 -> 71 | J48: Newby, Kiersten | K48: 1011 | L48: 2014-03-14 | M48: 2014-04-27 | N48: 44
A49: Honeycutt, Lane | B49: 4806 | C49: 2014-03-15 | D49: 2014-05-24 | E49: =D49-C49 -> 70 | J49: Watt, Edward | K49: 3994 | L49: 2014-05-11 | M49: 2014-06-24 | N49: 44
A50: Byrnes, Edmundo | B50: 2476 | C50: 2014-02-27 | D50: 2014-05-08 | E50: =D50-C50 -> 70 | J50: Damico, Ammie | K50: 4335 | L50: 2014-06-01 | M50: 2014-07-15 | N50: 44
A51: Mckeown, Aisha | B51: 3846 | C51: 2014-02-09 | D51: 2014-04-20 | E51: =D51-C51 -> 70 | J51: Caruso, Ninfa | K51: 3774 | L51: 2014-04-27 | M51: 2014-06-09 | N51: 43
A52: Clanton, Kendall | B52: 2508 | C52: 2014-02-17 | D52: 2014-04-28 | E52: =D52-C52 -> 70 | J52: Burrows, Merideth | K52: 4393 | L52: 2014-05-15 | M52: 2014-06-27 | N52: 43
A53: Clemmons, Delpha | B53: 2034 | C53: 2014-05-08 | D53: 2014-07-16 | E53: =D53-C53 -> 69 | J53: Patino, Joseph | K53: 2686 | L53: 2014-04-18 | M53: 2014-05-31 | N53: 43
A54: Breeden, Karol | B54: 2095 | C54: 2014-03-23 | D54: 2014-05-31 | E54: =D54-C54 -> 69 | J54: Lavigne, Zetta | K54: 5594 | L54: 2014-03-16 | M54: 2014-04-28 | N54: 43
A55: Fournier, Dorene | B55: 4471 | C55: 2014-04-30 | D55: 2014-07-08 | E55: =D55-C55 -> 69 | J55: Varner, Alba | K55: 5636 | L55: 2014-01-12 | M55: 2014-02-24 | N55: 43
A56: Elston, Shara | B56: 4993 | C56: 2014-04-10 | D56: 2014-06-18 | E56: =D56-C56 -> 69 | J56: Minor, Ranee | K56: 5264 | L56: 2014-05-12 | M56: 2014-06-23 | N56: 42
A57: Kyle, Addie | B57: 205 | C57: 2014-04-26 | D57: 2014-07-04 | E57: =D57-C57 -> 69 | J57: Littleton, Izola | K57: 2220 | L57: 2014-03-01 | M57: 2014-04-12 | N57: 42
A58: Baca, Tressa | B58: 175 | C58: 2013-10-06 | D58: 2013-12-14 | E58: =D58-C58 -> 69 | J58: Parson, Terrilyn | K58: 5444 | L58: 2014-04-04 | M58: 2014-05-16 | N58: 42
A59: Ezell, Scarlet | B59: 5955 | C59: 2014-03-06 | D59: 2014-05-14 | E59: =D59-C59 -> 69 | J59: Pierson, Effie | K59: 1927 | L59: 2014-03-05 | M59: 2014-04-16 | N59: 42
A60: Harlow, Gilda | B60: 6267 | C60: 2014-01-16 | D60: 2014-03-25 | E60: =D60-C60 -> 68 | J60: Mccain, Elba | K60: 6448 | L60: 2013-10-05 | M60: 2013-11-16 | N60: 42
A61: Blanchard, Rubi | B61: 3450 | C61: 2014-04-25 | D61: 2014-07-01 | E61: =D61-C61 -> 67 | J61: Epstein, Lakia | K61: 3821 | L61: 2014-04-20 | M61: 2014-05-31 | N61: 41
A62: Mosier, Maude | B62: 4378 | C62: 2013-11-29 | D62: 2014-02-03 | E62: =D62-C62 -> 66 | J62: Rutledge, Apryl | K62: 4869 | L62: 2014-04-22 | M62: 2014-06-02 | N62: 41
A63: Whitman, Donita | B63: 311 | C63: 2014-03-18 | D63: 2014-05-23 | E63: =D63-C63 -> 66 | J63: Lance, Mitsue | K63: 1704 | L63: 2014-01-21 | M63: 2014-03-03 | N63: 41
A64: Johns, Yuonne | B64: 1414 | C64: 2013-11-25 | D64: 2014-01-30 | E64: =D64-C64 -> 66 | J64: Hutchens, Maryanne | K64: 1651 | L64: 2014-05-23 | M64: 2014-07-02 | N64: 40
A65: Pride, Adolfo | B65: 448 | C65: 2014-04-05 | D65: 2014-06-10 | E65: =D65-C65 -> 66 | J65: Cass, Anthony | K65: 2015 | L65: 2014-05-04 | M65: 2014-06-13 | N65: 40
A66: Bonilla, Michel | B66: 5394 | C66: 2013-12-31 | D66: 2014-03-07 | E66: =D66-C66 -> 66 | J66: Paquette, Cathey | K66: 2412 | L66: 2014-04-29 | M66: 2014-06-08 | N66: 40
A67: Timmons, Devon | B67: 3480 | C67: 2014-04-24 | D67: 2014-06-29 | E67: =D67-C67 -> 66 | J67: Shah, Lorenza | K67: 2656 | L67: 2014-05-23 | M67: 2014-07-01 | N67: 39
A68: Spooner, Maryln | B68: 1530 | C68: 2014-05-30 | D68: 2014-08-04 | E68: =D68-C68 -> 66 | J68: Gold, Theola | K68: 715 | L68: 2014-01-05 | M68: 2014-02-13 | N68: 39
A69: Mcconnell, Jonna | B69: 1499 | C69: 2014-01-05 | D69: 2014-03-12 | E69: =D69-C69 -> 66 | J69: Oconnor, Nery | K69: 2006 | L69: 2014-03-29 | M69: 2014-05-06 | N69: 38
A70: Muniz, Domitila | B70: 4272 | C70: 2014-05-29 | D70: 2014-08-02 | E70: =D70-C70 -> 65 | J70: Adam, Elmer | K70: 3920 | L70: 2014-05-14 | M70: 2014-06-21 | N70: 38
A71: Coffin, Wai | B71: 3147 | C71: 2014-05-17 | D71: 2014-07-21 | E71: =D71-C71 -> 65 | J71: Heaton, Lin | K71: 4377 | L71: 2014-05-28 | M71: 2014-07-05 | N71: 38
A72: Roden, Marylee | B72: 5077 | C72: 2014-05-30 | D72: 2014-08-03 | E72: =D72-C72 -> 65 | J72: Marcus, Iona | K72: 3080 | L72: 2014-03-23 | M72: 2014-04-30 | N72: 38
A73: Pak, Dollie | B73: 1644 | C73: 2014-04-16 | D73: 2014-06-19 | E73: =D73-C73 -> 64 | J73: Fuchs, Anneliese | K73: 523 | L73: 2014-03-27 | M73: 2014-05-04 | N73: 38
A74: Casper, Senaida | B74: 2168 | C74: 2014-03-11 | D74: 2014-05-13 | E74: =D74-C74 -> 63 | J74: Dupont, Mica | K74: 125 | L74: 2014-01-30 | M74: 2014-03-08 | N74: 37
A75: Glynn, Louis | B75: 2995 | C75: 2014-03-27 | D75: 2014-05-29 | E75: =D75-C75 -> 63 | J75: Mcreynolds, Fern | K75: 1641 | L75: 2014-03-24 | M75: 2014-04-30 | N75: 37
A76: Easter, Valarie | B76: 3496 | C76: 2014-04-25 | D76: 2014-06-27 | E76: =D76-C76 -> 63 | J76: Gilman, Romona | K76: 970 | L76: 2013-12-11 | M76: 2014-01-17 | N76: 37
A77: Eldridge, Bridgett | B77: 4280 | C77: 2014-05-11 | D77: 2014-07-13 | E77: =D77-C77 -> 63 | J77: Doty, Zoila | K77: 3366 | L77: 2014-01-06 | M77: 2014-02-12 | N77: 37
A78: Grimes, Isis | B78: 4694 | C78: 2014-01-24 | D78: 2014-03-28 | E78: =D78-C78 -> 63 | J78: Creel, Jodee | K78: 4158 | L78: 2014-04-24 | M78: 2014-05-31 | N78: 37
A79: Marvin, Maybell | B79: 1356 | C79: 2013-12-27 | D79: 2014-02-28 | E79: =D79-C79 -> 63 | J79: Shank, Sebastian | K79: 3612 | L79: 2014-04-08 | M79: 2014-05-14 | N79: 36
A80: Hemphill, Monnie | B80: 5836 | C80: 2013-12-13 | D80: 2014-02-13 | E80: =D80-C80 -> 62 | J80: Dancy, Deena | K80: 2449 | L80: 2014-03-07 | M80: 2014-04-12 | N80: 36
A81: Benner, Valda | B81: 1956 | C81: 2014-03-04 | D81: 2014-05-05 | E81: =D81-C81 -> 62 | J81: Seidel, Maren | K81: 879 | L81: 2014-04-17 | M81: 2014-05-23 | N81: 36
A82: Hickson, Margareta | B82: 2972 | C82: 2014-05-18 | D82: 2014-07-18 | E82: =D82-C82 -> 61 | J82: Hindman, Dorthey | K82: 2647 | L82: 2014-04-25 | M82: 2014-05-30 | N82: 35
A83: Parr, Consuela | B83: 2246 | C83: 2014-01-24 | D83: 2014-03-26 | E83: =D83-C83 -> 61 | J83: Hartmann, Samual | K83: 5171 | L83: 2014-03-10 | M83: 2014-04-14 | N83: 35
A84: Dumas, Genie | B84: 4559 | C84: 2014-03-01 | D84: 2014-04-30 | E84: =D84-C84 -> 60 | J84: Fitzpatrick, Hunter | K84: 5603 | L84: 2014-04-29 | M84: 2014-06-03 | N84: 35
A85: Gillen, Andree | B85: 4033 | C85: 2014-05-13 | D85: 2014-07-12 | E85: =D85-C85 -> 60 | J85: Hancock, Richie | K85: 4841 | L85: 2014-05-31 | M85: 2014-07-04 | N85: 34
A86: Eckert, Xiomara | B86: 3741 | C86: 2014-03-04 | D86: 2014-05-03 | E86: =D86-C86 -> 60 | J86: Byers, Natisha | K86: 2940 | L86: 2014-04-04 | M86: 2014-05-07 | N86: 33
A87: Cortes, Petrina | B87: 4477 | C87: 2014-05-11 | D87: 2014-07-10 | E87: =D87-C87 -> 60 | J87: Schrader, Numbers | K87: 2138 | L87: 2014-02-25 | M87: 2014-03-30 | N87: 33
A88: Conners, Julissa | B88: 2780 | C88: 2014-02-02 | D88: 2014-04-03 | E88: =D88-C88 -> 60 | J88: Crump, Glinda | K88: 2257 | L88: 2014-05-05 | M88: 2014-06-07 | N88: 33
A89: Tobin, Dalila | B89: 1098 | C89: 2014-05-05 | D89: 2014-07-04 | E89: =D89-C89 -> 60 | J89: Rubin, Reynaldo | K89: 6493 | L89: 2014-04-17 | M89: 2014-05-20 | N89: 33
A90: Loftin, Burton | B90: 6383 | C90: 2014-05-30 | D90: 2014-07-28 | E90: =D90-C90 -> 59 | J90: Barden, Billye | K90: 4044 | L90: 2014-04-05 | M90: 2014-05-08 | N90: 33
A91: Jeffery, Alaine | B91: 6372 | C91: 2014-04-07 | D91: 2014-06-05 | E91: =D91-C91 -> 59 | J91: Snow, Tamera | K91: 2132 | L91: 2014-04-12 | M91: 2014-05-15 | N91: 33
A92: Torrence, Armida | B92: 2031 | C92: 2014-03-10 | D92: 2014-05-08 | E92: =D92-C92 -> 59 | J92: Monahan, Tanika | K92: 1601 | L92: 2014-04-25 | M92: 2014-05-28 | N92: 33
A93: Rayford, Karol | B93: 5857 | C93: 2014-06-01 | D93: 2014-07-30 | E93: =D93-C93 -> 59 | J93: Spann, Randi | K93: 4101 | L93: 2014-05-29 | M93: 2014-07-01 | N93: 33
A94: Larose, Gwyneth | B94: 3815 | C94: 2014-03-02 | D94: 2014-04-29 | E94: =D94-C94 -> 58 | J94: Lemieux, Kiana | K94: 873 | L94: 2014-01-16 | M94: 2014-02-17 | N94: 32
A95: Wick, Tamatha | B95: 3094 | C95: 2014-01-26 | D95: 2014-03-25 | E95: =D95-C95 -> 58 | J95: Schubert, Gwenn | K95: 6497 | L95: 2014-03-09 | M95: 2014-04-10 | N95: 32
A96: Gallardo, Armida | B96: 855 | C96: 2014-03-30 | D96: 2014-05-27 | E96: =D96-C96 -> 58 | J96: Leary, Janelle | K96: 5027 | L96: 2014-03-17 | M96: 2014-04-18 | N96: 32
A97: Rapp, Jeni | B97: 245 | C97: 2014-04-09 | D97: 2014-06-05 | E97: =D97-C97 -> 57 | J97: Mathias, Debrah | K97: 1416 | L97: 2013-10-10 | M97: 2013-11-11 | N97: 32
A98: Larsen, Kaila | B98: 1441 | C98: 2014-06-01 | D98: 2014-07-28 | E98: =D98-C98 -> 57 | J98: Freedman, Kathlyn | K98: 4562 | L98: 2013-12-23 | M98: 2014-01-24 | N98: 32
A99: Hardison, Kacy | B99: 3452 | C99: 2014-04-22 | D99: 2014-06-18 | E99: =D99-C99 -> 57 | J99: Allred, Elina | K99: 2846 | L99: 2014-04-16 | M99: 2014-05-17 | N99: 31
A100: Buffington, Fonda | B100: 1184 | C100: 2014-05-28 | D100: 2014-07-24 | E100: =D100-C100 -> 57 | J100: Shah, Celsa | K100: 1411 | L100: 2014-01-02 | M100: 2014-02-02 | N100: 31
A101: Carey, Kristan | B101: 5095 | C101: 2014-04-03 | D101: 2014-05-30 | E101: =D101-C101 -> 57 | J101: Breen, Dakota | K101: 1752 | L101: 2014-05-18 | M101: 2014-06-18 | N101: 31
A102: Vallejo, Ophelia | B102: 867 | C102: 2014-03-19 | D102: 2014-05-15 | E102: =D102-C102 -> 57
A103: Whited, Un | B103: 4797 | C103: 2013-10-10 | D103: 2013-12-05 | E103: =D103-C103 -> 56
A104: Arnett, Helaine | B104: 777 | C104: 2014-03-23 | D104: 2014-05-18 | E104: =D104-C104 -> 56
A105: Delossantos, Son | B105: 61 | C105: 2014-05-16 | D105: 2014-07-11 | E105: =D105-C105 -> 56
A106: Spalding, Elisha | B106: 3522 | C106: 2014-04-09 | D106: 2014-06-04 | E106: =D106-C106 -> 56
A107: Nutt, Altagracia | B107: 2044 | C107: 2014-05-29 | D107: 2014-07-22 | E107: =D107-C107 -> 54
A108: Joy, Vern | B108: 5658 | C108: 2014-05-08 | D108: 2014-07-01 | E108: =D108-C108 -> 54
A109: Pack, Bradly | B109: 1027 | C109: 2014-04-26 | D109: 2014-06-18 | E109: =D109-C109 -> 53
A110: Paz, Maia | B110: 4294 | C110: 2014-04-22 | D110: 2014-06-14 | E110: =D110-C110 -> 53
A111: Tillman, Yasmine | B111: 4718 | C111: 2014-05-09 | D111: 2014-07-01 | E111: =D111-C111 -> 53
A112: Brant, Elouise | B112: 6476 | C112: 2014-01-11 | D112: 2014-03-04 | E112: =D112-C112 -> 52
A113: Bray, Errol | B113: 3869 | C113: 2014-04-17 | D113: 2014-06-07 | E113: =D113-C113 -> 51
A114: Turk, Hildegarde | B114: 3851 | C114: 2014-05-07 | D114: 2014-06-27 | E114: =D114-C114 -> 51
A115: Horn, Elissa | B115: 1575 | C115: 2014-05-18 | D115: 2014-07-08 | E115: =D115-C115 -> 51
A116: Toler, Evita | B116: 5022 | C116: 2014-05-17 | D116: 2014-07-06 | E116: =D116-C116 -> 50
A117: Harlow, Carmel | B117: 5513 | C117: 2014-02-28 | D117: 2014-04-19 | E117: =D117-C117 -> 50
A118: Hickey, Melina | B118: 3531 | C118: 2013-11-03 | D118: 2013-12-21 | E118: =D118-C118 -> 48
A119: Oconner, Glynda | B119: 3469 | C119: 2014-04-22 | D119: 2014-06-09 | E119: =D119-C119 -> 48
A120: Pollack, Latesha | B120: 1059 | C120: 2014-05-18 | D120: 2014-07-05 | E120: =D120-C120 -> 48
A121: Ho, Sylvie | B121: 4292 | C121: 2013-11-04 | D121: 2013-12-21 | E121: =D121-C121 -> 47
A122: Ervin, Lavern | B122: 1025 | C122: 2014-04-02 | D122: 2014-05-19 | E122: =D122-C122 -> 47
A123: Potts, Burma | B123: 1939 | C123: 2014-02-05 | D123: 2014-03-23 | E123: =D123-C123 -> 46
A124: Picard, Margherita | B124: 4596 | C124: 2014-05-26 | D124: 2014-07-11 | E124: =D124-C124 -> 46
A125: Sander, Carin | B125: 6391 | C125: 2014-04-29 | D125: 2014-06-14 | E125: =D125-C125 -> 46
A126: Epps, Eldora | B126: 1712 | C126: 2014-04-25 | D126: 2014-06-10 | E126: =D126-C126 -> 46
A127: Shields, Madie | B127: 13 | C127: 2014-03-17 | D127: 2014-05-02 | E127: =D127-C127 -> 46
A128: Dailey, Joel | B128: 1099 | C128: 2014-03-24 | D128: 2014-05-08 | E128: =D128-C128 -> 45
A129: Herrick, Jae | B129: 4013 | C129: 2014-01-21 | D129: 2014-03-07 | E129: =D129-C129 -> 45
A130: Newby, Kiersten | B130: 1011 | C130: 2014-03-14 | D130: 2014-04-27 | E130: =D130-C130 -> 44
A131: Watt, Edward | B131: 3994 | C131: 2014-05-11 | D131: 2014-06-24 | E131: =D131-C131 -> 44
A132: Damico, Ammie | B132: 4335 | C132: 2014-06-01 | D132: 2014-07-15 | E132: =D132-C132 -> 44
A133: Caruso, Ninfa | B133: 3774 | C133: 2014-04-27 | D133: 2014-06-09 | E133: =D133-C133 -> 43
A134: Burrows, Merideth | B134: 4393 | C134: 2014-05-15 | D134: 2014-06-27 | E134: =D134-C134 -> 43
A135: Patino, Joseph | B135: 2686 | C135: 2014-04-18 | D135: 2014-05-31 | E135: =D135-C135 -> 43
A136: Lavigne, Zetta | B136: 5594 | C136: 2014-03-16 | D136: 2014-04-28 | E136: =D136-C136 -> 43
A137: Varner, Alba | B137: 5636 | C137: 2014-01-12 | D137: 2014-02-24 | E137: =D137-C137 -> 43
A138: Minor, Ranee | B138: 5264 | C138: 2014-05-12 | D138: 2014-06-23 | E138: =D138-C138 -> 42
A139: Littleton, Izola | B139: 2220 | C139: 2014-03-01 | D139: 2014-04-12 | E139: =D139-C139 -> 42
A140: Parson, Terrilyn | B140: 5444 | C140: 2014-04-04 | D140: 2014-05-16 | E140: =D140-C140 -> 42
A141: Pierson, Effie | B141: 1927 | C141: 2014-03-05 | D141: 2014-04-16 | E141: =D141-C141 -> 42
A142: Mccain, Elba | B142: 6448 | C142: 2013-10-05 | D142: 2013-11-16 | E142: =D142-C142 -> 42
A143: Epstein, Lakia | B143: 3821 | C143: 2014-04-20 | D143: 2014-05-31 | E143: =D143-C143 -> 41
A144: Rutledge, Apryl | B144: 4869 | C144: 2014-04-22 | D144: 2014-06-02 | E144: =D144-C144 -> 41
A145: Lance, Mitsue | B145: 1704 | C145: 2014-01-21 | D145: 2014-03-03 | E145: =D145-C145 -> 41
A146: Hutchens, Maryanne | B146: 1651 | C146: 2014-05-23 | D146: 2014-07-02 | E146: =D146-C146 -> 40
A147: Cass, Anthony | B147: 2015 | C147: 2014-05-04 | D147: 2014-06-13 | E147: =D147-C147 -> 40
A148: Paquette, Cathey | B148: 2412 | C148: 2014-04-29 | D148: 2014-06-08 | E148: =D148-C148 -> 40
A149: Shah, Lorenza | B149: 2656 | C149: 2014-05-23 | D149: 2014-07-01 | E149: =D149-C149 -> 39
A150: Gold, Theola | B150: 715 | C150: 2014-01-05 | D150: 2014-02-13 | E150: =D150-C150 -> 39
A151: Oconnor, Nery | B151: 2006 | C151: 2014-03-29 | D151: 2014-05-06 | E151: =D151-C151 -> 38
A152: Adam, Elmer | B152: 3920 | C152: 2014-05-14 | D152: 2014-06-21 | E152: =D152-C152 -> 38
A153: Heaton, Lin | B153: 4377 | C153: 2014-05-28 | D153: 2014-07-05 | E153: =D153-C153 -> 38
A154: Marcus, Iona | B154: 3080 | C154: 2014-03-23 | D154: 2014-04-30 | E154: =D154-C154 -> 38
A155: Fuchs, Anneliese | B155: 523 | C155: 2014-03-27 | D155: 2014-05-04 | E155: =D155-C155 -> 38
A156: Dupont, Mica | B156: 125 | C156: 2014-01-30 | D156: 2014-03-08 | E156: =D156-C156 -> 37
A157: Mcreynolds, Fern | B157: 1641 | C157: 2014-03-24 | D157: 2014-04-30 | E157: =D157-C157 -> 37
A158: Gilman, Romona | B158: 970 | C158: 2013-12-11 | D158: 2014-01-17 | E158: =D158-C158 -> 37
A159: Doty, Zoila | B159: 3366 | C159: 2014-01-06 | D159: 2014-02-12 | E159: =D159-C159 -> 37
A160: Creel, Jodee | B160: 4158 | C160: 2014-04-24 | D160: 2014-05-31 | E160: =D160-C160 -> 37
A161: Shank, Sebastian | B161: 3612 | C161: 2014-04-08 | D161: 2014-05-14 | E161: =D161-C161 -> 36
A162: Dancy, Deena | B162: 2449 | C162: 2014-03-07 | D162: 2014-04-12 | E162: =D162-C162 -> 36
A163: Seidel, Maren | B163: 879 | C163: 2014-04-17 | D163: 2014-05-23 | E163: =D163-C163 -> 36
A164: Hindman, Dorthey | B164: 2647 | C164: 2014-04-25 | D164: 2014-05-30 | E164: =D164-C164 -> 35
A165: Hartmann, Samual | B165: 5171 | C165: 2014-03-10 | D165: 2014-04-14 | E165: =D165-C165 -> 35
A166: Fitzpatrick, Hunter | B166: 5603 | C166: 2014-04-29 | D166: 2014-06-03 | E166: =D166-C166 -> 35
A167: Hancock, Richie | B167: 4841 | C167: 2014-05-31 | D167: 2014-07-04 | E167: =D167-C167 -> 34
A168: Byers, Natisha | B168: 2940 | C168: 2014-04-04 | D168: 2014-05-07 | E168: =D168-C168 -> 33
A169: Schrader, Numbers | B169: 2138 | C169: 2014-02-25 | D169: 2014-03-30 | E169: =D169-C169 -> 33
A170: Crump, Glinda | B170: 2257 | C170: 2014-05-05 | D170: 2014-06-07 | E170: =D170-C170 -> 33
A171: Rubin, Reynaldo | B171: 6493 | C171: 2014-04-17 | D171: 2014-05-20 | E171: =D171-C171 -> 33
A172: Barden, Billye | B172: 4044 | C172: 2014-04-05 | D172: 2014-05-08 | E172: =D172-C172 -> 33
A173: Snow, Tamera | B173: 2132 | C173: 2014-04-12 | D173: 2014-05-15 | E173: =D173-C173 -> 33
A174: Monahan, Tanika | B174: 1601 | C174: 2014-04-25 | D174: 2014-05-28 | E174: =D174-C174 -> 33
A175: Spann, Randi | B175: 4101 | C175: 2014-05-29 | D175: 2014-07-01 | E175: =D175-C175 -> 33
A176: Lemieux, Kiana | B176: 873 | C176: 2014-01-16 | D176: 2014-02-17 | E176: =D176-C176 -> 32
A177: Schubert, Gwenn | B177: 6497 | C177: 2014-03-09 | D177: 2014-04-10 | E177: =D177-C177 -> 32
A178: Leary, Janelle | B178: 5027 | C178: 2014-03-17 | D178: 2014-04-18 | E178: =D178-C178 -> 32
A179: Mathias, Debrah | B179: 1416 | C179: 2013-10-10 | D179: 2013-11-11 | E179: =D179-C179 -> 32
A180: Freedman, Kathlyn | B180: 4562 | C180: 2013-12-23 | D180: 2014-01-24 | E180: =D180-C180 -> 32
A181: Allred, Elina | B181: 2846 | C181: 2014-04-16 | D181: 2014-05-17 | E181: =D181-C181 -> 31
A182: Shah, Celsa | B182: 1411 | C182: 2014-01-02 | D182: 2014-02-02 | E182: =D182-C182 -> 31
A183: Breen, Dakota | B183: 1752 | C183: 2014-05-18 | D183: 2014-06-18 | E183: =D183-C183 -> 31
A184: Hummel, Joya | B184: 3030 | C184: 2014-04-07 | D184: 2014-05-07 | E184: =D184-C184 -> 30
A185: Haight, Darrick | B185: 4343 | C185: 2014-04-13 | D185: 2014-05-13 | E185: =D185-C185 -> 30
A186: Hatton, Faustina | B186: 5513 | C186: 2014-05-01 | D186: 2014-05-31 | E186: =D186-C186 -> 30
A187: Carlisle, Cameron | B187: 4416 | C187: 2014-03-31 | D187: 2014-04-30 | E187: =D187-C187 -> 30
A188: Mcintosh, Janeth | B188: 1017 | C188: 2014-01-29 | D188: 2014-02-26 | E188: =D188-C188 -> 28
A189: Boyles, Ilda | B189: 5741 | C189: 2014-04-12 | D189: 2014-05-09 | E189: =D189-C189 -> 27
A190: Galindo, Retha | B190: 1251 | C190: 2014-01-21 | D190: 2014-02-16 | E190: =D190-C190 -> 26
A191: Meek, Exie | B191: 4107 | C191: 2014-03-28 | D191: 2014-04-23 | E191: =D191-C191 -> 26
A192: Grooms, Otilia | B192: 1070 | C192: 2014-04-19 | D192: 2014-05-14 | E192: =D192-C192 -> 25
A193: Smiley, Brunilda | B193: 282 | C193: 2014-01-21 | D193: 2014-02-14 | E193: =D193-C193 -> 24
A194: Mccrary, Merlyn | B194: 4569 | C194: 2014-01-26 | D194: 2014-02-18 | E194: =D194-C194 -> 23
A195: Eldridge, Beckie | B195: 2932 | C195: 2014-02-27 | D195: 2014-03-22 | E195: =D195-C195 -> 23
A196: Tolbert, Yoshiko | B196: 1891 | C196: 2014-04-08 | D196: 2014-04-30 | E196: =D196-C196 -> 22
A197: Kinard, Laquita | B197: 3459 | C197: 2014-02-28 | D197: 2014-03-22 | E197: =D197-C197 -> 22
A198: Perreault, Angelique | B198: 2402 | C198: 2014-01-06 | D198: 2014-01-28 | E198: =D198-C198 -> 22
A199: Pereira, Otilia | B199: 6470 | C199: 2014-01-18 | D199: 2014-02-09 | E199: =D199-C199 -> 22
A200: Moe, Christi | B200: 4914 | C200: 2014-02-12 | D200: 2014-03-05 | E200: =D200-C200 -> 21
... 7 more rows

Sheet 1131
A1: Excel Magic Trick 1128: Aging Accounts Receivable Reports On Multiple Sheets With Array Formula
A2: Excel Magic Trick 1129: Aging Accounts Receivable Reports Using Slicer &Excel Table Feature
A3: Excel Magic Trick 1130: Aging Accounts Receivable Reports Using Advanced Filter
A4: Excel Magic Trick 1131: Aging Accounts Receivable Reports On Multiple Sheets With PivotTable
A7: Customer | B7: InvoiceAmount | C7: InvoiceDate | D7: Due Date | H7: Lookup1 | I7: Report Category | J7: Lower | K7: Upper
A8: Mclean, Eldora | B8: 1929 | C8: 2013-10-14 | D8: 2014-03-10 | J8: 1 | K8: 30
A9: Potts, Burma | B9: 1939 | C9: 2014-02-05 | D9: 2014-03-23 | J9: 31 | K9: 60
A10: Caruso, Ninfa | B10: 3774 | C10: 2014-04-27 | D10: 2014-06-09 | J10: 61 | K10: 90
A11: Mosier, Maude | B11: 4378 | C11: 2013-11-29 | D11: 2014-02-03 | J11: 90 | K11: 365
A12: Casper, Senaida | B12: 2168 | C12: 2014-03-11 | D12: 2014-05-13
A13: Lemieux, Kiana | B13: 873 | C13: 2014-01-16 | D13: 2014-02-17
A14: Cousins, Jeniffer | B14: 6013 | C14: 2013-11-28 | D14: 2014-03-18
A15: Moe, Christi | B15: 4914 | C15: 2014-02-12 | D15: 2014-03-05
A16: Rapp, Jeni | B16: 245 | C16: 2014-04-09 | D16: 2014-06-05
A17: Whitman, Donita | B17: 311 | C17: 2014-03-18 | D17: 2014-05-23
A18: Galindo, Retha | B18: 1251 | C18: 2014-01-21 | D18: 2014-02-16
A19: Mcintosh, Janeth | B19: 1017 | C19: 2014-01-29 | D19: 2014-02-26
A20: Brant, Elouise | B20: 6476 | C20: 2014-01-11 | D20: 2014-03-04
A21: Oconnor, Nery | B21: 2006 | C21: 2014-03-29 | D21: 2014-05-06
A22: Larsen, Kaila | B22: 1441 | C22: 2014-06-01 | D22: 2014-07-28
A23: Brackett, Curtis | B23: 4850 | C23: 2014-02-27 | D23: 2014-03-20
A24: Glynn, Louis | B24: 2995 | C24: 2014-03-27 | D24: 2014-05-29
A25: Angulo, Dierdre | B25: 6260 | C25: 2014-03-30 | D25: 2014-06-12
A26: Barger, Lorelei | B26: 1858 | C26: 2014-04-14 | D26: 2014-07-02
A27: Byers, Natisha | B27: 2940 | C27: 2014-04-04 | D27: 2014-05-07
A28: Whited, Un | B28: 4797 | C28: 2013-10-10 | D28: 2013-12-05
A29: Easter, Valarie | B29: 3496 | C29: 2014-04-25 | D29: 2014-06-27
A30: Tolbert, Yoshiko | B30: 1891 | C30: 2014-04-08 | D30: 2014-04-30
A31: Newby, Kiersten | B31: 1011 | C31: 2014-03-14 | D31: 2014-04-27
A32: Shank, Sebastian | B32: 3612 | C32: 2014-04-08 | D32: 2014-05-14
A33: Saldana, Venita | B33: 2486 | C33: 2014-04-12 | D33: 2014-06-30
A34: Ho, Sylvie | B34: 4292 | C34: 2013-11-04 | D34: 2013-12-21
A35: Schubert, Gwenn | B35: 6497 | C35: 2014-03-09 | D35: 2014-04-10
A36: Eldridge, Bridgett | B36: 4280 | C36: 2014-05-11 | D36: 2014-07-13
A37: Adam, Elmer | B37: 3920 | C37: 2014-05-14 | D37: 2014-06-21
A38: Allred, Elina | B38: 2846 | C38: 2014-04-16 | D38: 2014-05-17
A39: Arnett, Helaine | B39: 777 | C39: 2014-03-23 | D39: 2014-05-18
A40: Pack, Bradly | B40: 1027 | C40: 2014-04-26 | D40: 2014-06-18
A41: Hardison, Kacy | B41: 3452 | C41: 2014-04-22 | D41: 2014-06-18
A42: Zook, Corrinne | B42: 1718 | C42: 2013-10-04 | D42: 2014-01-09
A43: Pimentel, Cristopher | B43: 1290 | C43: 2013-11-30 | D43: 2014-04-21
A44: Grooms, Otilia | B44: 1070 | C44: 2014-04-19 | D44: 2014-05-14
A45: Buffington, Fonda | B45: 1184 | C45: 2014-05-28 | D45: 2014-07-24
A46: Loftin, Burton | B46: 6383 | C46: 2014-05-30 | D46: 2014-07-28
A47: Bray, Errol | B47: 3869 | C47: 2014-04-17 | D47: 2014-06-07
A48: Toler, Evita | B48: 5022 | C48: 2014-05-17 | D48: 2014-07-06
A49: Shah, Celsa | B49: 1411 | C49: 2014-01-02 | D49: 2014-02-02
A50: Turk, Hildegarde | B50: 3851 | C50: 2014-05-07 | D50: 2014-06-27
A51: Hummel, Joya | B51: 3030 | C51: 2014-04-07 | D51: 2014-05-07
A52: Scanlon, Catherina | B52: 3458 | C52: 2014-03-03 | D52: 2014-05-15
A53: Johns, Yuonne | B53: 1414 | C53: 2013-11-25 | D53: 2014-01-30
A54: Clemmons, Delpha | B54: 2034 | C54: 2014-05-08 | D54: 2014-07-16
A55: Heaton, Lin | B55: 4377 | C55: 2014-05-28 | D55: 2014-07-05
A56: Muniz, Domitila | B56: 4272 | C56: 2014-05-29 | D56: 2014-08-02
A57: Hickey, Melina | B57: 3531 | C57: 2013-11-03 | D57: 2013-12-21
A58: Dupont, Mica | B58: 125 | C58: 2014-01-30 | D58: 2014-03-08
A59: Hindman, Dorthey | B59: 2647 | C59: 2014-04-25 | D59: 2014-05-30
A60: Dumas, Genie | B60: 4559 | C60: 2014-03-01 | D60: 2014-04-30
A61: Leary, Janelle | B61: 5027 | C61: 2014-03-17 | D61: 2014-04-18
A62: Jeffery, Alaine | B62: 6372 | C62: 2014-04-07 | D62: 2014-06-05
A63: Bittner, Kiyoko | B63: 5185 | C63: 2014-03-11 | D63: 2014-05-25
A64: Marcus, Iona | B64: 3080 | C64: 2014-03-23 | D64: 2014-04-30
A65: Beals, Wyatt | B65: 5987 | C65: 2014-04-01 | D65: 2014-06-19
A66: Button, Berna | B66: 4582 | C66: 2014-02-23 | D66: 2014-05-13
A67: Gillen, Andree | B67: 4033 | C67: 2014-05-13 | D67: 2014-07-12
A68: Paz, Maia | B68: 4294 | C68: 2014-04-22 | D68: 2014-06-14
A69: Mathias, Debrah | B69: 1416 | C69: 2013-10-10 | D69: 2013-11-11
A70: Larose, Gwyneth | B70: 3815 | C70: 2014-03-02 | D70: 2014-04-29
A71: Roach, Allena | B71: 5443 | C71: 2014-03-14 | D71: 2014-05-25
A72: Carey, Kristan | B72: 5095 | C72: 2014-04-03 | D72: 2014-05-30
A73: Hickson, Margareta | B73: 2972 | C73: 2014-05-18 | D73: 2014-07-18
A74: Breeden, Karol | B74: 2095 | C74: 2014-03-23 | D74: 2014-05-31
A75: Hancock, Richie | B75: 4841 | C75: 2014-05-31 | D75: 2014-07-04
A76: Pride, Adolfo | B76: 448 | C76: 2014-04-05 | D76: 2014-06-10
A77: Boyles, Ilda | B77: 5741 | C77: 2014-04-12 | D77: 2014-05-09
A78: Kinard, Laquita | B78: 3459 | C78: 2014-02-28 | D78: 2014-03-22
A79: Ervin, Lavern | B79: 1025 | C79: 2014-04-02 | D79: 2014-05-19
A80: Watt, Edward | B80: 3994 | C80: 2014-05-11 | D80: 2014-06-24
A81: Fournier, Dorene | B81: 4471 | C81: 2014-04-30 | D81: 2014-07-08
A82: Hook, Marisela | B82: 6475 | C82: 2014-03-04 | D82: 2014-05-21
A83: Wofford, Reyes | B83: 4865 | C83: 2013-10-21 | D83: 2014-03-11
A84: Pak, Dollie | B84: 1644 | C84: 2014-04-16 | D84: 2014-06-19
A85: Torrence, Armida | B85: 2031 | C85: 2014-03-10 | D85: 2014-05-08
A86: Eckert, Xiomara | B86: 3741 | C86: 2014-03-04 | D86: 2014-05-03
A87: Minor, Ranee | B87: 5264 | C87: 2014-05-12 | D87: 2014-06-23
A88: Hutchens, Maryanne | B88: 1651 | C88: 2014-05-23 | D88: 2014-07-02
A89: Doughty, Teena | B89: 3457 | C89: 2014-04-10 | D89: 2014-06-29
A90: Hanley, Leatrice | B90: 2038 | C90: 2013-10-31 | D90: 2014-01-19
A91: Freedman, Kathlyn | B91: 4562 | C91: 2013-12-23 | D91: 2014-01-24
A92: Grimes, Isis | B92: 4694 | C92: 2014-01-24 | D92: 2014-03-28
A93: Perreault, Angelique | B93: 2402 | C93: 2014-01-06 | D93: 2014-01-28
A94: Walter, Bernardina | B94: 5660 | C94: 2014-01-03 | D94: 2014-03-22
A95: Parr, Consuela | B95: 2246 | C95: 2014-01-24 | D95: 2014-03-26
A96: Reece, Maisie | B96: 5914 | C96: 2014-02-17 | D96: 2014-05-08
A97: Harlow, Carmel | B97: 5513 | C97: 2014-02-28 | D97: 2014-04-19
A98: Honeycutt, Lane | B98: 4806 | C98: 2014-03-15 | D98: 2014-05-24
A99: Cass, Anthony | B99: 2015 | C99: 2014-05-04 | D99: 2014-06-13
A100: Steffen, Malinda | B100: 3282 | C100: 2013-10-01 | D100: 2014-02-23
A101: Mccrary, Merlyn | B101: 4569 | C101: 2014-01-26 | D101: 2014-02-18
A102: Littleton, Izola | B102: 2220 | C102: 2014-03-01 | D102: 2014-04-12
A103: Nieves, Treva | B103: 4303 | C103: 2014-04-17 | D103: 2014-07-01
A104: Mclean, Eldora | B104: 1929 | C104: 2013-10-14 | D104: 2014-03-10
A105: Dancy, Deena | B105: 2449 | C105: 2014-03-07 | D105: 2014-04-12
A106: Anglin, Thanh | B106: 1617 | C106: 2013-10-21 | D106: 2014-01-22
A107: Schrader, Numbers | B107: 2138 | C107: 2014-02-25 | D107: 2014-03-30
A108: Edgar, Dusti | B108: 5261 | C108: 2013-11-05 | D108: 2014-02-20
A109: Eldridge, Beckie | B109: 2932 | C109: 2014-02-27 | D109: 2014-03-22
A110: Picard, Margherita | B110: 4596 | C110: 2014-05-26 | D110: 2014-07-11
A111: Sander, Carin | B111: 6391 | C111: 2014-04-29 | D111: 2014-06-14
A112: Bonilla, Michel | B112: 5394 | C112: 2013-12-31 | D112: 2014-03-07
A113: Hartmann, Samual | B113: 5171 | C113: 2014-03-10 | D113: 2014-04-14
A114: Dew, Kaye | B114: 3267 | C114: 2014-04-10 | D114: 2014-06-27
A115: Fuchs, Anneliese | B115: 523 | C115: 2014-03-27 | D115: 2014-05-04
A116: Timmons, Devon | B116: 3480 | C116: 2014-04-24 | D116: 2014-06-29
A117: Gallagher, Damian | B117: 6121 | C117: 2014-04-19 | D117: 2014-05-10
A118: Coffin, Wai | B118: 3147 | C118: 2014-05-17 | D118: 2014-07-21
A119: Wick, Tamatha | B119: 3094 | C119: 2014-01-26 | D119: 2014-03-25
A120: Elston, Shara | B120: 4993 | C120: 2014-04-10 | D120: 2014-06-18
A121: Fitzpatrick, Hunter | B121: 5603 | C121: 2014-04-29 | D121: 2014-06-03
A122: Paquette, Cathey | B122: 2412 | C122: 2014-04-29 | D122: 2014-06-08
A123: Mcreynolds, Fern | B123: 1641 | C123: 2014-03-24 | D123: 2014-04-30
A124: Damico, Ammie | B124: 4335 | C124: 2014-06-01 | D124: 2014-07-15
A125: Gallardo, Armida | B125: 855 | C125: 2014-03-30 | D125: 2014-05-27
A126: Lentz, Rosana | B126: 1822 | C126: 2013-10-29 | D126: 2014-03-10
A127: Delossantos, Son | B127: 61 | C127: 2014-05-16 | D127: 2014-07-11
A128: Cortes, Petrina | B128: 4477 | C128: 2014-05-11 | D128: 2014-07-10
A129: Settle, Madelene | B129: 111 | C129: 2013-10-20 | D129: 2014-01-08
A130: Hibbard, Marceline | B130: 4904 | C130: 2013-12-21 | D130: 2014-05-09
A131: Seidel, Maren | B131: 879 | C131: 2014-04-17 | D131: 2014-05-23
A132: Oconner, Glynda | B132: 3469 | C132: 2014-04-22 | D132: 2014-06-09
A133: Spooner, Maryln | B133: 1530 | C133: 2014-05-30 | D133: 2014-08-04
A134: Briones, Adria | B134: 499 | C134: 2014-04-23 | D134: 2014-05-01
A135: Roden, Marylee | B135: 5077 | C135: 2014-05-30 | D135: 2014-08-03
A136: Valentin, Regena | B136: 5153 | C136: 2014-01-17 | D136: 2014-02-07
A137: Tillman, Yasmine | B137: 4718 | C137: 2014-05-09 | D137: 2014-07-01
A138: Burrows, Merideth | B138: 4393 | C138: 2014-05-15 | D138: 2014-06-27
A139: Shuman, Cordia | B139: 5681 | C139: 2013-12-07 | D139: 2014-03-20
A140: Crump, Glinda | B140: 2257 | C140: 2014-05-05 | D140: 2014-06-07
A141: Silverman, Delmar | B141: 2237 | C141: 2013-10-15 | D141: 2014-01-30
A142: Gilman, Romona | B142: 970 | C142: 2013-12-11 | D142: 2014-01-17
A143: Kyle, Addie | B143: 205 | C143: 2014-04-26 | D143: 2014-07-04
A144: Epps, Eldora | B144: 1712 | C144: 2014-04-25 | D144: 2014-06-10
A145: Smiley, Brunilda | B145: 282 | C145: 2014-01-21 | D145: 2014-02-14
A146: Pennell, Willena | B146: 1440 | C146: 2013-10-06 | D146: 2014-01-26
A147: Shah, Lorenza | B147: 2656 | C147: 2014-05-23 | D147: 2014-07-01
A148: Thigpen, Mia | B148: 5517 | C148: 2013-10-17 | D148: 2014-01-17
A149: Patino, Joseph | B149: 2686 | C149: 2014-04-18 | D149: 2014-05-31
A150: Coombs, Rasheeda | B150: 4241 | C150: 2013-12-14 | D150: 2014-03-01
A151: Epstein, Lakia | B151: 3821 | C151: 2014-04-20 | D151: 2014-05-31
A152: Dailey, Joel | B152: 1099 | C152: 2014-03-24 | D152: 2014-05-08
A153: Blanchard, Rubi | B153: 3450 | C153: 2014-04-25 | D153: 2014-07-01
A154: Nutt, Altagracia | B154: 2044 | C154: 2014-05-29 | D154: 2014-07-22
A155: Haight, Darrick | B155: 4343 | C155: 2014-04-13 | D155: 2014-05-13
A156: Hemphill, Monnie | B156: 5836 | C156: 2013-12-13 | D156: 2014-02-13
A157: Parson, Terrilyn | B157: 5444 | C157: 2014-04-04 | D157: 2014-05-16
A158: Mccall, Kasie | B158: 2633 | C158: 2014-04-23 | D158: 2014-05-12
A159: Pollack, Latesha | B159: 1059 | C159: 2014-05-18 | D159: 2014-07-05
A160: Rubin, Reynaldo | B160: 6493 | C160: 2014-04-17 | D160: 2014-05-20
A161: Brill, Evelynn | B161: 835 | C161: 2013-11-23 | D161: 2014-03-15
A162: Irby, Tama | B162: 3846 | C162: 2013-11-02 | D162: 2014-01-12
A163: Hatton, Faustina | B163: 5513 | C163: 2014-05-01 | D163: 2014-05-31
A164: Finnegan, Marine | B164: 1025 | C164: 2014-03-29 | D164: 2014-06-14
A165: Pierson, Effie | B165: 1927 | C165: 2014-03-05 | D165: 2014-04-16
A166: Ashe, Beata | B166: 2743 | C166: 2014-04-15 | D166: 2014-06-30
A167: Taft, Lala | B167: 329 | C167: 2014-04-03 | D167: 2014-06-16
A168: Rutledge, Apryl | B168: 4869 | C168: 2014-04-22 | D168: 2014-06-02
A169: Byrnes, Edmundo | B169: 2476 | C169: 2014-02-27 | D169: 2014-05-08
A170: Baca, Tressa | B170: 175 | C170: 2013-10-06 | D170: 2013-12-14
A171: Mckinley, Gay | B171: 584 | C171: 2014-03-21 | D171: 2014-06-06
A172: Mckeown, Aisha | B172: 3846 | C172: 2014-02-09 | D172: 2014-04-20
A173: Ezell, Scarlet | B173: 5955 | C173: 2014-03-06 | D173: 2014-05-14
A174: Conners, Julissa | B174: 2780 | C174: 2014-02-02 | D174: 2014-04-03
A175: Herrick, Jae | B175: 4013 | C175: 2014-01-21 | D175: 2014-03-07
A176: Pereira, Otilia | B176: 6470 | C176: 2014-01-18 | D176: 2014-02-09
A177: Hilliard, Dion | B177: 4254 | C177: 2014-03-15 | D177: 2014-05-25
A178: Rayford, Karol | B178: 5857 | C178: 2014-06-01 | D178: 2014-07-30
A179: Lavigne, Zetta | B179: 5594 | C179: 2014-03-16 | D179: 2014-04-28
A180: Doty, Zoila | B180: 3366 | C180: 2014-01-06 | D180: 2014-02-12
A181: Bedford, Michael | B181: 137 | C181: 2014-04-23 | D181: 2014-04-29
A182: Barden, Billye | B182: 4044 | C182: 2014-04-05 | D182: 2014-05-08
A183: Stoddard, Sondra | B183: 3095 | C183: 2014-04-02 | D183: 2014-06-16
A184: Varner, Alba | B184: 5636 | C184: 2014-01-12 | D184: 2014-02-24
A185: Harlow, Gilda | B185: 6267 | C185: 2014-01-16 | D185: 2014-03-25
A186: Vallejo, Ophelia | B186: 867 | C186: 2014-03-19 | D186: 2014-05-15
A187: Shields, Madie | B187: 13 | C187: 2014-03-17 | D187: 2014-05-02
A188: Mcconnell, Jonna | B188: 1499 | C188: 2014-01-05 | D188: 2014-03-12
A189: Horn, Elissa | B189: 1575 | C189: 2014-05-18 | D189: 2014-07-08
A190: Beebe, Leonila | B190: 3750 | C190: 2014-03-31 | D190: 2014-06-17
A191: Snow, Tamera | B191: 2132 | C191: 2014-04-12 | D191: 2014-05-15
A192: Creel, Jodee | B192: 4158 | C192: 2014-04-24 | D192: 2014-05-31
A193: Joy, Vern | B193: 5658 | C193: 2014-05-08 | D193: 2014-07-01
A194: Dorsey, Khalilah | B194: 217 | C194: 2014-01-05 | D194: 2014-01-26
A195: Meek, Exie | B195: 4107 | C195: 2014-03-28 | D195: 2014-04-23
A196: Marvin, Maybell | B196: 1356 | C196: 2013-12-27 | D196: 2014-02-28
A197: Mccain, Elba | B197: 6448 | C197: 2013-10-05 | D197: 2013-11-16
A198: Breen, Dakota | B198: 1752 | C198: 2014-05-18 | D198: 2014-06-18
A199: Benner, Valda | B199: 1956 | C199: 2014-03-04 | D199: 2014-05-05
A200: Spalding, Elisha | B200: 3522 | C200: 2014-04-09 | D200: 2014-06-04
A201: Lance, Mitsue | B201: 1704 | C201: 2014-01-21 | D201: 2014-03-03
A202: Monahan, Tanika | B202: 1601 | C202: 2014-04-25 | D202: 2014-05-28
... 5 more rows

Sheet 1131 (an)
A1: Excel Magic Trick 1128: Aging Accounts Receivable Reports On Multiple Sheets With Array Formula
A2: Excel Magic Trick 1129: Aging Accounts Receivable Reports Using Slicer &Excel Table Feature
A3: Excel Magic Trick 1130: Aging Accounts Receivable Reports Using Advanced Filter
A4: Excel Magic Trick 1131: Aging Accounts Receivable Reports On Multiple Sheets With PivotTable
A7: Customer | B7: InvoiceAmount | C7: InvoiceDate | D7: Due Date | E7: Days Late | F7: Report Category | H7: Lookup1 | I7: Report Category | J7: Lower | K7: Upper
A8: Dang, Trista | B8: 343 | C8: 2013-11-08 | D8: 2014-02-23 | E8: =D8-C8 -> 107 | F8: =VLOOKUP(E8,$H$8:$I$11,2) -> 90 >= Days Late <= 365 | H8: =J8 -> 1 | I8: =J8&" >= Days Late <= "&K8 -> 1 >= Days Late <= 30 | J8: 1 | K8: 30
A9: Potts, Burma | B9: 1939 | C9: 2014-02-05 | D9: 2014-03-23 | E9: =D9-C9 -> 46 | F9: =VLOOKUP(E9,$H$8:$I$11,2) -> 31 >= Days Late <= 60 | H9: =J9 -> 31 | I9: =J9&" >= Days Late <= "&K9 -> 31 >= Days Late <= 60 | J9: 31 | K9: 60
A10: Caruso, Ninfa | B10: 3774 | C10: 2014-04-27 | D10: 2014-06-09 | E10: =D10-C10 -> 43 | F10: =VLOOKUP(E10,$H$8:$I$11,2) -> 31 >= Days Late <= 60 | H10: =J10 -> 61 | I10: =J10&" >= Days Late <= "&K10 -> 61 >= Days Late <= 90 | J10: 61 | K10: 90
A11: Mosier, Maude | B11: 4378 | C11: 2013-11-29 | D11: 2014-02-03 | E11: =D11-C11 -> 66 | F11: =VLOOKUP(E11,$H$8:$I$11,2) -> 61 >= Days Late <= 90 | H11: =J11 -> 90 | I11: =J11&" >= Days Late <= "&K11 -> 90 >= Days Late <= 365 | J11: 90 | K11: 365
A12: Casper, Senaida | B12: 2168 | C12: 2014-03-11 | D12: 2014-05-13 | E12: =D12-C12 -> 63 | F12: =VLOOKUP(E12,$H$8:$I$11,2) -> 61 >= Days Late <= 90
A13: Lemieux, Kiana | B13: 873 | C13: 2014-01-16 | D13: 2014-02-17 | E13: =D13-C13 -> 32 | F13: =VLOOKUP(E13,$H$8:$I$11,2) -> 31 >= Days Late <= 60
A14: Cousins, Jeniffer | B14: 6013 | C14: 2013-11-28 | D14: 2014-03-18 | E14: =D14-C14 -> 110 | F14: =VLOOKUP(E14,$H$8:$I$11,2) -> 90 >= Days Late <= 365
A15: Moe, Christi | B15: 4914 | C15: 2014-02-12 | D15: 2014-03-05 | E15: =D15-C15 -> 21 | F15: =VLOOKUP(E15,$H$8:$I$11,2) -> 1 >= Days Late <= 30
A16: Rapp, Jeni | B16: 245 | C16: 2014-04-09 | D16: 2014-06-05 | E16: =D16-C16 -> 57 | F16: =VLOOKUP(E16,$H$8:$I$11,2) -> 31 >= Days Late <= 60
A17: Whitman, Donita | B17: 311 | C17: 2014-03-18 | D17: 2014-05-23 | E17: =D17-C17 -> 66 | F17: =VLOOKUP(E17,$H$8:$I$11,2) -> 61 >= Days Late <= 90
A18: Galindo, Retha | B18: 1251 | C18: 2014-01-21 | D18: 2014-02-16 | E18: =D18-C18 -> 26 | F18: =VLOOKUP(E18,$H$8:$I$11,2) -> 1 >= Days Late <= 30
A19: Mcintosh, Janeth | B19: 1017 | C19: 2014-01-29 | D19: 2014-02-26 | E19: =D19-C19 -> 28 | F19: =VLOOKUP(E19,$H$8:$I$11,2) -> 1 >= Days Late <= 30
A20: Brant, Elouise | B20: 6476 | C20: 2014-01-11 | D20: 2014-03-04 | E20: =D20-C20 -> 52 | F20: =VLOOKUP(E20,$H$8:$I$11,2) -> 31 >= Days Late <= 60
A21: Oconnor, Nery | B21: 2006 | C21: 2014-03-29 | D21: 2014-05-06 | E21: =D21-C21 -> 38 | F21: =VLOOKUP(E21,$H$8:$I$11,2) -> 31 >= Days Late <= 60
A22: Larsen, Kaila | B22: 1441 | C22: 2014-06-01 | D22: 2014-07-28 | E22: =D22-C22 -> 57 | F22: =VLOOKUP(E22,$H$8:$I$11,2) -> 31 >= Days Late <= 60
A23: Brackett, Curtis | B23: 4850 | C23: 2014-02-27 | D23: 2014-03-20 | E23: =D23-C23 -> 21 | F23: =VLOOKUP(E23,$H$8:$I$11,2) -> 1 >= Days Late <= 30
A24: Glynn, Louis | B24: 2995 | C24: 2014-03-27 | D24: 2014-05-29 | E24: =D24-C24 -> 63 | F24: =VLOOKUP(E24,$H$8:$I$11,2) -> 61 >= Days Late <= 90
A25: Angulo, Dierdre | B25: 6260 | C25: 2014-03-30 | D25: 2014-06-12 | E25: =D25-C25 -> 74 | F25: =VLOOKUP(E25,$H$8:$I$11,2) -> 61 >= Days Late <= 90
A26: Barger, Lorelei | B26: 1858 | C26: 2014-04-14 | D26: 2014-07-02 | E26: =D26-C26 -> 79 | F26: =VLOOKUP(E26,$H$8:$I$11,2) -> 61 >= Days Late <= 90
A27: Byers, Natisha | B27: 2940 | C27: 2014-04-04 | D27: 2014-05-07 | E27: =D27-C27 -> 33 | F27: =VLOOKUP(E27,$H$8:$I$11,2) -> 31 >= Days Late <= 60
A28: Whited, Un | B28: 4797 | C28: 2013-10-10 | D28: 2013-12-05 | E28: =D28-C28 -> 56 | F28: =VLOOKUP(E28,$H$8:$I$11,2) -> 31 >= Days Late <= 60
A29: Easter, Valarie | B29: 3496 | C29: 2014-04-25 | D29: 2014-06-27 | E29: =D29-C29 -> 63 | F29: =VLOOKUP(E29,$H$8:$I$11,2) -> 61 >= Days Late <= 90
A30: Tolbert, Yoshiko | B30: 1891 | C30: 2014-04-08 | D30: 2014-04-30 | E30: =D30-C30 -> 22 | F30: =VLOOKUP(E30,$H$8:$I$11,2) -> 1 >= Days Late <= 30
A31: Newby, Kiersten | B31: 1011 | C31: 2014-03-14 | D31: 2014-04-27 | E31: =D31-C31 -> 44 | F31: =VLOOKUP(E31,$H$8:$I$11,2) -> 31 >= Days Late <= 60
A32: Shank, Sebastian | B32: 3612 | C32: 2014-04-08 | D32: 2014-05-14 | E32: =D32-C32 -> 36 | F32: =VLOOKUP(E32,$H$8:$I$11,2) -> 31 >= Days Late <= 60
A33: Saldana, Venita | B33: 2486 | C33: 2014-04-12 | D33: 2014-06-30 | E33: =D33-C33 -> 79 | F33: =VLOOKUP(E33,$H$8:$I$11,2) -> 61 >= Days Late <= 90
A34: Ho, Sylvie | B34: 4292 | C34: 2013-11-04 | D34: 2013-12-21 | E34: =D34-C34 -> 47 | F34: =VLOOKUP(E34,$H$8:$I$11,2) -> 31 >= Days Late <= 60
A35: Schubert, Gwenn | B35: 6497 | C35: 2014-03-09 | D35: 2014-04-10 | E35: =D35-C35 -> 32 | F35: =VLOOKUP(E35,$H$8:$I$11,2) -> 31 >= Days Late <= 60
A36: Eldridge, Bridgett | B36: 4280 | C36: 2014-05-11 | D36: 2014-07-13 | E36: =D36-C36 -> 63 | F36: =VLOOKUP(E36,$H$8:$I$11,2) -> 61 >= Days Late <= 90
A37: Adam, Elmer | B37: 3920 | C37: 2014-05-14 | D37: 2014-06-21 | E37: =D37-C37 -> 38 | F37: =VLOOKUP(E37,$H$8:$I$11,2) -> 31 >= Days Late <= 60
A38: Allred, Elina | B38: 2846 | C38: 2014-04-16 | D38: 2014-05-17 | E38: =D38-C38 -> 31 | F38: =VLOOKUP(E38,$H$8:$I$11,2) -> 31 >= Days Late <= 60
A39: Arnett, Helaine | B39: 777 | C39: 2014-03-23 | D39: 2014-05-18 | E39: =D39-C39 -> 56 | F39: =VLOOKUP(E39,$H$8:$I$11,2) -> 31 >= Days Late <= 60
A40: Pack, Bradly | B40: 1027 | C40: 2014-04-26 | D40: 2014-06-18 | E40: =D40-C40 -> 53 | F40: =VLOOKUP(E40,$H$8:$I$11,2) -> 31 >= Days Late <= 60
A41: Hardison, Kacy | B41: 3452 | C41: 2014-04-22 | D41: 2014-06-18 | E41: =D41-C41 -> 57 | F41: =VLOOKUP(E41,$H$8:$I$11,2) -> 31 >= Days Late <= 60
A42: Zook, Corrinne | B42: 1718 | C42: 2013-10-04 | D42: 2014-01-09 | E42: =D42-C42 -> 97 | F42: =VLOOKUP(E42,$H$8:$I$11,2) -> 90 >= Days Late <= 365
A43: Pimentel, Cristopher | B43: 1290 | C43: 2013-11-30 | D43: 2014-04-21 | E43: =D43-C43 -> 142 | F43: =VLOOKUP(E43,$H$8:$I$11,2) -> 90 >= Days Late <= 365
A44: Grooms, Otilia | B44: 1070 | C44: 2014-04-19 | D44: 2014-05-14 | E44: =D44-C44 -> 25 | F44: =VLOOKUP(E44,$H$8:$I$11,2) -> 1 >= Days Late <= 30
A45: Buffington, Fonda | B45: 1184 | C45: 2014-05-28 | D45: 2014-07-24 | E45: =D45-C45 -> 57 | F45: =VLOOKUP(E45,$H$8:$I$11,2) -> 31 >= Days Late <= 60
A46: Loftin, Burton | B46: 6383 | C46: 2014-05-30 | D46: 2014-07-28 | E46: =D46-C46 -> 59 | F46: =VLOOKUP(E46,$H$8:$I$11,2) -> 31 >= Days Late <= 60
A47: Bray, Errol | B47: 3869 | C47: 2014-04-17 | D47: 2014-06-07 | E47: =D47-C47 -> 51 | F47: =VLOOKUP(E47,$H$8:$I$11,2) -> 31 >= Days Late <= 60
A48: Toler, Evita | B48: 5022 | C48: 2014-05-17 | D48: 2014-07-06 | E48: =D48-C48 -> 50 | F48: =VLOOKUP(E48,$H$8:$I$11,2) -> 31 >= Days Late <= 60
A49: Shah, Celsa | B49: 1411 | C49: 2014-01-02 | D49: 2014-02-02 | E49: =D49-C49 -> 31 | F49: =VLOOKUP(E49,$H$8:$I$11,2) -> 31 >= Days Late <= 60
A50: Turk, Hildegarde | B50: 3851 | C50: 2014-05-07 | D50: 2014-06-27 | E50: =D50-C50 -> 51 | F50: =VLOOKUP(E50,$H$8:$I$11,2) -> 31 >= Days Late <= 60
A51: Hummel, Joya | B51: 3030 | C51: 2014-04-07 | D51: 2014-05-07 | E51: =D51-C51 -> 30 | F51: =VLOOKUP(E51,$H$8:$I$11,2) -> 1 >= Days Late <= 30
A52: Scanlon, Catherina | B52: 3458 | C52: 2014-03-03 | D52: 2014-05-15 | E52: =D52-C52 -> 73 | F52: =VLOOKUP(E52,$H$8:$I$11,2) -> 61 >= Days Late <= 90
A53: Johns, Yuonne | B53: 1414 | C53: 2013-11-25 | D53: 2014-01-30 | E53: =D53-C53 -> 66 | F53: =VLOOKUP(E53,$H$8:$I$11,2) -> 61 >= Days Late <= 90
A54: Clemmons, Delpha | B54: 2034 | C54: 2014-05-08 | D54: 2014-07-16 | E54: =D54-C54 -> 69 | F54: =VLOOKUP(E54,$H$8:$I$11,2) -> 61 >= Days Late <= 90
A55: Heaton, Lin | B55: 4377 | C55: 2014-05-28 | D55: 2014-07-05 | E55: =D55-C55 -> 38 | F55: =VLOOKUP(E55,$H$8:$I$11,2) -> 31 >= Days Late <= 60
A56: Muniz, Domitila | B56: 4272 | C56: 2014-05-29 | D56: 2014-08-02 | E56: =D56-C56 -> 65 | F56: =VLOOKUP(E56,$H$8:$I$11,2) -> 61 >= Days Late <= 90
A57: Hickey, Melina | B57: 3531 | C57: 2013-11-03 | D57: 2013-12-21 | E57: =D57-C57 -> 48 | F57: =VLOOKUP(E57,$H$8:$I$11,2) -> 31 >= Days Late <= 60
A58: Dupont, Mica | B58: 125 | C58: 2014-01-30 | D58: 2014-03-08 | E58: =D58-C58 -> 37 | F58: =VLOOKUP(E58,$H$8:$I$11,2) -> 31 >= Days Late <= 60
A59: Hindman, Dorthey | B59: 2647 | C59: 2014-04-25 | D59: 2014-05-30 | E59: =D59-C59 -> 35 | F59: =VLOOKUP(E59,$H$8:$I$11,2) -> 31 >= Days Late <= 60
A60: Dumas, Genie | B60: 4559 | C60: 2014-03-01 | D60: 2014-04-30 | E60: =D60-C60 -> 60 | F60: =VLOOKUP(E60,$H$8:$I$11,2) -> 31 >= Days Late <= 60
A61: Leary, Janelle | B61: 5027 | C61: 2014-03-17 | D61: 2014-04-18 | E61: =D61-C61 -> 32 | F61: =VLOOKUP(E61,$H$8:$I$11,2) -> 31 >= Days Late <= 60
A62: Jeffery, Alaine | B62: 6372 | C62: 2014-04-07 | D62: 2014-06-05 | E62: =D62-C62 -> 59 | F62: =VLOOKUP(E62,$H$8:$I$11,2) -> 31 >= Days Late <= 60
A63: Bittner, Kiyoko | B63: 5185 | C63: 2014-03-11 | D63: 2014-05-25 | E63: =D63-C63 -> 75 | F63: =VLOOKUP(E63,$H$8:$I$11,2) -> 61 >= Days Late <= 90
A64: Marcus, Iona | B64: 3080 | C64: 2014-03-23 | D64: 2014-04-30 | E64: =D64-C64 -> 38 | F64: =VLOOKUP(E64,$H$8:$I$11,2) -> 31 >= Days Late <= 60
A65: Beals, Wyatt | B65: 5987 | C65: 2014-04-01 | D65: 2014-06-19 | E65: =D65-C65 -> 79 | F65: =VLOOKUP(E65,$H$8:$I$11,2) -> 61 >= Days Late <= 90
A66: Button, Berna | B66: 4582 | C66: 2014-02-23 | D66: 2014-05-13 | E66: =D66-C66 -> 79 | F66: =VLOOKUP(E66,$H$8:$I$11,2) -> 61 >= Days Late <= 90
A67: Gillen, Andree | B67: 4033 | C67: 2014-05-13 | D67: 2014-07-12 | E67: =D67-C67 -> 60 | F67: =VLOOKUP(E67,$H$8:$I$11,2) -> 31 >= Days Late <= 60
A68: Paz, Maia | B68: 4294 | C68: 2014-04-22 | D68: 2014-06-14 | E68: =D68-C68 -> 53 | F68: =VLOOKUP(E68,$H$8:$I$11,2) -> 31 >= Days Late <= 60
A69: Mathias, Debrah | B69: 1416 | C69: 2013-10-10 | D69: 2013-11-11 | E69: =D69-C69 -> 32 | F69: =VLOOKUP(E69,$H$8:$I$11,2) -> 31 >= Days Late <= 60
A70: Larose, Gwyneth | B70: 3815 | C70: 2014-03-02 | D70: 2014-04-29 | E70: =D70-C70 -> 58 | F70: =VLOOKUP(E70,$H$8:$I$11,2) -> 31 >= Days Late <= 60
A71: Roach, Allena | B71: 5443 | C71: 2014-03-14 | D71: 2014-05-25 | E71: =D71-C71 -> 72 | F71: =VLOOKUP(E71,$H$8:$I$11,2) -> 61 >= Days Late <= 90
A72: Carey, Kristan | B72: 5095 | C72: 2014-04-03 | D72: 2014-05-30 | E72: =D72-C72 -> 57 | F72: =VLOOKUP(E72,$H$8:$I$11,2) -> 31 >= Days Late <= 60
A73: Hickson, Margareta | B73: 2972 | C73: 2014-05-18 | D73: 2014-07-18 | E73: =D73-C73 -> 61 | F73: =VLOOKUP(E73,$H$8:$I$11,2) -> 61 >= Days Late <= 90
A74: Breeden, Karol | B74: 2095 | C74: 2014-03-23 | D74: 2014-05-31 | E74: =D74-C74 -> 69 | F74: =VLOOKUP(E74,$H$8:$I$11,2) -> 61 >= Days Late <= 90
A75: Hancock, Richie | B75: 4841 | C75: 2014-05-31 | D75: 2014-07-04 | E75: =D75-C75 -> 34 | F75: =VLOOKUP(E75,$H$8:$I$11,2) -> 31 >= Days Late <= 60
A76: Pride, Adolfo | B76: 448 | C76: 2014-04-05 | D76: 2014-06-10 | E76: =D76-C76 -> 66 | F76: =VLOOKUP(E76,$H$8:$I$11,2) -> 61 >= Days Late <= 90
A77: Boyles, Ilda | B77: 5741 | C77: 2014-04-12 | D77: 2014-05-09 | E77: =D77-C77 -> 27 | F77: =VLOOKUP(E77,$H$8:$I$11,2) -> 1 >= Days Late <= 30
A78: Kinard, Laquita | B78: 3459 | C78: 2014-02-28 | D78: 2014-03-22 | E78: =D78-C78 -> 22 | F78: =VLOOKUP(E78,$H$8:$I$11,2) -> 1 >= Days Late <= 30
A79: Ervin, Lavern | B79: 1025 | C79: 2014-04-02 | D79: 2014-05-19 | E79: =D79-C79 -> 47 | F79: =VLOOKUP(E79,$H$8:$I$11,2) -> 31 >= Days Late <= 60
A80: Watt, Edward | B80: 3994 | C80: 2014-05-11 | D80: 2014-06-24 | E80: =D80-C80 -> 44 | F80: =VLOOKUP(E80,$H$8:$I$11,2) -> 31 >= Days Late <= 60
A81: Fournier, Dorene | B81: 4471 | C81: 2014-04-30 | D81: 2014-07-08 | E81: =D81-C81 -> 69 | F81: =VLOOKUP(E81,$H$8:$I$11,2) -> 61 >= Days Late <= 90
A82: Hook, Marisela | B82: 6475 | C82: 2014-03-04 | D82: 2014-05-21 | E82: =D82-C82 -> 78 | F82: =VLOOKUP(E82,$H$8:$I$11,2) -> 61 >= Days Late <= 90
A83: Wofford, Reyes | B83: 4865 | C83: 2013-10-21 | D83: 2014-03-11 | E83: =D83-C83 -> 141 | F83: =VLOOKUP(E83,$H$8:$I$11,2) -> 90 >= Days Late <= 365
A84: Pak, Dollie | B84: 1644 | C84: 2014-04-16 | D84: 2014-06-19 | E84: =D84-C84 -> 64 | F84: =VLOOKUP(E84,$H$8:$I$11,2) -> 61 >= Days Late <= 90
A85: Torrence, Armida | B85: 2031 | C85: 2014-03-10 | D85: 2014-05-08 | E85: =D85-C85 -> 59 | F85: =VLOOKUP(E85,$H$8:$I$11,2) -> 31 >= Days Late <= 60
A86: Eckert, Xiomara | B86: 3741 | C86: 2014-03-04 | D86: 2014-05-03 | E86: =D86-C86 -> 60 | F86: =VLOOKUP(E86,$H$8:$I$11,2) -> 31 >= Days Late <= 60
A87: Minor, Ranee | B87: 5264 | C87: 2014-05-12 | D87: 2014-06-23 | E87: =D87-C87 -> 42 | F87: =VLOOKUP(E87,$H$8:$I$11,2) -> 31 >= Days Late <= 60
A88: Hutchens, Maryanne | B88: 1651 | C88: 2014-05-23 | D88: 2014-07-02 | E88: =D88-C88 -> 40 | F88: =VLOOKUP(E88,$H$8:$I$11,2) -> 31 >= Days Late <= 60
A89: Doughty, Teena | B89: 3457 | C89: 2014-04-10 | D89: 2014-06-29 | E89: =D89-C89 -> 80 | F89: =VLOOKUP(E89,$H$8:$I$11,2) -> 61 >= Days Late <= 90
A90: Hanley, Leatrice | B90: 2038 | C90: 2013-10-31 | D90: 2014-01-19 | E90: =D90-C90 -> 80 | F90: =VLOOKUP(E90,$H$8:$I$11,2) -> 61 >= Days Late <= 90
A91: Freedman, Kathlyn | B91: 4562 | C91: 2013-12-23 | D91: 2014-01-24 | E91: =D91-C91 -> 32 | F91: =VLOOKUP(E91,$H$8:$I$11,2) -> 31 >= Days Late <= 60
A92: Grimes, Isis | B92: 4694 | C92: 2014-01-24 | D92: 2014-03-28 | E92: =D92-C92 -> 63 | F92: =VLOOKUP(E92,$H$8:$I$11,2) -> 61 >= Days Late <= 90
A93: Perreault, Angelique | B93: 2402 | C93: 2014-01-06 | D93: 2014-01-28 | E93: =D93-C93 -> 22 | F93: =VLOOKUP(E93,$H$8:$I$11,2) -> 1 >= Days Late <= 30
A94: Walter, Bernardina | B94: 5660 | C94: 2014-01-03 | D94: 2014-03-22 | E94: =D94-C94 -> 78 | F94: =VLOOKUP(E94,$H$8:$I$11,2) -> 61 >= Days Late <= 90
A95: Parr, Consuela | B95: 2246 | C95: 2014-01-24 | D95: 2014-03-26 | E95: =D95-C95 -> 61 | F95: =VLOOKUP(E95,$H$8:$I$11,2) -> 61 >= Days Late <= 90
A96: Reece, Maisie | B96: 5914 | C96: 2014-02-17 | D96: 2014-05-08 | E96: =D96-C96 -> 80 | F96: =VLOOKUP(E96,$H$8:$I$11,2) -> 61 >= Days Late <= 90
A97: Harlow, Carmel | B97: 5513 | C97: 2014-02-28 | D97: 2014-04-19 | E97: =D97-C97 -> 50 | F97: =VLOOKUP(E97,$H$8:$I$11,2) -> 31 >= Days Late <= 60
A98: Honeycutt, Lane | B98: 4806 | C98: 2014-03-15 | D98: 2014-05-24 | E98: =D98-C98 -> 70 | F98: =VLOOKUP(E98,$H$8:$I$11,2) -> 61 >= Days Late <= 90
A99: Cass, Anthony | B99: 2015 | C99: 2014-05-04 | D99: 2014-06-13 | E99: =D99-C99 -> 40 | F99: =VLOOKUP(E99,$H$8:$I$11,2) -> 31 >= Days Late <= 60
A100: Steffen, Malinda | B100: 3282 | C100: 2013-10-01 | D100: 2014-02-23 | E100: =D100-C100 -> 145 | F100: =VLOOKUP(E100,$H$8:$I$11,2) -> 90 >= Days Late <= 365
A101: Mccrary, Merlyn | B101: 4569 | C101: 2014-01-26 | D101: 2014-02-18 | E101: =D101-C101 -> 23 | F101: =VLOOKUP(E101,$H$8:$I$11,2) -> 1 >= Days Late <= 30
A102: Littleton, Izola | B102: 2220 | C102: 2014-03-01 | D102: 2014-04-12 | E102: =D102-C102 -> 42 | F102: =VLOOKUP(E102,$H$8:$I$11,2) -> 31 >= Days Late <= 60
A103: Nieves, Treva | B103: 4303 | C103: 2014-04-17 | D103: 2014-07-01 | E103: =D103-C103 -> 75 | F103: =VLOOKUP(E103,$H$8:$I$11,2) -> 61 >= Days Late <= 90
A104: Mclean, Eldora | B104: 1929 | C104: 2013-10-14 | D104: 2014-03-10 | E104: =D104-C104 -> 147 | F104: =VLOOKUP(E104,$H$8:$I$11,2) -> 90 >= Days Late <= 365
A105: Dancy, Deena | B105: 2449 | C105: 2014-03-07 | D105: 2014-04-12 | E105: =D105-C105 -> 36 | F105: =VLOOKUP(E105,$H$8:$I$11,2) -> 31 >= Days Late <= 60
A106: Anglin, Thanh | B106: 1617 | C106: 2013-10-21 | D106: 2014-01-22 | E106: =D106-C106 -> 93 | F106: =VLOOKUP(E106,$H$8:$I$11,2) -> 90 >= Days Late <= 365
A107: Schrader, Numbers | B107: 2138 | C107: 2014-02-25 | D107: 2014-03-30 | E107: =D107-C107 -> 33 | F107: =VLOOKUP(E107,$H$8:$I$11,2) -> 31 >= Days Late <= 60
A108: Edgar, Dusti | B108: 5261 | C108: 2013-11-05 | D108: 2014-02-20 | E108: =D108-C108 -> 107 | F108: =VLOOKUP(E108,$H$8:$I$11,2) -> 90 >= Days Late <= 365
A109: Eldridge, Beckie | B109: 2932 | C109: 2014-02-27 | D109: 2014-03-22 | E109: =D109-C109 -> 23 | F109: =VLOOKUP(E109,$H$8:$I$11,2) -> 1 >= Days Late <= 30
A110: Picard, Margherita | B110: 4596 | C110: 2014-05-26 | D110: 2014-07-11 | E110: =D110-C110 -> 46 | F110: =VLOOKUP(E110,$H$8:$I$11,2) -> 31 >= Days Late <= 60
A111: Sander, Carin | B111: 6391 | C111: 2014-04-29 | D111: 2014-06-14 | E111: =D111-C111 -> 46 | F111: =VLOOKUP(E111,$H$8:$I$11,2) -> 31 >= Days Late <= 60
A112: Bonilla, Michel | B112: 5394 | C112: 2013-12-31 | D112: 2014-03-07 | E112: =D112-C112 -> 66 | F112: =VLOOKUP(E112,$H$8:$I$11,2) -> 61 >= Days Late <= 90
A113: Hartmann, Samual | B113: 5171 | C113: 2014-03-10 | D113: 2014-04-14 | E113: =D113-C113 -> 35 | F113: =VLOOKUP(E113,$H$8:$I$11,2) -> 31 >= Days Late <= 60
A114: Dew, Kaye | B114: 3267 | C114: 2014-04-10 | D114: 2014-06-27 | E114: =D114-C114 -> 78 | F114: =VLOOKUP(E114,$H$8:$I$11,2) -> 61 >= Days Late <= 90
A115: Fuchs, Anneliese | B115: 523 | C115: 2014-03-27 | D115: 2014-05-04 | E115: =D115-C115 -> 38 | F115: =VLOOKUP(E115,$H$8:$I$11,2) -> 31 >= Days Late <= 60
A116: Timmons, Devon | B116: 3480 | C116: 2014-04-24 | D116: 2014-06-29 | E116: =D116-C116 -> 66 | F116: =VLOOKUP(E116,$H$8:$I$11,2) -> 61 >= Days Late <= 90
A117: Gallagher, Damian | B117: 6121 | C117: 2014-04-19 | D117: 2014-05-10 | E117: =D117-C117 -> 21 | F117: =VLOOKUP(E117,$H$8:$I$11,2) -> 1 >= Days Late <= 30
A118: Coffin, Wai | B118: 3147 | C118: 2014-05-17 | D118: 2014-07-21 | E118: =D118-C118 -> 65 | F118: =VLOOKUP(E118,$H$8:$I$11,2) -> 61 >= Days Late <= 90
A119: Wick, Tamatha | B119: 3094 | C119: 2014-01-26 | D119: 2014-03-25 | E119: =D119-C119 -> 58 | F119: =VLOOKUP(E119,$H$8:$I$11,2) -> 31 >= Days Late <= 60
A120: Elston, Shara | B120: 4993 | C120: 2014-04-10 | D120: 2014-06-18 | E120: =D120-C120 -> 69 | F120: =VLOOKUP(E120,$H$8:$I$11,2) -> 61 >= Days Late <= 90
A121: Fitzpatrick, Hunter | B121: 5603 | C121: 2014-04-29 | D121: 2014-06-03 | E121: =D121-C121 -> 35 | F121: =VLOOKUP(E121,$H$8:$I$11,2) -> 31 >= Days Late <= 60
A122: Paquette, Cathey | B122: 2412 | C122: 2014-04-29 | D122: 2014-06-08 | E122: =D122-C122 -> 40 | F122: =VLOOKUP(E122,$H$8:$I$11,2) -> 31 >= Days Late <= 60
A123: Mcreynolds, Fern | B123: 1641 | C123: 2014-03-24 | D123: 2014-04-30 | E123: =D123-C123 -> 37 | F123: =VLOOKUP(E123,$H$8:$I$11,2) -> 31 >= Days Late <= 60
A124: Damico, Ammie | B124: 4335 | C124: 2014-06-01 | D124: 2014-07-15 | E124: =D124-C124 -> 44 | F124: =VLOOKUP(E124,$H$8:$I$11,2) -> 31 >= Days Late <= 60
A125: Gallardo, Armida | B125: 855 | C125: 2014-03-30 | D125: 2014-05-27 | E125: =D125-C125 -> 58 | F125: =VLOOKUP(E125,$H$8:$I$11,2) -> 31 >= Days Late <= 60
A126: Lentz, Rosana | B126: 1822 | C126: 2013-10-29 | D126: 2014-03-10 | E126: =D126-C126 -> 132 | F126: =VLOOKUP(E126,$H$8:$I$11,2) -> 90 >= Days Late <= 365
A127: Delossantos, Son | B127: 61 | C127: 2014-05-16 | D127: 2014-07-11 | E127: =D127-C127 -> 56 | F127: =VLOOKUP(E127,$H$8:$I$11,2) -> 31 >= Days Late <= 60
A128: Cortes, Petrina | B128: 4477 | C128: 2014-05-11 | D128: 2014-07-10 | E128: =D128-C128 -> 60 | F128: =VLOOKUP(E128,$H$8:$I$11,2) -> 31 >= Days Late <= 60
A129: Settle, Madelene | B129: 111 | C129: 2013-10-20 | D129: 2014-01-08 | E129: =D129-C129 -> 80 | F129: =VLOOKUP(E129,$H$8:$I$11,2) -> 61 >= Days Late <= 90
A130: Hibbard, Marceline | B130: 4904 | C130: 2013-12-21 | D130: 2014-05-09 | E130: =D130-C130 -> 139 | F130: =VLOOKUP(E130,$H$8:$I$11,2) -> 90 >= Days Late <= 365
A131: Seidel, Maren | B131: 879 | C131: 2014-04-17 | D131: 2014-05-23 | E131: =D131-C131 -> 36 | F131: =VLOOKUP(E131,$H$8:$I$11,2) -> 31 >= Days Late <= 60
A132: Oconner, Glynda | B132: 3469 | C132: 2014-04-22 | D132: 2014-06-09 | E132: =D132-C132 -> 48 | F132: =VLOOKUP(E132,$H$8:$I$11,2) -> 31 >= Days Late <= 60
A133: Spooner, Maryln | B133: 1530 | C133: 2014-05-30 | D133: 2014-08-04 | E133: =D133-C133 -> 66 | F133: =VLOOKUP(E133,$H$8:$I$11,2) -> 61 >= Days Late <= 90
A134: Briones, Adria | B134: 499 | C134: 2014-04-23 | D134: 2014-05-01 | E134: =D134-C134 -> 8 | F134: =VLOOKUP(E134,$H$8:$I$11,2) -> 1 >= Days Late <= 30
A135: Roden, Marylee | B135: 5077 | C135: 2014-05-30 | D135: 2014-08-03 | E135: =D135-C135 -> 65 | F135: =VLOOKUP(E135,$H$8:$I$11,2) -> 61 >= Days Late <= 90
A136: Valentin, Regena | B136: 5153 | C136: 2014-01-17 | D136: 2014-02-07 | E136: =D136-C136 -> 21 | F136: =VLOOKUP(E136,$H$8:$I$11,2) -> 1 >= Days Late <= 30
A137: Tillman, Yasmine | B137: 4718 | C137: 2014-05-09 | D137: 2014-07-01 | E137: =D137-C137 -> 53 | F137: =VLOOKUP(E137,$H$8:$I$11,2) -> 31 >= Days Late <= 60
A138: Burrows, Merideth | B138: 4393 | C138: 2014-05-15 | D138: 2014-06-27 | E138: =D138-C138 -> 43 | F138: =VLOOKUP(E138,$H$8:$I$11,2) -> 31 >= Days Late <= 60
A139: Shuman, Cordia | B139: 5681 | C139: 2013-12-07 | D139: 2014-03-20 | E139: =D139-C139 -> 103 | F139: =VLOOKUP(E139,$H$8:$I$11,2) -> 90 >= Days Late <= 365
A140: Crump, Glinda | B140: 2257 | C140: 2014-05-05 | D140: 2014-06-07 | E140: =D140-C140 -> 33 | F140: =VLOOKUP(E140,$H$8:$I$11,2) -> 31 >= Days Late <= 60
A141: Silverman, Delmar | B141: 2237 | C141: 2013-10-15 | D141: 2014-01-30 | E141: =D141-C141 -> 107 | F141: =VLOOKUP(E141,$H$8:$I$11,2) -> 90 >= Days Late <= 365
A142: Gilman, Romona | B142: 970 | C142: 2013-12-11 | D142: 2014-01-17 | E142: =D142-C142 -> 37 | F142: =VLOOKUP(E142,$H$8:$I$11,2) -> 31 >= Days Late <= 60
A143: Kyle, Addie | B143: 205 | C143: 2014-04-26 | D143: 2014-07-04 | E143: =D143-C143 -> 69 | F143: =VLOOKUP(E143,$H$8:$I$11,2) -> 61 >= Days Late <= 90
A144: Epps, Eldora | B144: 1712 | C144: 2014-04-25 | D144: 2014-06-10 | E144: =D144-C144 -> 46 | F144: =VLOOKUP(E144,$H$8:$I$11,2) -> 31 >= Days Late <= 60
A145: Smiley, Brunilda | B145: 282 | C145: 2014-01-21 | D145: 2014-02-14 | E145: =D145-C145 -> 24 | F145: =VLOOKUP(E145,$H$8:$I$11,2) -> 1 >= Days Late <= 30
A146: Pennell, Willena | B146: 1440 | C146: 2013-10-06 | D146: 2014-01-26 | E146: =D146-C146 -> 112 | F146: =VLOOKUP(E146,$H$8:$I$11,2) -> 90 >= Days Late <= 365
A147: Shah, Lorenza | B147: 2656 | C147: 2014-05-23 | D147: 2014-07-01 | E147: =D147-C147 -> 39 | F147: =VLOOKUP(E147,$H$8:$I$11,2) -> 31 >= Days Late <= 60
A148: Thigpen, Mia | B148: 5517 | C148: 2013-10-17 | D148: 2014-01-17 | E148: =D148-C148 -> 92 | F148: =VLOOKUP(E148,$H$8:$I$11,2) -> 90 >= Days Late <= 365
A149: Patino, Joseph | B149: 2686 | C149: 2014-04-18 | D149: 2014-05-31 | E149: =D149-C149 -> 43 | F149: =VLOOKUP(E149,$H$8:$I$11,2) -> 31 >= Days Late <= 60
A150: Coombs, Rasheeda | B150: 4241 | C150: 2013-12-14 | D150: 2014-03-01 | E150: =D150-C150 -> 77 | F150: =VLOOKUP(E150,$H$8:$I$11,2) -> 61 >= Days Late <= 90
A151: Epstein, Lakia | B151: 3821 | C151: 2014-04-20 | D151: 2014-05-31 | E151: =D151-C151 -> 41 | F151: =VLOOKUP(E151,$H$8:$I$11,2) -> 31 >= Days Late <= 60
A152: Dailey, Joel | B152: 1099 | C152: 2014-03-24 | D152: 2014-05-08 | E152: =D152-C152 -> 45 | F152: =VLOOKUP(E152,$H$8:$I$11,2) -> 31 >= Days Late <= 60
A153: Blanchard, Rubi | B153: 3450 | C153: 2014-04-25 | D153: 2014-07-01 | E153: =D153-C153 -> 67 | F153: =VLOOKUP(E153,$H$8:$I$11,2) -> 61 >= Days Late <= 90
A154: Nutt, Altagracia | B154: 2044 | C154: 2014-05-29 | D154: 2014-07-22 | E154: =D154-C154 -> 54 | F154: =VLOOKUP(E154,$H$8:$I$11,2) -> 31 >= Days Late <= 60
A155: Haight, Darrick | B155: 4343 | C155: 2014-04-13 | D155: 2014-05-13 | E155: =D155-C155 -> 30 | F155: =VLOOKUP(E155,$H$8:$I$11,2) -> 1 >= Days Late <= 30
A156: Hemphill, Monnie | B156: 5836 | C156: 2013-12-13 | D156: 2014-02-13 | E156: =D156-C156 -> 62 | F156: =VLOOKUP(E156,$H$8:$I$11,2) -> 61 >= Days Late <= 90
A157: Parson, Terrilyn | B157: 5444 | C157: 2014-04-04 | D157: 2014-05-16 | E157: =D157-C157 -> 42 | F157: =VLOOKUP(E157,$H$8:$I$11,2) -> 31 >= Days Late <= 60
A158: Mccall, Kasie | B158: 2633 | C158: 2014-04-23 | D158: 2014-05-12 | E158: =D158-C158 -> 19 | F158: =VLOOKUP(E158,$H$8:$I$11,2) -> 1 >= Days Late <= 30
A159: Pollack, Latesha | B159: 1059 | C159: 2014-05-18 | D159: 2014-07-05 | E159: =D159-C159 -> 48 | F159: =VLOOKUP(E159,$H$8:$I$11,2) -> 31 >= Days Late <= 60
A160: Rubin, Reynaldo | B160: 6493 | C160: 2014-04-17 | D160: 2014-05-20 | E160: =D160-C160 -> 33 | F160: =VLOOKUP(E160,$H$8:$I$11,2) -> 31 >= Days Late <= 60
A161: Brill, Evelynn | B161: 835 | C161: 2013-11-23 | D161: 2014-03-15 | E161: =D161-C161 -> 112 | F161: =VLOOKUP(E161,$H$8:$I$11,2) -> 90 >= Days Late <= 365
A162: Irby, Tama | B162: 3846 | C162: 2013-11-02 | D162: 2014-01-12 | E162: =D162-C162 -> 71 | F162: =VLOOKUP(E162,$H$8:$I$11,2) -> 61 >= Days Late <= 90
A163: Hatton, Faustina | B163: 5513 | C163: 2014-05-01 | D163: 2014-05-31 | E163: =D163-C163 -> 30 | F163: =VLOOKUP(E163,$H$8:$I$11,2) -> 1 >= Days Late <= 30
A164: Finnegan, Marine | B164: 1025 | C164: 2014-03-29 | D164: 2014-06-14 | E164: =D164-C164 -> 77 | F164: =VLOOKUP(E164,$H$8:$I$11,2) -> 61 >= Days Late <= 90
A165: Pierson, Effie | B165: 1927 | C165: 2014-03-05 | D165: 2014-04-16 | E165: =D165-C165 -> 42 | F165: =VLOOKUP(E165,$H$8:$I$11,2) -> 31 >= Days Late <= 60
A166: Ashe, Beata | B166: 2743 | C166: 2014-04-15 | D166: 2014-06-30 | E166: =D166-C166 -> 76 | F166: =VLOOKUP(E166,$H$8:$I$11,2) -> 61 >= Days Late <= 90
A167: Taft, Lala | B167: 329 | C167: 2014-04-03 | D167: 2014-06-16 | E167: =D167-C167 -> 74 | F167: =VLOOKUP(E167,$H$8:$I$11,2) -> 61 >= Days Late <= 90
A168: Rutledge, Apryl | B168: 4869 | C168: 2014-04-22 | D168: 2014-06-02 | E168: =D168-C168 -> 41 | F168: =VLOOKUP(E168,$H$8:$I$11,2) -> 31 >= Days Late <= 60
A169: Byrnes, Edmundo | B169: 2476 | C169: 2014-02-27 | D169: 2014-05-08 | E169: =D169-C169 -> 70 | F169: =VLOOKUP(E169,$H$8:$I$11,2) -> 61 >= Days Late <= 90
A170: Baca, Tressa | B170: 175 | C170: 2013-10-06 | D170: 2013-12-14 | E170: =D170-C170 -> 69 | F170: =VLOOKUP(E170,$H$8:$I$11,2) -> 61 >= Days Late <= 90
A171: Mckinley, Gay | B171: 584 | C171: 2014-03-21 | D171: 2014-06-06 | E171: =D171-C171 -> 77 | F171: =VLOOKUP(E171,$H$8:$I$11,2) -> 61 >= Days Late <= 90
A172: Mckeown, Aisha | B172: 3846 | C172: 2014-02-09 | D172: 2014-04-20 | E172: =D172-C172 -> 70 | F172: =VLOOKUP(E172,$H$8:$I$11,2) -> 61 >= Days Late <= 90
A173: Ezell, Scarlet | B173: 5955 | C173: 2014-03-06 | D173: 2014-05-14 | E173: =D173-C173 -> 69 | F173: =VLOOKUP(E173,$H$8:$I$11,2) -> 61 >= Days Late <= 90
A174: Conners, Julissa | B174: 2780 | C174: 2014-02-02 | D174: 2014-04-03 | E174: =D174-C174 -> 60 | F174: =VLOOKUP(E174,$H$8:$I$11,2) -> 31 >= Days Late <= 60
A175: Herrick, Jae | B175: 4013 | C175: 2014-01-21 | D175: 2014-03-07 | E175: =D175-C175 -> 45 | F175: =VLOOKUP(E175,$H$8:$I$11,2) -> 31 >= Days Late <= 60
A176: Pereira, Otilia | B176: 6470 | C176: 2014-01-18 | D176: 2014-02-09 | E176: =D176-C176 -> 22 | F176: =VLOOKUP(E176,$H$8:$I$11,2) -> 1 >= Days Late <= 30
A177: Hilliard, Dion | B177: 4254 | C177: 2014-03-15 | D177: 2014-05-25 | E177: =D177-C177 -> 71 | F177: =VLOOKUP(E177,$H$8:$I$11,2) -> 61 >= Days Late <= 90
A178: Rayford, Karol | B178: 5857 | C178: 2014-06-01 | D178: 2014-07-30 | E178: =D178-C178 -> 59 | F178: =VLOOKUP(E178,$H$8:$I$11,2) -> 31 >= Days Late <= 60
A179: Lavigne, Zetta | B179: 5594 | C179: 2014-03-16 | D179: 2014-04-28 | E179: =D179-C179 -> 43 | F179: =VLOOKUP(E179,$H$8:$I$11,2) -> 31 >= Days Late <= 60
A180: Doty, Zoila | B180: 3366 | C180: 2014-01-06 | D180: 2014-02-12 | E180: =D180-C180 -> 37 | F180: =VLOOKUP(E180,$H$8:$I$11,2) -> 31 >= Days Late <= 60
A181: Bedford, Michael | B181: 137 | C181: 2014-04-23 | D181: 2014-04-29 | E181: =D181-C181 -> 6 | F181: =VLOOKUP(E181,$H$8:$I$11,2) -> 1 >= Days Late <= 30
A182: Barden, Billye | B182: 4044 | C182: 2014-04-05 | D182: 2014-05-08 | E182: =D182-C182 -> 33 | F182: =VLOOKUP(E182,$H$8:$I$11,2) -> 31 >= Days Late <= 60
A183: Stoddard, Sondra | B183: 3095 | C183: 2014-04-02 | D183: 2014-06-16 | E183: =D183-C183 -> 75 | F183: =VLOOKUP(E183,$H$8:$I$11,2) -> 61 >= Days Late <= 90
A184: Varner, Alba | B184: 5636 | C184: 2014-01-12 | D184: 2014-02-24 | E184: =D184-C184 -> 43 | F184: =VLOOKUP(E184,$H$8:$I$11,2) -> 31 >= Days Late <= 60
A185: Harlow, Gilda | B185: 6267 | C185: 2014-01-16 | D185: 2014-03-25 | E185: =D185-C185 -> 68 | F185: =VLOOKUP(E185,$H$8:$I$11,2) -> 61 >= Days Late <= 90
A186: Vallejo, Ophelia | B186: 867 | C186: 2014-03-19 | D186: 2014-05-15 | E186: =D186-C186 -> 57 | F186: =VLOOKUP(E186,$H$8:$I$11,2) -> 31 >= Days Late <= 60
A187: Shields, Madie | B187: 13 | C187: 2014-03-17 | D187: 2014-05-02 | E187: =D187-C187 -> 46 | F187: =VLOOKUP(E187,$H$8:$I$11,2) -> 31 >= Days Late <= 60
A188: Mcconnell, Jonna | B188: 1499 | C188: 2014-01-05 | D188: 2014-03-12 | E188: =D188-C188 -> 66 | F188: =VLOOKUP(E188,$H$8:$I$11,2) -> 61 >= Days Late <= 90
A189: Horn, Elissa | B189: 1575 | C189: 2014-05-18 | D189: 2014-07-08 | E189: =D189-C189 -> 51 | F189: =VLOOKUP(E189,$H$8:$I$11,2) -> 31 >= Days Late <= 60
A190: Beebe, Leonila | B190: 3750 | C190: 2014-03-31 | D190: 2014-06-17 | E190: =D190-C190 -> 78 | F190: =VLOOKUP(E190,$H$8:$I$11,2) -> 61 >= Days Late <= 90
A191: Snow, Tamera | B191: 2132 | C191: 2014-04-12 | D191: 2014-05-15 | E191: =D191-C191 -> 33 | F191: =VLOOKUP(E191,$H$8:$I$11,2) -> 31 >= Days Late <= 60
A192: Creel, Jodee | B192: 4158 | C192: 2014-04-24 | D192: 2014-05-31 | E192: =D192-C192 -> 37 | F192: =VLOOKUP(E192,$H$8:$I$11,2) -> 31 >= Days Late <= 60
A193: Joy, Vern | B193: 5658 | C193: 2014-05-08 | D193: 2014-07-01 | E193: =D193-C193 -> 54 | F193: =VLOOKUP(E193,$H$8:$I$11,2) -> 31 >= Days Late <= 60
A194: Dorsey, Khalilah | B194: 217 | C194: 2014-01-05 | D194: 2014-01-26 | E194: =D194-C194 -> 21 | F194: =VLOOKUP(E194,$H$8:$I$11,2) -> 1 >= Days Late <= 30
A195: Meek, Exie | B195: 4107 | C195: 2014-03-28 | D195: 2014-04-23 | E195: =D195-C195 -> 26 | F195: =VLOOKUP(E195,$H$8:$I$11,2) -> 1 >= Days Late <= 30
A196: Marvin, Maybell | B196: 1356 | C196: 2013-12-27 | D196: 2014-02-28 | E196: =D196-C196 -> 63 | F196: =VLOOKUP(E196,$H$8:$I$11,2) -> 61 >= Days Late <= 90
A197: Mccain, Elba | B197: 6448 | C197: 2013-10-05 | D197: 2013-11-16 | E197: =D197-C197 -> 42 | F197: =VLOOKUP(E197,$H$8:$I$11,2) -> 31 >= Days Late <= 60
A198: Breen, Dakota | B198: 1752 | C198: 2014-05-18 | D198: 2014-06-18 | E198: =D198-C198 -> 31 | F198: =VLOOKUP(E198,$H$8:$I$11,2) -> 31 >= Days Late <= 60
A199: Benner, Valda | B199: 1956 | C199: 2014-03-04 | D199: 2014-05-05 | E199: =D199-C199 -> 62 | F199: =VLOOKUP(E199,$H$8:$I$11,2) -> 61 >= Days Late <= 90
A200: Spalding, Elisha | B200: 3522 | C200: 2014-04-09 | D200: 2014-06-04 | E200: =D200-C200 -> 56 | F200: =VLOOKUP(E200,$H$8:$I$11,2) -> 31 >= Days Late <= 60
A201: Lance, Mitsue | B201: 1704 | C201: 2014-01-21 | D201: 2014-03-03 | E201: =D201-C201 -> 41 | F201: =VLOOKUP(E201,$H$8:$I$11,2) -> 31 >= Days Late <= 60
A202: Monahan, Tanika | B202: 1601 | C202: 2014-04-25 | D202: 2014-05-28 | E202: =D202-C202 -> 33 | F202: =VLOOKUP(E202,$H$8:$I$11,2) -> 31 >= Days Late <= 60
... 5 more rows

Sheet (an) 1 >= Days Late <= 30
A1: Report Category | B1: 1 >= Days Late <= 30
A3: Customer | B3: InvoiceAmount | C3: Days Late
A4: Hummel, Joya | B4: 3030 | C4: 30
A5: Haight, Darrick | B5: 4343 | C5: 30
A6: Carlisle, Cameron | B6: 4416 | C6: 30
A7: Hatton, Faustina | B7: 5513 | C7: 30
A8: Mcintosh, Janeth | B8: 1017 | C8: 28
A9: Boyles, Ilda | B9: 5741 | C9: 27
A10: Meek, Exie | B10: 4107 | C10: 26
A11: Galindo, Retha | B11: 1251 | C11: 26
A12: Grooms, Otilia | B12: 1070 | C12: 25
A13: Smiley, Brunilda | B13: 282 | C13: 24
A14: Eldridge, Beckie | B14: 2932 | C14: 23
A15: Mccrary, Merlyn | B15: 4569 | C15: 23
A16: Pereira, Otilia | B16: 6470 | C16: 22
A17: Tolbert, Yoshiko | B17: 1891 | C17: 22
A18: Perreault, Angelique | B18: 2402 | C18: 22
A19: Kinard, Laquita | B19: 3459 | C19: 22
A20: Gallagher, Damian | B20: 6121 | C20: 21
A21: Valentin, Regena | B21: 5153 | C21: 21
A22: Dorsey, Khalilah | B22: 217 | C22: 21
A23: Moe, Christi | B23: 4914 | C23: 21
A24: Brackett, Curtis | B24: 4850 | C24: 21
A25: Mccall, Kasie | B25: 2633 | C25: 19
A26: Briones, Adria | B26: 499 | C26: 8
A27: Bedford, Michael | B27: 137 | C27: 6
A28: Grand Total | B28: 77017 | C28: 548

Sheet (an) 31 >= Days Late <= 60
A1: Report Category | B1: 31 >= Days Late <= 60
A3: Customer | B3: InvoiceAmount | C3: Days Late
A4: Dumas, Genie | B4: 4559 | C4: 60
A5: Gillen, Andree | B5: 4033 | C5: 60
A6: Tobin, Dalila | B6: 1098 | C6: 60
A7: Conners, Julissa | B7: 2780 | C7: 60
A8: Cortes, Petrina | B8: 4477 | C8: 60
A9: Eckert, Xiomara | B9: 3741 | C9: 60
A10: Rayford, Karol | B10: 5857 | C10: 59
A11: Loftin, Burton | B11: 6383 | C11: 59
A12: Torrence, Armida | B12: 2031 | C12: 59
A13: Jeffery, Alaine | B13: 6372 | C13: 59
A14: Wick, Tamatha | B14: 3094 | C14: 58
A15: Gallardo, Armida | B15: 855 | C15: 58
A16: Larose, Gwyneth | B16: 3815 | C16: 58
A17: Rapp, Jeni | B17: 245 | C17: 57
A18: Vallejo, Ophelia | B18: 867 | C18: 57
A19: Carey, Kristan | B19: 5095 | C19: 57
A20: Hardison, Kacy | B20: 3452 | C20: 57
A21: Buffington, Fonda | B21: 1184 | C21: 57
A22: Larsen, Kaila | B22: 1441 | C22: 57
A23: Whited, Un | B23: 4797 | C23: 56
A24: Delossantos, Son | B24: 61 | C24: 56
A25: Spalding, Elisha | B25: 3522 | C25: 56
A26: Arnett, Helaine | B26: 777 | C26: 56
A27: Joy, Vern | B27: 5658 | C27: 54
A28: Nutt, Altagracia | B28: 2044 | C28: 54
A29: Pack, Bradly | B29: 1027 | C29: 53
A30: Tillman, Yasmine | B30: 4718 | C30: 53
A31: Paz, Maia | B31: 4294 | C31: 53
A32: Brant, Elouise | B32: 6476 | C32: 52
A33: Horn, Elissa | B33: 1575 | C33: 51
A34: Turk, Hildegarde | B34: 3851 | C34: 51
A35: Bray, Errol | B35: 3869 | C35: 51
A36: Harlow, Carmel | B36: 5513 | C36: 50
A37: Toler, Evita | B37: 5022 | C37: 50
A38: Hickey, Melina | B38: 3531 | C38: 48
A39: Pollack, Latesha | B39: 1059 | C39: 48
A40: Oconner, Glynda | B40: 3469 | C40: 48
A41: Ervin, Lavern | B41: 1025 | C41: 47
A42: Ho, Sylvie | B42: 4292 | C42: 47
A43: Epps, Eldora | B43: 1712 | C43: 46
A44: Picard, Margherita | B44: 4596 | C44: 46
A45: Potts, Burma | B45: 1939 | C45: 46
A46: Sander, Carin | B46: 6391 | C46: 46
A47: Shields, Madie | B47: 13 | C47: 46
A48: Dailey, Joel | B48: 1099 | C48: 45
A49: Herrick, Jae | B49: 4013 | C49: 45
A50: Damico, Ammie | B50: 4335 | C50: 44
A51: Watt, Edward | B51: 3994 | C51: 44
A52: Newby, Kiersten | B52: 1011 | C52: 44
A53: Varner, Alba | B53: 5636 | C53: 43
A54: Patino, Joseph | B54: 2686 | C54: 43
A55: Lavigne, Zetta | B55: 5594 | C55: 43
A56: Burrows, Merideth | B56: 4393 | C56: 43
A57: Caruso, Ninfa | B57: 3774 | C57: 43
A58: Littleton, Izola | B58: 2220 | C58: 42
A59: Minor, Ranee | B59: 5264 | C59: 42
A60: Parson, Terrilyn | B60: 5444 | C60: 42
A61: Pierson, Effie | B61: 1927 | C61: 42
A62: Mccain, Elba | B62: 6448 | C62: 42
A63: Lance, Mitsue | B63: 1704 | C63: 41
A64: Rutledge, Apryl | B64: 4869 | C64: 41
A65: Epstein, Lakia | B65: 3821 | C65: 41
A66: Cass, Anthony | B66: 2015 | C66: 40
A67: Paquette, Cathey | B67: 2412 | C67: 40
A68: Hutchens, Maryanne | B68: 1651 | C68: 40
A69: Gold, Theola | B69: 715 | C69: 39
A70: Shah, Lorenza | B70: 2656 | C70: 39
A71: Heaton, Lin | B71: 4377 | C71: 38
A72: Adam, Elmer | B72: 3920 | C72: 38
A73: Oconnor, Nery | B73: 2006 | C73: 38
A74: Fuchs, Anneliese | B74: 523 | C74: 38
A75: Marcus, Iona | B75: 3080 | C75: 38
A76: Dupont, Mica | B76: 125 | C76: 37
A77: Creel, Jodee | B77: 4158 | C77: 37
A78: Gilman, Romona | B78: 970 | C78: 37
A79: Doty, Zoila | B79: 3366 | C79: 37
A80: Mcreynolds, Fern | B80: 1641 | C80: 37
A81: Dancy, Deena | B81: 2449 | C81: 36
A82: Seidel, Maren | B82: 879 | C82: 36
A83: Shank, Sebastian | B83: 3612 | C83: 36
A84: Hartmann, Samual | B84: 5171 | C84: 35
A85: Hindman, Dorthey | B85: 2647 | C85: 35
A86: Fitzpatrick, Hunter | B86: 5603 | C86: 35
A87: Hancock, Richie | B87: 4841 | C87: 34
A88: Byers, Natisha | B88: 2940 | C88: 33
A89: Crump, Glinda | B89: 2257 | C89: 33
A90: Rubin, Reynaldo | B90: 6493 | C90: 33
A91: Snow, Tamera | B91: 2132 | C91: 33
A92: Barden, Billye | B92: 4044 | C92: 33
A93: Monahan, Tanika | B93: 1601 | C93: 33
A94: Schrader, Numbers | B94: 2138 | C94: 33
A95: Spann, Randi | B95: 4101 | C95: 33
A96: Freedman, Kathlyn | B96: 4562 | C96: 32
A97: Mathias, Debrah | B97: 1416 | C97: 32
A98: Leary, Janelle | B98: 5027 | C98: 32
A99: Lemieux, Kiana | B99: 873 | C99: 32
A100: Schubert, Gwenn | B100: 6497 | C100: 32
A101: Breen, Dakota | B101: 1752 | C101: 31
A102: Allred, Elina | B102: 2846 | C102: 31
A103: Shah, Celsa | B103: 1411 | C103: 31
A104: Grand Total | B104: 319749 | C104: 4483

Sheet (an) 61 >= Days Late <= 90
A1: Report Category | B1: 61 >= Days Late <= 90
A3: Customer | B3: InvoiceAmount | C3: Days Late
A4: Reece, Maisie | B4: 5914 | C4: 80
A5: Hanley, Leatrice | B5: 2038 | C5: 80
A6: Doughty, Teena | B6: 3457 | C6: 80
A7: Settle, Madelene | B7: 111 | C7: 80
A8: Beals, Wyatt | B8: 5987 | C8: 79
A9: Button, Berna | B9: 4582 | C9: 79
A10: Saldana, Venita | B10: 2486 | C10: 79
A11: Barger, Lorelei | B11: 1858 | C11: 79
A12: Hook, Marisela | B12: 6475 | C12: 78
A13: Beebe, Leonila | B13: 3750 | C13: 78
A14: Walter, Bernardina | B14: 5660 | C14: 78
A15: Dew, Kaye | B15: 3267 | C15: 78
A16: Mckinley, Gay | B16: 584 | C16: 77
A17: Coombs, Rasheeda | B17: 4241 | C17: 77
A18: Finnegan, Marine | B18: 1025 | C18: 77
A19: Ashe, Beata | B19: 2743 | C19: 76
A20: Bittner, Kiyoko | B20: 5185 | C20: 75
A21: Stoddard, Sondra | B21: 3095 | C21: 75
A22: Nieves, Treva | B22: 4303 | C22: 75
A23: Taft, Lala | B23: 329 | C23: 74
A24: Angulo, Dierdre | B24: 6260 | C24: 74
A25: Scanlon, Catherina | B25: 3458 | C25: 73
A26: Roach, Allena | B26: 5443 | C26: 72
A27: Hilliard, Dion | B27: 4254 | C27: 71
A28: Irby, Tama | B28: 3846 | C28: 71
A29: Clanton, Kendall | B29: 2508 | C29: 70
A30: Honeycutt, Lane | B30: 4806 | C30: 70
A31: Mckeown, Aisha | B31: 3846 | C31: 70
A32: Byrnes, Edmundo | B32: 2476 | C32: 70
A33: Breeden, Karol | B33: 2095 | C33: 69
A34: Clemmons, Delpha | B34: 2034 | C34: 69
A35: Fournier, Dorene | B35: 4471 | C35: 69
A36: Baca, Tressa | B36: 175 | C36: 69
A37: Elston, Shara | B37: 4993 | C37: 69
A38: Ezell, Scarlet | B38: 5955 | C38: 69
A39: Kyle, Addie | B39: 205 | C39: 69
A40: Harlow, Gilda | B40: 6267 | C40: 68
A41: Blanchard, Rubi | B41: 3450 | C41: 67
A42: Spooner, Maryln | B42: 1530 | C42: 66
A43: Timmons, Devon | B43: 3480 | C43: 66
A44: Mcconnell, Jonna | B44: 1499 | C44: 66
A45: Bonilla, Michel | B45: 5394 | C45: 66
A46: Mosier, Maude | B46: 4378 | C46: 66
A47: Johns, Yuonne | B47: 1414 | C47: 66
A48: Whitman, Donita | B48: 311 | C48: 66
A49: Pride, Adolfo | B49: 448 | C49: 66
A50: Roden, Marylee | B50: 5077 | C50: 65
A51: Coffin, Wai | B51: 3147 | C51: 65
A52: Muniz, Domitila | B52: 4272 | C52: 65
A53: Pak, Dollie | B53: 1644 | C53: 64
A54: Casper, Senaida | B54: 2168 | C54: 63
A55: Eldridge, Bridgett | B55: 4280 | C55: 63
A56: Glynn, Louis | B56: 2995 | C56: 63
A57: Grimes, Isis | B57: 4694 | C57: 63
A58: Marvin, Maybell | B58: 1356 | C58: 63
A59: Easter, Valarie | B59: 3496 | C59: 63
A60: Benner, Valda | B60: 1956 | C60: 62
A61: Hemphill, Monnie | B61: 5836 | C61: 62
A62: Hickson, Margareta | B62: 2972 | C62: 61
A63: Parr, Consuela | B63: 2246 | C63: 61
A64: Grand Total | B64: 198225 | C64: 4224

Sheet (an) 90 >= Days Late <= 365
A1: Report Category | B1: 90 >= Days Late <= 365
A3: Customer | B3: InvoiceAmount | C3: Days Late
A4: Mclean, Eldora | B4: 1929 | C4: 147
A5: Steffen, Malinda | B5: 3282 | C5: 145
A6: Pimentel, Cristopher | B6: 1290 | C6: 142
A7: Wofford, Reyes | B7: 4865 | C7: 141
A8: Hibbard, Marceline | B8: 4904 | C8: 139
A9: Lentz, Rosana | B9: 1822 | C9: 132
A10: Brill, Evelynn | B10: 835 | C10: 112
A11: Pennell, Willena | B11: 1440 | C11: 112
A12: Cousins, Jeniffer | B12: 6013 | C12: 110
A13: Edgar, Dusti | B13: 5261 | C13: 107
A14: Dang, Trista | B14: 343 | C14: 107
A15: Silverman, Delmar | B15: 2237 | C15: 107
A16: Shuman, Cordia | B16: 5681 | C16: 103
A17: Zook, Corrinne | B17: 1718 | C17: 97
A18: Anglin, Thanh | B18: 1617 | C18: 93
A19: Thigpen, Mia | B19: 5517 | C19: 92
A20: Grand Total | B20: 48754 | C20: 1886

Sheet (an) PT(1)
A1: Report Category | B1: (All)
A3: Customer | B3: InvoiceAmount | C3: Days Late
A4: Mclean, Eldora | B4: 1929 | C4: 147
A5: Steffen, Malinda | B5: 3282 | C5: 145
A6: Pimentel, Cristopher | B6: 1290 | C6: 142
A7: Wofford, Reyes | B7: 4865 | C7: 141
A8: Hibbard, Marceline | B8: 4904 | C8: 139
A9: Lentz, Rosana | B9: 1822 | C9: 132
A10: Pennell, Willena | B10: 1440 | C10: 112
A11: Brill, Evelynn | B11: 835 | C11: 112
A12: Cousins, Jeniffer | B12: 6013 | C12: 110
A13: Dang, Trista | B13: 343 | C13: 107
A14: Edgar, Dusti | B14: 5261 | C14: 107
A15: Silverman, Delmar | B15: 2237 | C15: 107
A16: Shuman, Cordia | B16: 5681 | C16: 103
A17: Zook, Corrinne | B17: 1718 | C17: 97
A18: Anglin, Thanh | B18: 1617 | C18: 93
A19: Thigpen, Mia | B19: 5517 | C19: 92
A20: Reece, Maisie | B20: 5914 | C20: 80
A21: Settle, Madelene | B21: 111 | C21: 80
A22: Doughty, Teena | B22: 3457 | C22: 80
A23: Hanley, Leatrice | B23: 2038 | C23: 80
A24: Button, Berna | B24: 4582 | C24: 79
A25: Saldana, Venita | B25: 2486 | C25: 79
A26: Beals, Wyatt | B26: 5987 | C26: 79
A27: Barger, Lorelei | B27: 1858 | C27: 79
A28: Dew, Kaye | B28: 3267 | C28: 78
A29: Walter, Bernardina | B29: 5660 | C29: 78
A30: Beebe, Leonila | B30: 3750 | C30: 78
A31: Hook, Marisela | B31: 6475 | C31: 78
A32: Coombs, Rasheeda | B32: 4241 | C32: 77
A33: Mckinley, Gay | B33: 584 | C33: 77
A34: Finnegan, Marine | B34: 1025 | C34: 77
A35: Ashe, Beata | B35: 2743 | C35: 76
A36: Nieves, Treva | B36: 4303 | C36: 75
A37: Stoddard, Sondra | B37: 3095 | C37: 75
A38: Bittner, Kiyoko | B38: 5185 | C38: 75
A39: Angulo, Dierdre | B39: 6260 | C39: 74
A40: Taft, Lala | B40: 329 | C40: 74
A41: Scanlon, Catherina | B41: 3458 | C41: 73
A42: Roach, Allena | B42: 5443 | C42: 72
A43: Irby, Tama | B43: 3846 | C43: 71
A44: Hilliard, Dion | B44: 4254 | C44: 71
A45: Clanton, Kendall | B45: 2508 | C45: 70
A46: Mckeown, Aisha | B46: 3846 | C46: 70
A47: Honeycutt, Lane | B47: 4806 | C47: 70
A48: Byrnes, Edmundo | B48: 2476 | C48: 70
A49: Fournier, Dorene | B49: 4471 | C49: 69
A50: Ezell, Scarlet | B50: 5955 | C50: 69
A51: Elston, Shara | B51: 4993 | C51: 69
A52: Kyle, Addie | B52: 205 | C52: 69
A53: Breeden, Karol | B53: 2095 | C53: 69
A54: Baca, Tressa | B54: 175 | C54: 69
A55: Clemmons, Delpha | B55: 2034 | C55: 69
A56: Harlow, Gilda | B56: 6267 | C56: 68
A57: Blanchard, Rubi | B57: 3450 | C57: 67
A58: Bonilla, Michel | B58: 5394 | C58: 66
A59: Mcconnell, Jonna | B59: 1499 | C59: 66
A60: Spooner, Maryln | B60: 1530 | C60: 66
A61: Pride, Adolfo | B61: 448 | C61: 66
A62: Timmons, Devon | B62: 3480 | C62: 66
A63: Johns, Yuonne | B63: 1414 | C63: 66
A64: Whitman, Donita | B64: 311 | C64: 66
A65: Mosier, Maude | B65: 4378 | C65: 66
A66: Roden, Marylee | B66: 5077 | C66: 65
A67: Muniz, Domitila | B67: 4272 | C67: 65
A68: Coffin, Wai | B68: 3147 | C68: 65
A69: Pak, Dollie | B69: 1644 | C69: 64
A70: Easter, Valarie | B70: 3496 | C70: 63
A71: Marvin, Maybell | B71: 1356 | C71: 63
A72: Grimes, Isis | B72: 4694 | C72: 63
A73: Casper, Senaida | B73: 2168 | C73: 63
A74: Eldridge, Bridgett | B74: 4280 | C74: 63
A75: Glynn, Louis | B75: 2995 | C75: 63
A76: Benner, Valda | B76: 1956 | C76: 62
A77: Hemphill, Monnie | B77: 5836 | C77: 62
A78: Hickson, Margareta | B78: 2972 | C78: 61
A79: Parr, Consuela | B79: 2246 | C79: 61
A80: Conners, Julissa | B80: 2780 | C80: 60
A81: Gillen, Andree | B81: 4033 | C81: 60
A82: Tobin, Dalila | B82: 1098 | C82: 60
A83: Eckert, Xiomara | B83: 3741 | C83: 60
A84: Dumas, Genie | B84: 4559 | C84: 60
A85: Cortes, Petrina | B85: 4477 | C85: 60
A86: Torrence, Armida | B86: 2031 | C86: 59
A87: Loftin, Burton | B87: 6383 | C87: 59
A88: Rayford, Karol | B88: 5857 | C88: 59
A89: Jeffery, Alaine | B89: 6372 | C89: 59
A90: Gallardo, Armida | B90: 855 | C90: 58
A91: Larose, Gwyneth | B91: 3815 | C91: 58
A92: Wick, Tamatha | B92: 3094 | C92: 58
A93: Buffington, Fonda | B93: 1184 | C93: 57
A94: Hardison, Kacy | B94: 3452 | C94: 57
A95: Vallejo, Ophelia | B95: 867 | C95: 57
A96: Carey, Kristan | B96: 5095 | C96: 57
A97: Rapp, Jeni | B97: 245 | C97: 57
A98: Larsen, Kaila | B98: 1441 | C98: 57
A99: Arnett, Helaine | B99: 777 | C99: 56
A100: Whited, Un | B100: 4797 | C100: 56
A101: Spalding, Elisha | B101: 3522 | C101: 56
A102: Delossantos, Son | B102: 61 | C102: 56
A103: Joy, Vern | B103: 5658 | C103: 54
A104: Nutt, Altagracia | B104: 2044 | C104: 54
A105: Paz, Maia | B105: 4294 | C105: 53
A106: Tillman, Yasmine | B106: 4718 | C106: 53
A107: Pack, Bradly | B107: 1027 | C107: 53
A108: Brant, Elouise | B108: 6476 | C108: 52
A109: Horn, Elissa | B109: 1575 | C109: 51
A110: Turk, Hildegarde | B110: 3851 | C110: 51
A111: Bray, Errol | B111: 3869 | C111: 51
A112: Harlow, Carmel | B112: 5513 | C112: 50
A113: Toler, Evita | B113: 5022 | C113: 50
A114: Pollack, Latesha | B114: 1059 | C114: 48
A115: Hickey, Melina | B115: 3531 | C115: 48
A116: Oconner, Glynda | B116: 3469 | C116: 48
A117: Ho, Sylvie | B117: 4292 | C117: 47
A118: Ervin, Lavern | B118: 1025 | C118: 47
A119: Epps, Eldora | B119: 1712 | C119: 46
A120: Shields, Madie | B120: 13 | C120: 46
A121: Sander, Carin | B121: 6391 | C121: 46
A122: Potts, Burma | B122: 1939 | C122: 46
A123: Picard, Margherita | B123: 4596 | C123: 46
A124: Dailey, Joel | B124: 1099 | C124: 45
A125: Herrick, Jae | B125: 4013 | C125: 45
A126: Damico, Ammie | B126: 4335 | C126: 44
A127: Watt, Edward | B127: 3994 | C127: 44
A128: Newby, Kiersten | B128: 1011 | C128: 44
A129: Varner, Alba | B129: 5636 | C129: 43
A130: Patino, Joseph | B130: 2686 | C130: 43
A131: Burrows, Merideth | B131: 4393 | C131: 43
A132: Caruso, Ninfa | B132: 3774 | C132: 43
A133: Lavigne, Zetta | B133: 5594 | C133: 43
A134: Littleton, Izola | B134: 2220 | C134: 42
A135: Minor, Ranee | B135: 5264 | C135: 42
A136: Pierson, Effie | B136: 1927 | C136: 42
A137: Parson, Terrilyn | B137: 5444 | C137: 42
A138: Mccain, Elba | B138: 6448 | C138: 42
A139: Epstein, Lakia | B139: 3821 | C139: 41
A140: Lance, Mitsue | B140: 1704 | C140: 41
A141: Rutledge, Apryl | B141: 4869 | C141: 41
A142: Cass, Anthony | B142: 2015 | C142: 40
A143: Paquette, Cathey | B143: 2412 | C143: 40
A144: Hutchens, Maryanne | B144: 1651 | C144: 40
A145: Shah, Lorenza | B145: 2656 | C145: 39
A146: Gold, Theola | B146: 715 | C146: 39
A147: Marcus, Iona | B147: 3080 | C147: 38
A148: Fuchs, Anneliese | B148: 523 | C148: 38
A149: Adam, Elmer | B149: 3920 | C149: 38
A150: Heaton, Lin | B150: 4377 | C150: 38
A151: Oconnor, Nery | B151: 2006 | C151: 38
A152: Mcreynolds, Fern | B152: 1641 | C152: 37
A153: Creel, Jodee | B153: 4158 | C153: 37
A154: Doty, Zoila | B154: 3366 | C154: 37
A155: Gilman, Romona | B155: 970 | C155: 37
A156: Dupont, Mica | B156: 125 | C156: 37
A157: Dancy, Deena | B157: 2449 | C157: 36
A158: Seidel, Maren | B158: 879 | C158: 36
A159: Shank, Sebastian | B159: 3612 | C159: 36
A160: Fitzpatrick, Hunter | B160: 5603 | C160: 35
A161: Hindman, Dorthey | B161: 2647 | C161: 35
A162: Hartmann, Samual | B162: 5171 | C162: 35
A163: Hancock, Richie | B163: 4841 | C163: 34
A164: Monahan, Tanika | B164: 1601 | C164: 33
A165: Byers, Natisha | B165: 2940 | C165: 33
A166: Snow, Tamera | B166: 2132 | C166: 33
A167: Crump, Glinda | B167: 2257 | C167: 33
A168: Rubin, Reynaldo | B168: 6493 | C168: 33
A169: Schrader, Numbers | B169: 2138 | C169: 33
A170: Barden, Billye | B170: 4044 | C170: 33
A171: Spann, Randi | B171: 4101 | C171: 33
A172: Leary, Janelle | B172: 5027 | C172: 32
A173: Mathias, Debrah | B173: 1416 | C173: 32
A174: Schubert, Gwenn | B174: 6497 | C174: 32
A175: Freedman, Kathlyn | B175: 4562 | C175: 32
A176: Lemieux, Kiana | B176: 873 | C176: 32
A177: Breen, Dakota | B177: 1752 | C177: 31
A178: Shah, Celsa | B178: 1411 | C178: 31
A179: Allred, Elina | B179: 2846 | C179: 31
A180: Hummel, Joya | B180: 3030 | C180: 30
A181: Carlisle, Cameron | B181: 4416 | C181: 30
A182: Hatton, Faustina | B182: 5513 | C182: 30
A183: Haight, Darrick | B183: 4343 | C183: 30
A184: Mcintosh, Janeth | B184: 1017 | C184: 28
A185: Boyles, Ilda | B185: 5741 | C185: 27
A186: Galindo, Retha | B186: 1251 | C186: 26
A187: Meek, Exie | B187: 4107 | C187: 26
A188: Grooms, Otilia | B188: 1070 | C188: 25
A189: Smiley, Brunilda | B189: 282 | C189: 24
A190: Eldridge, Beckie | B190: 2932 | C190: 23
A191: Mccrary, Merlyn | B191: 4569 | C191: 23
A192: Pereira, Otilia | B192: 6470 | C192: 22
A193: Kinard, Laquita | B193: 3459 | C193: 22
A194: Perreault, Angelique | B194: 2402 | C194: 22
A195: Tolbert, Yoshiko | B195: 1891 | C195: 22
A196: Dorsey, Khalilah | B196: 217 | C196: 21
A197: Gallagher, Damian | B197: 6121 | C197: 21
A198: Valentin, Regena | B198: 5153 | C198: 21
A199: Moe, Christi | B199: 4914 | C199: 21
A200: Brackett, Curtis | B200: 4850 | C200: 21
A201: Mccall, Kasie | B201: 2633 | C201: 19
... 3 more rows

Sheet 1132
B1: Day 1 | C1: Day 2 | D1: Day 3 | E1: Day 4 | F1: Day 5 | G1: Day 6 | H1: Day 7 | I1: Day 8 | J1: Day 9 | K1: Day 10 | N1: Count
A2: Pro 1 | B2: 2240 | C2: 1066 | D2: -209 | E2: -272 | F2: 1991 | G2: 327 | H2: 1025 | I2: -420 | J2: 350 | K2: -215
A3: Pro 2 | B3: 33 | C3: 403 | D3: 1133 | E3: 374 | F3: 1655 | G3: 787 | H3: -104 | I3: 1940 | J3: 1129 | K3: 38
A4: Pro 3 | B4: 1683 | C4: 640 | D4: 2190 | E4: 1316 | F4: 1749 | G4: 1231 | H4: 742 | I4: -412 | J4: 991 | K4: 2410 | N4: Extract and Sort Numbers >0
A5: Pro 4 | B5: -362 | C5: 1142 | D5: 1750 | E5: 810 | F5: 2438 | G5: -387 | H5: 2280 | I5: 2177 | J5: 124 | K5: -299 | M5: 1 | Q5: =IF(ROWS(N$5:N5)>$N$2,"",_xlfn.AGGREGATE(14,6,$B$2:$K$23/($B$2:$K$23>0),M5)) -> 
A6: Pro 5 | B6: 1835 | C6: 1279 | D6: -184 | E6: 1209 | F6: 917 | G6: -383 | H6: -322 | I6: 187 | J6: 361 | K6: 2332 | M6: 2 | Q6: =IF(ROWS(N$5:N6)>$N$2,"",_xlfn.AGGREGATE(14,6,$B$2:$K$23/($B$2:$K$23>0),M6)) -> 
A7: Pro 6 | B7: 719 | C7: 2196 | D7: 2316 | E7: 780 | F7: 2392 | G7: -229 | H7: 55 | I7: 323 | J7: 2441 | K7: -385 | M7: 3 | Q7: =IF(ROWS(N$5:N7)>$N$2,"",_xlfn.AGGREGATE(14,6,$B$2:$K$23/($B$2:$K$23>0),M7)) -> 
A8: Pro 7 | B8: 1582 | C8: 1245 | D8: -78 | E8: 2284 | F8: 383 | G8: 1864 | H8: 1298 | I8: 958 | J8: 1616 | K8: 269 | M8: 4 | Q8: =IF(ROWS(N$5:N8)>$N$2,"",_xlfn.AGGREGATE(14,6,$B$2:$K$23/($B$2:$K$23>0),M8)) -> 
A9: Pro 8 | B9: 84 | C9: 1007 | D9: 1938 | E9: -107 | F9: 1857 | G9: 1923 | H9: 38 | I9: 1440 | J9: -23 | K9: 1919 | M9: 5 | Q9: =IF(ROWS(N$5:N9)>$N$2,"",_xlfn.AGGREGATE(14,6,$B$2:$K$23/($B$2:$K$23>0),M9)) -> 
A10: Pro 9 | B10: 1748 | C10: 1096 | D10: -2150 | E10: 196 | F10: 837 | G10: 1646 | H10: 322 | I10: -399 | J10: -484 | K10: 1555 | M10: 6 | Q10: =IF(ROWS(N$5:N10)>$N$2,"",_xlfn.AGGREGATE(14,6,$B$2:$K$23/($B$2:$K$23>0),M10)) -> 
A11: Pro 10 | B11: 2175 | C11: 195 | D11: 322 | E11: 359 | F11: -266 | G11: 266 | H11: 1011 | I11: 0 | J11: 1175 | K11: 1992 | M11: 7 | Q11: =IF(ROWS(N$5:N11)>$N$2,"",_xlfn.AGGREGATE(14,6,$B$2:$K$23/($B$2:$K$23>0),M11)) -> 
A12: Pro 11 | B12: -428 | C12: 990 | D12: 1654 | E12: 1354 | F12: 1180 | G12: -334 | H12: 1358 | I12: 98 | J12: 467 | K12: 155 | M12: 8 | Q12: =IF(ROWS(N$5:N12)>$N$2,"",_xlfn.AGGREGATE(14,6,$B$2:$K$23/($B$2:$K$23>0),M12)) -> 
A13: Pro 12 | B13: 1002 | C13: 59 | D13: 744 | E13: 334 | F13: -416 | G13: 2210 | H13: 1756 | I13: 1650 | J13: 267 | K13: 728 | M13: 9 | Q13: =IF(ROWS(N$5:N13)>$N$2,"",_xlfn.AGGREGATE(14,6,$B$2:$K$23/($B$2:$K$23>0),M13)) -> 
A14: Pro 13 | B14: 2167 | C14: 236 | D14: 2062 | E14: 31 | F14: 1414 | G14: 2196 | H14: 1133 | I14: 346 | J14: 1838 | K14: 893 | M14: 10 | Q14: =IF(ROWS(N$5:N14)>$N$2,"",_xlfn.AGGREGATE(14,6,$B$2:$K$23/($B$2:$K$23>0),M14)) -> 
A15: Pro 14 | B15: 1688 | C15: 2357 | D15: 1124 | E15: 1786 | F15: 342 | G15: 243 | H15: 1607 | I15: 658 | J15: 2132 | K15: 1293 | M15: 11 | Q15: =IF(ROWS(N$5:N15)>$N$2,"",_xlfn.AGGREGATE(14,6,$B$2:$K$23/($B$2:$K$23>0),M15)) -> 
A16: Pro 15 | B16: -111 | C16: 954 | D16: 1462 | E16: -12 | F16: 929 | G16: 2304 | H16: 2351 | I16: 1465 | J16: 2420 | K16: 13 | M16: 12 | Q16: =IF(ROWS(N$5:N16)>$N$2,"",_xlfn.AGGREGATE(14,6,$B$2:$K$23/($B$2:$K$23>0),M16)) -> 
A17: Pro 16 | B17: 2144 | C17: 92 | D17: 755 | E17: -319 | F17: 913 | G17: 1673 | H17: 1126 | I17: 1891 | J17: 2283 | K17: 1049 | M17: 13 | Q17: =IF(ROWS(N$5:N17)>$N$2,"",_xlfn.AGGREGATE(14,6,$B$2:$K$23/($B$2:$K$23>0),M17)) -> 
A18: Pro 17 | B18: 2310 | C18: 128 | D18: 80 | E18: 52 | F18: 1136 | G18: 2078 | H18: -14 | I18: 2064 | J18: -147 | K18: -184 | M18: 14 | Q18: =IF(ROWS(N$5:N18)>$N$2,"",_xlfn.AGGREGATE(14,6,$B$2:$K$23/($B$2:$K$23>0),M18)) -> 
A19: Pro 18 | B19: 448 | C19: 829 | D19: 989 | E19: -264 | F19: 555 | G19: 1078 | H19: 2264 | I19: 1992 | J19: 2 | K19: 2476 | M19: 15 | Q19: =IF(ROWS(N$5:N19)>$N$2,"",_xlfn.AGGREGATE(14,6,$B$2:$K$23/($B$2:$K$23>0),M19)) -> 
A20: Pro 19 | B20: 2500 | C20: 1835 | D20: 783 | E20: 1425 | F20: 1596 | G20: 2461 | H20: 342 | I20: -1458 | J20: 27 | K20: 2243 | M20: 16 | Q20: =IF(ROWS(N$5:N20)>$N$2,"",_xlfn.AGGREGATE(14,6,$B$2:$K$23/($B$2:$K$23>0),M20)) -> 
A21: Pro 20 | B21: 1929 | C21: 39 | D21: 372 | E21: 122 | F21: 685 | G21: 1821 | H21: 1046 | I21: 520 | J21: 1115 | K21: 2166 | M21: 17 | Q21: =IF(ROWS(N$5:N21)>$N$2,"",_xlfn.AGGREGATE(14,6,$B$2:$K$23/($B$2:$K$23>0),M21)) -> 
A22: Pro 21 | B22: -286 | C22: 1828 | D22: 1410 | E22: 497 | F22: 1564 | G22: 1599 | H22: 461 | I22: 681 | J22: 1102 | K22: 2146 | M22: 18 | Q22: =IF(ROWS(N$5:N22)>$N$2,"",_xlfn.AGGREGATE(14,6,$B$2:$K$23/($B$2:$K$23>0),M22)) -> 
A23: Pro 22 | B23: -17 | C23: 1027 | D23: 1306 | E23: 1056 | F23: 605 | G23: 555 | H23: 1973 | I23: 69 | J23: 921 | K23: -15 | M23: 19 | Q23: =IF(ROWS(N$5:N23)>$N$2,"",_xlfn.AGGREGATE(14,6,$B$2:$K$23/($B$2:$K$23>0),M23)) -> 
M24: 20 | Q24: =IF(ROWS(N$5:N24)>$N$2,"",_xlfn.AGGREGATE(14,6,$B$2:$K$23/($B$2:$K$23>0),M24)) -> 
M25: 21 | Q25: =IF(ROWS(N$5:N25)>$N$2,"",_xlfn.AGGREGATE(14,6,$B$2:$K$23/($B$2:$K$23>0),M25)) -> 
M26: 22 | Q26: =IF(ROWS(N$5:N26)>$N$2,"",_xlfn.AGGREGATE(14,6,$B$2:$K$23/($B$2:$K$23>0),M26)) -> 
M27: 23 | Q27: =IF(ROWS(N$5:N27)>$N$2,"",_xlfn.AGGREGATE(14,6,$B$2:$K$23/($B$2:$K$23>0),M27)) -> 
M28: 24 | Q28: =IF(ROWS(N$5:N28)>$N$2,"",_xlfn.AGGREGATE(14,6,$B$2:$K$23/($B$2:$K$23>0),M28)) -> 
M29: 25 | Q29: =IF(ROWS(N$5:N29)>$N$2,"",_xlfn.AGGREGATE(14,6,$B$2:$K$23/($B$2:$K$23>0),M29)) -> 
M30: 26 | Q30: =IF(ROWS(N$5:N30)>$N$2,"",_xlfn.AGGREGATE(14,6,$B$2:$K$23/($B$2:$K$23>0),M30)) -> 
M31: 27 | Q31: =IF(ROWS(N$5:N31)>$N$2,"",_xlfn.AGGREGATE(14,6,$B$2:$K$23/($B$2:$K$23>0),M31)) -> 
M32: 28 | Q32: =IF(ROWS(N$5:N32)>$N$2,"",_xlfn.AGGREGATE(14,6,$B$2:$K$23/($B$2:$K$23>0),M32)) -> 
M33: 29 | Q33: =IF(ROWS(N$5:N33)>$N$2,"",_xlfn.AGGREGATE(14,6,$B$2:$K$23/($B$2:$K$23>0),M33)) -> 
M34: 30 | Q34: =IF(ROWS(N$5:N34)>$N$2,"",_xlfn.AGGREGATE(14,6,$B$2:$K$23/($B$2:$K$23>0),M34)) -> 
M35: 31 | Q35: =IF(ROWS(N$5:N35)>$N$2,"",_xlfn.AGGREGATE(14,6,$B$2:$K$23/($B$2:$K$23>0),M35)) -> 
M36: 32 | Q36: =IF(ROWS(N$5:N36)>$N$2,"",_xlfn.AGGREGATE(14,6,$B$2:$K$23/($B$2:$K$23>0),M36)) -> 
M37: 33 | Q37: =IF(ROWS(N$5:N37)>$N$2,"",_xlfn.AGGREGATE(14,6,$B$2:$K$23/($B$2:$K$23>0),M37)) -> 
M38: 34 | Q38: =IF(ROWS(N$5:N38)>$N$2,"",_xlfn.AGGREGATE(14,6,$B$2:$K$23/($B$2:$K$23>0),M38)) -> 
M39: 35 | Q39: =IF(ROWS(N$5:N39)>$N$2,"",_xlfn.AGGREGATE(14,6,$B$2:$K$23/($B$2:$K$23>0),M39)) -> 
M40: 36 | Q40: =IF(ROWS(N$5:N40)>$N$2,"",_xlfn.AGGREGATE(14,6,$B$2:$K$23/($B$2:$K$23>0),M40)) -> 
M41: 37 | Q41: =IF(ROWS(N$5:N41)>$N$2,"",_xlfn.AGGREGATE(14,6,$B$2:$K$23/($B$2:$K$23>0),M41)) -> 
M42: 38 | Q42: =IF(ROWS(N$5:N42)>$N$2,"",_xlfn.AGGREGATE(14,6,$B$2:$K$23/($B$2:$K$23>0),M42)) -> 
M43: 39 | Q43: =IF(ROWS(N$5:N43)>$N$2,"",_xlfn.AGGREGATE(14,6,$B$2:$K$23/($B$2:$K$23>0),M43)) -> 
M44: 40 | Q44: =IF(ROWS(N$5:N44)>$N$2,"",_xlfn.AGGREGATE(14,6,$B$2:$K$23/($B$2:$K$23>0),M44)) -> 
M45: 41 | Q45: =IF(ROWS(N$5:N45)>$N$2,"",_xlfn.AGGREGATE(14,6,$B$2:$K$23/($B$2:$K$23>0),M45)) -> 
M46: 42 | Q46: =IF(ROWS(N$5:N46)>$N$2,"",_xlfn.AGGREGATE(14,6,$B$2:$K$23/($B$2:$K$23>0),M46)) -> 
M47: 43 | Q47: =IF(ROWS(N$5:N47)>$N$2,"",_xlfn.AGGREGATE(14,6,$B$2:$K$23/($B$2:$K$23>0),M47)) -> 
M48: 44 | Q48: =IF(ROWS(N$5:N48)>$N$2,"",_xlfn.AGGREGATE(14,6,$B$2:$K$23/($B$2:$K$23>0),M48)) -> 
M49: 45 | Q49: =IF(ROWS(N$5:N49)>$N$2,"",_xlfn.AGGREGATE(14,6,$B$2:$K$23/($B$2:$K$23>0),M49)) -> 
M50: 46 | Q50: =IF(ROWS(N$5:N50)>$N$2,"",_xlfn.AGGREGATE(14,6,$B$2:$K$23/($B$2:$K$23>0),M50)) -> 
M51: 47 | Q51: =IF(ROWS(N$5:N51)>$N$2,"",_xlfn.AGGREGATE(14,6,$B$2:$K$23/($B$2:$K$23>0),M51)) -> 
M52: 48 | Q52: =IF(ROWS(N$5:N52)>$N$2,"",_xlfn.AGGREGATE(14,6,$B$2:$K$23/($B$2:$K$23>0),M52)) -> 
M53: 49 | Q53: =IF(ROWS(N$5:N53)>$N$2,"",_xlfn.AGGREGATE(14,6,$B$2:$K$23/($B$2:$K$23>0),M53)) -> 
M54: 50 | Q54: =IF(ROWS(N$5:N54)>$N$2,"",_xlfn.AGGREGATE(14,6,$B$2:$K$23/($B$2:$K$23>0),M54)) -> 
M55: 51 | Q55: =IF(ROWS(N$5:N55)>$N$2,"",_xlfn.AGGREGATE(14,6,$B$2:$K$23/($B$2:$K$23>0),M55)) -> 
M56: 52 | Q56: =IF(ROWS(N$5:N56)>$N$2,"",_xlfn.AGGREGATE(14,6,$B$2:$K$23/($B$2:$K$23>0),M56)) -> 
M57: 53 | Q57: =IF(ROWS(N$5:N57)>$N$2,"",_xlfn.AGGREGATE(14,6,$B$2:$K$23/($B$2:$K$23>0),M57)) -> 
M58: 54 | Q58: =IF(ROWS(N$5:N58)>$N$2,"",_xlfn.AGGREGATE(14,6,$B$2:$K$23/($B$2:$K$23>0),M58)) -> 
M59: 55 | Q59: =IF(ROWS(N$5:N59)>$N$2,"",_xlfn.AGGREGATE(14,6,$B$2:$K$23/($B$2:$K$23>0),M59)) -> 
M60: 56 | Q60: =IF(ROWS(N$5:N60)>$N$2,"",_xlfn.AGGREGATE(14,6,$B$2:$K$23/($B$2:$K$23>0),M60)) -> 
M61: 57 | Q61: =IF(ROWS(N$5:N61)>$N$2,"",_xlfn.AGGREGATE(14,6,$B$2:$K$23/($B$2:$K$23>0),M61)) -> 
M62: 58 | Q62: =IF(ROWS(N$5:N62)>$N$2,"",_xlfn.AGGREGATE(14,6,$B$2:$K$23/($B$2:$K$23>0),M62)) -> 
M63: 59 | Q63: =IF(ROWS(N$5:N63)>$N$2,"",_xlfn.AGGREGATE(14,6,$B$2:$K$23/($B$2:$K$23>0),M63)) -> 
M64: 60 | Q64: =IF(ROWS(N$5:N64)>$N$2,"",_xlfn.AGGREGATE(14,6,$B$2:$K$23/($B$2:$K$23>0),M64)) -> 
M65: 61 | Q65: =IF(ROWS(N$5:N65)>$N$2,"",_xlfn.AGGREGATE(14,6,$B$2:$K$23/($B$2:$K$23>0),M65)) -> 
M66: 62 | Q66: =IF(ROWS(N$5:N66)>$N$2,"",_xlfn.AGGREGATE(14,6,$B$2:$K$23/($B$2:$K$23>0),M66)) -> 
M67: 63 | Q67: =IF(ROWS(N$5:N67)>$N$2,"",_xlfn.AGGREGATE(14,6,$B$2:$K$23/($B$2:$K$23>0),M67)) -> 
M68: 64 | Q68: =IF(ROWS(N$5:N68)>$N$2,"",_xlfn.AGGREGATE(14,6,$B$2:$K$23/($B$2:$K$23>0),M68)) -> 
M69: 65 | Q69: =IF(ROWS(N$5:N69)>$N$2,"",_xlfn.AGGREGATE(14,6,$B$2:$K$23/($B$2:$K$23>0),M69)) -> 
M70: 66 | Q70: =IF(ROWS(N$5:N70)>$N$2,"",_xlfn.AGGREGATE(14,6,$B$2:$K$23/($B$2:$K$23>0),M70)) -> 
M71: 67 | Q71: =IF(ROWS(N$5:N71)>$N$2,"",_xlfn.AGGREGATE(14,6,$B$2:$K$23/($B$2:$K$23>0),M71)) -> 
M72: 68 | Q72: =IF(ROWS(N$5:N72)>$N$2,"",_xlfn.AGGREGATE(14,6,$B$2:$K$23/($B$2:$K$23>0),M72)) -> 
M73: 69 | Q73: =IF(ROWS(N$5:N73)>$N$2,"",_xlfn.AGGREGATE(14,6,$B$2:$K$23/($B$2:$K$23>0),M73)) -> 
M74: 70 | Q74: =IF(ROWS(N$5:N74)>$N$2,"",_xlfn.AGGREGATE(14,6,$B$2:$K$23/($B$2:$K$23>0),M74)) -> 
M75: 71 | Q75: =IF(ROWS(N$5:N75)>$N$2,"",_xlfn.AGGREGATE(14,6,$B$2:$K$23/($B$2:$K$23>0),M75)) -> 
M76: 72 | Q76: =IF(ROWS(N$5:N76)>$N$2,"",_xlfn.AGGREGATE(14,6,$B$2:$K$23/($B$2:$K$23>0),M76)) -> 
M77: 73 | Q77: =IF(ROWS(N$5:N77)>$N$2,"",_xlfn.AGGREGATE(14,6,$B$2:$K$23/($B$2:$K$23>0),M77)) -> 
M78: 74 | Q78: =IF(ROWS(N$5:N78)>$N$2,"",_xlfn.AGGREGATE(14,6,$B$2:$K$23/($B$2:$K$23>0),M78)) -> 
M79: 75 | Q79: =IF(ROWS(N$5:N79)>$N$2,"",_xlfn.AGGREGATE(14,6,$B$2:$K$23/($B$2:$K$23>0),M79)) -> 
M80: 76 | Q80: =IF(ROWS(N$5:N80)>$N$2,"",_xlfn.AGGREGATE(14,6,$B$2:$K$23/($B$2:$K$23>0),M80)) -> 
M81: 77 | Q81: =IF(ROWS(N$5:N81)>$N$2,"",_xlfn.AGGREGATE(14,6,$B$2:$K$23/($B$2:$K$23>0),M81)) -> 
M82: 78 | Q82: =IF(ROWS(N$5:N82)>$N$2,"",_xlfn.AGGREGATE(14,6,$B$2:$K$23/($B$2:$K$23>0),M82)) -> 
M83: 79 | Q83: =IF(ROWS(N$5:N83)>$N$2,"",_xlfn.AGGREGATE(14,6,$B$2:$K$23/($B$2:$K$23>0),M83)) -> 
M84: 80 | Q84: =IF(ROWS(N$5:N84)>$N$2,"",_xlfn.AGGREGATE(14,6,$B$2:$K$23/($B$2:$K$23>0),M84)) -> 
M85: 81 | Q85: =IF(ROWS(N$5:N85)>$N$2,"",_xlfn.AGGREGATE(14,6,$B$2:$K$23/($B$2:$K$23>0),M85)) -> 
M86: 82 | Q86: =IF(ROWS(N$5:N86)>$N$2,"",_xlfn.AGGREGATE(14,6,$B$2:$K$23/($B$2:$K$23>0),M86)) -> 
M87: 83 | Q87: =IF(ROWS(N$5:N87)>$N$2,"",_xlfn.AGGREGATE(14,6,$B$2:$K$23/($B$2:$K$23>0),M87)) -> 
M88: 84 | Q88: =IF(ROWS(N$5:N88)>$N$2,"",_xlfn.AGGREGATE(14,6,$B$2:$K$23/($B$2:$K$23>0),M88)) -> 
M89: 85 | Q89: =IF(ROWS(N$5:N89)>$N$2,"",_xlfn.AGGREGATE(14,6,$B$2:$K$23/($B$2:$K$23>0),M89)) -> 
M90: 86 | Q90: =IF(ROWS(N$5:N90)>$N$2,"",_xlfn.AGGREGATE(14,6,$B$2:$K$23/($B$2:$K$23>0),M90)) -> 
M91: 87 | Q91: =IF(ROWS(N$5:N91)>$N$2,"",_xlfn.AGGREGATE(14,6,$B$2:$K$23/($B$2:$K$23>0),M91)) -> 
M92: 88 | Q92: =IF(ROWS(N$5:N92)>$N$2,"",_xlfn.AGGREGATE(14,6,$B$2:$K$23/($B$2:$K$23>0),M92)) -> 
M93: 89 | Q93: =IF(ROWS(N$5:N93)>$N$2,"",_xlfn.AGGREGATE(14,6,$B$2:$K$23/($B$2:$K$23>0),M93)) -> 
M94: 90 | Q94: =IF(ROWS(N$5:N94)>$N$2,"",_xlfn.AGGREGATE(14,6,$B$2:$K$23/($B$2:$K$23>0),M94)) -> 
M95: 91 | Q95: =IF(ROWS(N$5:N95)>$N$2,"",_xlfn.AGGREGATE(14,6,$B$2:$K$23/($B$2:$K$23>0),M95)) -> 
M96: 92 | Q96: =IF(ROWS(N$5:N96)>$N$2,"",_xlfn.AGGREGATE(14,6,$B$2:$K$23/($B$2:$K$23>0),M96)) -> 
M97: 93 | Q97: =IF(ROWS(N$5:N97)>$N$2,"",_xlfn.AGGREGATE(14,6,$B$2:$K$23/($B$2:$K$23>0),M97)) -> 
M98: 94 | Q98: =IF(ROWS(N$5:N98)>$N$2,"",_xlfn.AGGREGATE(14,6,$B$2:$K$23/($B$2:$K$23>0),M98)) -> 
M99: 95 | Q99: =IF(ROWS(N$5:N99)>$N$2,"",_xlfn.AGGREGATE(14,6,$B$2:$K$23/($B$2:$K$23>0),M99)) -> 
M100: 96 | Q100: =IF(ROWS(N$5:N100)>$N$2,"",_xlfn.AGGREGATE(14,6,$B$2:$K$23/($B$2:$K$23>0),M100)) -> 
M101: 97 | Q101: =IF(ROWS(N$5:N101)>$N$2,"",_xlfn.AGGREGATE(14,6,$B$2:$K$23/($B$2:$K$23>0),M101)) -> 
M102: 98 | Q102: =IF(ROWS(N$5:N102)>$N$2,"",_xlfn.AGGREGATE(14,6,$B$2:$K$23/($B$2:$K$23>0),M102)) -> 
M103: 99 | Q103: =IF(ROWS(N$5:N103)>$N$2,"",_xlfn.AGGREGATE(14,6,$B$2:$K$23/($B$2:$K$23>0),M103)) -> 
M104: 100 | Q104: =IF(ROWS(N$5:N104)>$N$2,"",_xlfn.AGGREGATE(14,6,$B$2:$K$23/($B$2:$K$23>0),M104)) -> 
M105: 101 | Q105: =IF(ROWS(N$5:N105)>$N$2,"",_xlfn.AGGREGATE(14,6,$B$2:$K$23/($B$2:$K$23>0),M105)) -> 
M106: 102 | Q106: =IF(ROWS(N$5:N106)>$N$2,"",_xlfn.AGGREGATE(14,6,$B$2:$K$23/($B$2:$K$23>0),M106)) -> 
M107: 103 | Q107: =IF(ROWS(N$5:N107)>$N$2,"",_xlfn.AGGREGATE(14,6,$B$2:$K$23/($B$2:$K$23>0),M107)) -> 
M108: 104 | Q108: =IF(ROWS(N$5:N108)>$N$2,"",_xlfn.AGGREGATE(14,6,$B$2:$K$23/($B$2:$K$23>0),M108)) -> 
M109: 105 | Q109: =IF(ROWS(N$5:N109)>$N$2,"",_xlfn.AGGREGATE(14,6,$B$2:$K$23/($B$2:$K$23>0),M109)) -> 
M110: 106 | Q110: =IF(ROWS(N$5:N110)>$N$2,"",_xlfn.AGGREGATE(14,6,$B$2:$K$23/($B$2:$K$23>0),M110)) -> 
M111: 107 | Q111: =IF(ROWS(N$5:N111)>$N$2,"",_xlfn.AGGREGATE(14,6,$B$2:$K$23/($B$2:$K$23>0),M111)) -> 
M112: 108 | Q112: =IF(ROWS(N$5:N112)>$N$2,"",_xlfn.AGGREGATE(14,6,$B$2:$K$23/($B$2:$K$23>0),M112)) -> 
M113: 109 | Q113: =IF(ROWS(N$5:N113)>$N$2,"",_xlfn.AGGREGATE(14,6,$B$2:$K$23/($B$2:$K$23>0),M113)) -> 
M114: 110 | Q114: =IF(ROWS(N$5:N114)>$N$2,"",_xlfn.AGGREGATE(14,6,$B$2:$K$23/($B$2:$K$23>0),M114)) -> 
M115: 111 | Q115: =IF(ROWS(N$5:N115)>$N$2,"",_xlfn.AGGREGATE(14,6,$B$2:$K$23/($B$2:$K$23>0),M115)) -> 
M116: 112 | Q116: =IF(ROWS(N$5:N116)>$N$2,"",_xlfn.AGGREGATE(14,6,$B$2:$K$23/($B$2:$K$23>0),M116)) -> 
M117: 113 | Q117: =IF(ROWS(N$5:N117)>$N$2,"",_xlfn.AGGREGATE(14,6,$B$2:$K$23/($B$2:$K$23>0),M117)) -> 
M118: 114 | Q118: =IF(ROWS(N$5:N118)>$N$2,"",_xlfn.AGGREGATE(14,6,$B$2:$K$23/($B$2:$K$23>0),M118)) -> 
M119: 115 | Q119: =IF(ROWS(N$5:N119)>$N$2,"",_xlfn.AGGREGATE(14,6,$B$2:$K$23/($B$2:$K$23>0),M119)) -> 
M120: 116 | Q120: =IF(ROWS(N$5:N120)>$N$2,"",_xlfn.AGGREGATE(14,6,$B$2:$K$23/($B$2:$K$23>0),M120)) -> 
M121: 117 | Q121: =IF(ROWS(N$5:N121)>$N$2,"",_xlfn.AGGREGATE(14,6,$B$2:$K$23/($B$2:$K$23>0),M121)) -> 
M122: 118 | Q122: =IF(ROWS(N$5:N122)>$N$2,"",_xlfn.AGGREGATE(14,6,$B$2:$K$23/($B$2:$K$23>0),M122)) -> 
M123: 119 | Q123: =IF(ROWS(N$5:N123)>$N$2,"",_xlfn.AGGREGATE(14,6,$B$2:$K$23/($B$2:$K$23>0),M123)) -> 
M124: 120 | Q124: =IF(ROWS(N$5:N124)>$N$2,"",_xlfn.AGGREGATE(14,6,$B$2:$K$23/($B$2:$K$23>0),M124)) -> 
M125: 121 | Q125: =IF(ROWS(N$5:N125)>$N$2,"",_xlfn.AGGREGATE(14,6,$B$2:$K$23/($B$2:$K$23>0),M125)) -> 
M126: 122 | Q126: =IF(ROWS(N$5:N126)>$N$2,"",_xlfn.AGGREGATE(14,6,$B$2:$K$23/($B$2:$K$23>0),M126)) -> 
M127: 123 | Q127: =IF(ROWS(N$5:N127)>$N$2,"",_xlfn.AGGREGATE(14,6,$B$2:$K$23/($B$2:$K$23>0),M127)) -> 
M128: 124 | Q128: =IF(ROWS(N$5:N128)>$N$2,"",_xlfn.AGGREGATE(14,6,$B$2:$K$23/($B$2:$K$23>0),M128)) -> 
M129: 125 | Q129: =IF(ROWS(N$5:N129)>$N$2,"",_xlfn.AGGREGATE(14,6,$B$2:$K$23/($B$2:$K$23>0),M129)) -> 
M130: 126 | Q130: =IF(ROWS(N$5:N130)>$N$2,"",_xlfn.AGGREGATE(14,6,$B$2:$K$23/($B$2:$K$23>0),M130)) -> 
M131: 127 | Q131: =IF(ROWS(N$5:N131)>$N$2,"",_xlfn.AGGREGATE(14,6,$B$2:$K$23/($B$2:$K$23>0),M131)) -> 
M132: 128 | Q132: =IF(ROWS(N$5:N132)>$N$2,"",_xlfn.AGGREGATE(14,6,$B$2:$K$23/($B$2:$K$23>0),M132)) -> 
M133: 129 | Q133: =IF(ROWS(N$5:N133)>$N$2,"",_xlfn.AGGREGATE(14,6,$B$2:$K$23/($B$2:$K$23>0),M133)) -> 
M134: 130 | Q134: =IF(ROWS(N$5:N134)>$N$2,"",_xlfn.AGGREGATE(14,6,$B$2:$K$23/($B$2:$K$23>0),M134)) -> 
M135: 131 | Q135: =IF(ROWS(N$5:N135)>$N$2,"",_xlfn.AGGREGATE(14,6,$B$2:$K$23/($B$2:$K$23>0),M135)) -> 
M136: 132 | Q136: =IF(ROWS(N$5:N136)>$N$2,"",_xlfn.AGGREGATE(14,6,$B$2:$K$23/($B$2:$K$23>0),M136)) -> 
M137: 133 | Q137: =IF(ROWS(N$5:N137)>$N$2,"",_xlfn.AGGREGATE(14,6,$B$2:$K$23/($B$2:$K$23>0),M137)) -> 
M138: 134 | Q138: =IF(ROWS(N$5:N138)>$N$2,"",_xlfn.AGGREGATE(14,6,$B$2:$K$23/($B$2:$K$23>0),M138)) -> 
M139: 135 | Q139: =IF(ROWS(N$5:N139)>$N$2,"",_xlfn.AGGREGATE(14,6,$B$2:$K$23/($B$2:$K$23>0),M139)) -> 
M140: 136 | Q140: =IF(ROWS(N$5:N140)>$N$2,"",_xlfn.AGGREGATE(14,6,$B$2:$K$23/($B$2:$K$23>0),M140)) -> 
M141: 137 | Q141: =IF(ROWS(N$5:N141)>$N$2,"",_xlfn.AGGREGATE(14,6,$B$2:$K$23/($B$2:$K$23>0),M141)) -> 
M142: 138 | Q142: =IF(ROWS(N$5:N142)>$N$2,"",_xlfn.AGGREGATE(14,6,$B$2:$K$23/($B$2:$K$23>0),M142)) -> 
M143: 139 | Q143: =IF(ROWS(N$5:N143)>$N$2,"",_xlfn.AGGREGATE(14,6,$B$2:$K$23/($B$2:$K$23>0),M143)) -> 
M144: 140 | Q144: =IF(ROWS(N$5:N144)>$N$2,"",_xlfn.AGGREGATE(14,6,$B$2:$K$23/($B$2:$K$23>0),M144)) -> 
M145: 141 | Q145: =IF(ROWS(N$5:N145)>$N$2,"",_xlfn.AGGREGATE(14,6,$B$2:$K$23/($B$2:$K$23>0),M145)) -> 
M146: 142 | Q146: =IF(ROWS(N$5:N146)>$N$2,"",_xlfn.AGGREGATE(14,6,$B$2:$K$23/($B$2:$K$23>0),M146)) -> 
M147: 143 | Q147: =IF(ROWS(N$5:N147)>$N$2,"",_xlfn.AGGREGATE(14,6,$B$2:$K$23/($B$2:$K$23>0),M147)) -> 
M148: 144 | Q148: =IF(ROWS(N$5:N148)>$N$2,"",_xlfn.AGGREGATE(14,6,$B$2:$K$23/($B$2:$K$23>0),M148)) -> 
M149: 145 | Q149: =IF(ROWS(N$5:N149)>$N$2,"",_xlfn.AGGREGATE(14,6,$B$2:$K$23/($B$2:$K$23>0),M149)) -> 
M150: 146 | Q150: =IF(ROWS(N$5:N150)>$N$2,"",_xlfn.AGGREGATE(14,6,$B$2:$K$23/($B$2:$K$23>0),M150)) -> 
M151: 147 | Q151: =IF(ROWS(N$5:N151)>$N$2,"",_xlfn.AGGREGATE(14,6,$B$2:$K$23/($B$2:$K$23>0),M151)) -> 
M152: 148 | Q152: =IF(ROWS(N$5:N152)>$N$2,"",_xlfn.AGGREGATE(14,6,$B$2:$K$23/($B$2:$K$23>0),M152)) -> 
M153: 149 | Q153: =IF(ROWS(N$5:N153)>$N$2,"",_xlfn.AGGREGATE(14,6,$B$2:$K$23/($B$2:$K$23>0),M153)) -> 
M154: 150 | Q154: =IF(ROWS(N$5:N154)>$N$2,"",_xlfn.AGGREGATE(14,6,$B$2:$K$23/($B$2:$K$23>0),M154)) -> 
M155: 151 | Q155: =IF(ROWS(N$5:N155)>$N$2,"",_xlfn.AGGREGATE(14,6,$B$2:$K$23/($B$2:$K$23>0),M155)) -> 
M156: 152 | Q156: =IF(ROWS(N$5:N156)>$N$2,"",_xlfn.AGGREGATE(14,6,$B$2:$K$23/($B$2:$K$23>0),M156)) -> 
M157: 153 | Q157: =IF(ROWS(N$5:N157)>$N$2,"",_xlfn.AGGREGATE(14,6,$B$2:$K$23/($B$2:$K$23>0),M157)) -> 
M158: 154 | Q158: =IF(ROWS(N$5:N158)>$N$2,"",_xlfn.AGGREGATE(14,6,$B$2:$K$23/($B$2:$K$23>0),M158)) -> 
M159: 155 | Q159: =IF(ROWS(N$5:N159)>$N$2,"",_xlfn.AGGREGATE(14,6,$B$2:$K$23/($B$2:$K$23>0),M159)) -> 
M160: 156 | Q160: =IF(ROWS(N$5:N160)>$N$2,"",_xlfn.AGGREGATE(14,6,$B$2:$K$23/($B$2:$K$23>0),M160)) -> 
M161: 157 | Q161: =IF(ROWS(N$5:N161)>$N$2,"",_xlfn.AGGREGATE(14,6,$B$2:$K$23/($B$2:$K$23>0),M161)) -> 
M162: 158 | Q162: =IF(ROWS(N$5:N162)>$N$2,"",_xlfn.AGGREGATE(14,6,$B$2:$K$23/($B$2:$K$23>0),M162)) -> 
M163: 159 | Q163: =IF(ROWS(N$5:N163)>$N$2,"",_xlfn.AGGREGATE(14,6,$B$2:$K$23/($B$2:$K$23>0),M163)) -> 
M164: 160 | Q164: =IF(ROWS(N$5:N164)>$N$2,"",_xlfn.AGGREGATE(14,6,$B$2:$K$23/($B$2:$K$23>0),M164)) -> 
M165: 161 | Q165: =IF(ROWS(N$5:N165)>$N$2,"",_xlfn.AGGREGATE(14,6,$B$2:$K$23/($B$2:$K$23>0),M165)) -> 
M166: 162 | Q166: =IF(ROWS(N$5:N166)>$N$2,"",_xlfn.AGGREGATE(14,6,$B$2:$K$23/($B$2:$K$23>0),M166)) -> 
M167: 163 | Q167: =IF(ROWS(N$5:N167)>$N$2,"",_xlfn.AGGREGATE(14,6,$B$2:$K$23/($B$2:$K$23>0),M167)) -> 
M168: 164 | Q168: =IF(ROWS(N$5:N168)>$N$2,"",_xlfn.AGGREGATE(14,6,$B$2:$K$23/($B$2:$K$23>0),M168)) -> 
M169: 165 | Q169: =IF(ROWS(N$5:N169)>$N$2,"",_xlfn.AGGREGATE(14,6,$B$2:$K$23/($B$2:$K$23>0),M169)) -> 
M170: 166 | Q170: =IF(ROWS(N$5:N170)>$N$2,"",_xlfn.AGGREGATE(14,6,$B$2:$K$23/($B$2:$K$23>0),M170)) -> 
M171: 167 | Q171: =IF(ROWS(N$5:N171)>$N$2,"",_xlfn.AGGREGATE(14,6,$B$2:$K$23/($B$2:$K$23>0),M171)) -> 
M172: 168 | Q172: =IF(ROWS(N$5:N172)>$N$2,"",_xlfn.AGGREGATE(14,6,$B$2:$K$23/($B$2:$K$23>0),M172)) -> 
M173: 169 | Q173: =IF(ROWS(N$5:N173)>$N$2,"",_xlfn.AGGREGATE(14,6,$B$2:$K$23/($B$2:$K$23>0),M173)) -> 
M174: 170 | Q174: =IF(ROWS(N$5:N174)>$N$2,"",_xlfn.AGGREGATE(14,6,$B$2:$K$23/($B$2:$K$23>0),M174)) -> 
M175: 171 | Q175: =IF(ROWS(N$5:N175)>$N$2,"",_xlfn.AGGREGATE(14,6,$B$2:$K$23/($B$2:$K$23>0),M175)) -> 
M176: 172 | Q176: =IF(ROWS(N$5:N176)>$N$2,"",_xlfn.AGGREGATE(14,6,$B$2:$K$23/($B$2:$K$23>0),M176)) -> 
M177: 173 | Q177: =IF(ROWS(N$5:N177)>$N$2,"",_xlfn.AGGREGATE(14,6,$B$2:$K$23/($B$2:$K$23>0),M177)) -> 
M178: 174 | Q178: =IF(ROWS(N$5:N178)>$N$2,"",_xlfn.AGGREGATE(14,6,$B$2:$K$23/($B$2:$K$23>0),M178)) -> 
M179: 175 | Q179: =IF(ROWS(N$5:N179)>$N$2,"",_xlfn.AGGREGATE(14,6,$B$2:$K$23/($B$2:$K$23>0),M179)) -> 
M180: 176 | Q180: =IF(ROWS(N$5:N180)>$N$2,"",_xlfn.AGGREGATE(14,6,$B$2:$K$23/($B$2:$K$23>0),M180)) -> 
M181: 177 | Q181: =IF(ROWS(N$5:N181)>$N$2,"",_xlfn.AGGREGATE(14,6,$B$2:$K$23/($B$2:$K$23>0),M181)) -> 
M182: 178 | Q182: =IF(ROWS(N$5:N182)>$N$2,"",_xlfn.AGGREGATE(14,6,$B$2:$K$23/($B$2:$K$23>0),M182)) -> 
M183: 179 | Q183: =IF(ROWS(N$5:N183)>$N$2,"",_xlfn.AGGREGATE(14,6,$B$2:$K$23/($B$2:$K$23>0),M183)) -> 
M184: 180 | Q184: =IF(ROWS(N$5:N184)>$N$2,"",_xlfn.AGGREGATE(14,6,$B$2:$K$23/($B$2:$K$23>0),M184)) -> 
M185: 181 | Q185: =IF(ROWS(N$5:N185)>$N$2,"",_xlfn.AGGREGATE(14,6,$B$2:$K$23/($B$2:$K$23>0),M185)) -> 
M186: 182 | Q186: =IF(ROWS(N$5:N186)>$N$2,"",_xlfn.AGGREGATE(14,6,$B$2:$K$23/($B$2:$K$23>0),M186)) -> 
M187: 183 | Q187: =IF(ROWS(N$5:N187)>$N$2,"",_xlfn.AGGREGATE(14,6,$B$2:$K$23/($B$2:$K$23>0),M187)) -> 
M188: 184 | Q188: =IF(ROWS(N$5:N188)>$N$2,"",_xlfn.AGGREGATE(14,6,$B$2:$K$23/($B$2:$K$23>0),M188)) -> 
M189: 185 | Q189: =IF(ROWS(N$5:N189)>$N$2,"",_xlfn.AGGREGATE(14,6,$B$2:$K$23/($B$2:$K$23>0),M189)) -> 
M190: 186 | Q190: =IF(ROWS(N$5:N190)>$N$2,"",_xlfn.AGGREGATE(14,6,$B$2:$K$23/($B$2:$K$23>0),M190)) -> 
M191: 187 | Q191: =IF(ROWS(N$5:N191)>$N$2,"",_xlfn.AGGREGATE(14,6,$B$2:$K$23/($B$2:$K$23>0),M191)) -> 
M192: 188 | Q192: =IF(ROWS(N$5:N192)>$N$2,"",_xlfn.AGGREGATE(14,6,$B$2:$K$23/($B$2:$K$23>0),M192)) -> 
M193: 189 | Q193: =IF(ROWS(N$5:N193)>$N$2,"",_xlfn.AGGREGATE(14,6,$B$2:$K$23/($B$2:$K$23>0),M193)) -> 
M194: 190 | Q194: =IF(ROWS(N$5:N194)>$N$2,"",_xlfn.AGGREGATE(14,6,$B$2:$K$23/($B$2:$K$23>0),M194)) -> 
M195: 191 | Q195: =IF(ROWS(N$5:N195)>$N$2,"",_xlfn.AGGREGATE(14,6,$B$2:$K$23/($B$2:$K$23>0),M195)) -> 
M196: 192 | Q196: =IF(ROWS(N$5:N196)>$N$2,"",_xlfn.AGGREGATE(14,6,$B$2:$K$23/($B$2:$K$23>0),M196)) -> 
M197: 193 | Q197: =IF(ROWS(N$5:N197)>$N$2,"",_xlfn.AGGREGATE(14,6,$B$2:$K$23/($B$2:$K$23>0),M197)) -> 
M198: 194 | Q198: =IF(ROWS(N$5:N198)>$N$2,"",_xlfn.AGGREGATE(14,6,$B$2:$K$23/($B$2:$K$23>0),M198)) -> 
M199: 195 | Q199: =IF(ROWS(N$5:N199)>$N$2,"",_xlfn.AGGREGATE(14,6,$B$2:$K$23/($B$2:$K$23>0),M199)) -> 
M200: 196 | Q200: =IF(ROWS(N$5:N200)>$N$2,"",_xlfn.AGGREGATE(14,6,$B$2:$K$23/($B$2:$K$23>0),M200)) -> 
... 54 more rows

Sheet 1132 (an)
B1: Day 1 | C1: Day 2 | D1: Day 3 | E1: Day 4 | F1: Day 5 | G1: Day 6 | H1: Day 7 | I1: Day 8 | J1: Day 9 | K1: Day 10 | N1: Count
A2: Pro 1 | B2: 2240 | C2: 1066 | D2: -209 | E2: -272 | F2: 1991 | G2: 327 | H2: 1025 | I2: -420 | J2: 350 | K2: -215 | N2: =COUNTIF(B2:K23,">0") -> 184
A3: Pro 2 | B3: 33 | C3: 403 | D3: 1133 | E3: 374 | F3: 1655 | G3: 787 | H3: -104 | I3: 1940 | J3: 1129 | K3: 38
A4: Pro 3 | B4: 1683 | C4: 640 | D4: 2190 | E4: 1316 | F4: 1749 | G4: 1231 | H4: 742 | I4: -412 | J4: 991 | K4: 2410 | N4: Extract and Sort Numbers >0
A5: Pro 4 | B5: -362 | C5: 1142 | D5: 1750 | E5: 810 | F5: 2438 | G5: -387 | H5: 2280 | I5: 2177 | J5: 124 | K5: -299 | M5: 1 | N5: =IF(M5>$N$2,"",LARGE($B$2:$K$23,M5)) -> 2500 | Q5: =IF(ROWS(N$5:N5)>$N$2,"",_xlfn.AGGREGATE(14,6,$B$2:$K$23/($B$2:$K$23>0),M5)) -> 2500
A6: Pro 5 | B6: 1835 | C6: 1279 | D6: -184 | E6: 1209 | F6: 917 | G6: -383 | H6: -322 | I6: 187 | J6: 361 | K6: 2332 | M6: 2 | N6: =IF(M6>$N$2,"",LARGE($B$2:$K$23,M6)) -> 2476 | Q6: =IF(ROWS(N$5:N6)>$N$2,"",_xlfn.AGGREGATE(14,6,$B$2:$K$23/($B$2:$K$23>0),M6)) -> 2476
A7: Pro 6 | B7: 719 | C7: 2196 | D7: 2316 | E7: 780 | F7: 2392 | G7: -229 | H7: 55 | I7: 323 | J7: 2441 | K7: -385 | M7: 3 | N7: 2461 | Q7: =IF(ROWS(N$5:N7)>$N$2,"",_xlfn.AGGREGATE(14,6,$B$2:$K$23/($B$2:$K$23>0),M7)) -> 2461
A8: Pro 7 | B8: 1582 | C8: 1245 | D8: -78 | E8: 2284 | F8: 383 | G8: 1864 | H8: 1298 | I8: 958 | J8: 1616 | K8: 269 | M8: 4 | N8: 2441 | Q8: =IF(ROWS(N$5:N8)>$N$2,"",_xlfn.AGGREGATE(14,6,$B$2:$K$23/($B$2:$K$23>0),M8)) -> 2441
A9: Pro 8 | B9: 84 | C9: 1007 | D9: 1938 | E9: -107 | F9: 1857 | G9: 1923 | H9: 38 | I9: 1440 | J9: -23 | K9: 1919 | M9: 5 | N9: 2438 | Q9: =IF(ROWS(N$5:N9)>$N$2,"",_xlfn.AGGREGATE(14,6,$B$2:$K$23/($B$2:$K$23>0),M9)) -> 2438
A10: Pro 9 | B10: 1748 | C10: 1096 | D10: -2150 | E10: 196 | F10: 837 | G10: 1646 | H10: 322 | I10: -399 | J10: -484 | K10: 1555 | M10: 6 | N10: 2420 | Q10: =IF(ROWS(N$5:N10)>$N$2,"",_xlfn.AGGREGATE(14,6,$B$2:$K$23/($B$2:$K$23>0),M10)) -> 2420
A11: Pro 10 | B11: 2175 | C11: 195 | D11: 322 | E11: 359 | F11: -266 | G11: 266 | H11: 1011 | I11: 0 | J11: 1175 | K11: 1992 | M11: 7 | N11: 2410 | Q11: =IF(ROWS(N$5:N11)>$N$2,"",_xlfn.AGGREGATE(14,6,$B$2:$K$23/($B$2:$K$23>0),M11)) -> 2410
A12: Pro 11 | B12: -428 | C12: 990 | D12: 1654 | E12: 1354 | F12: 1180 | G12: -334 | H12: 1358 | I12: 98 | J12: 467 | K12: 155 | M12: 8 | N12: 2392 | Q12: =IF(ROWS(N$5:N12)>$N$2,"",_xlfn.AGGREGATE(14,6,$B$2:$K$23/($B$2:$K$23>0),M12)) -> 2392
A13: Pro 12 | B13: 1002 | C13: 59 | D13: 744 | E13: 334 | F13: -416 | G13: 2210 | H13: 1756 | I13: 1650 | J13: 267 | K13: 728 | M13: 9 | N13: 2357 | Q13: =IF(ROWS(N$5:N13)>$N$2,"",_xlfn.AGGREGATE(14,6,$B$2:$K$23/($B$2:$K$23>0),M13)) -> 2357
A14: Pro 13 | B14: 2167 | C14: 236 | D14: 2062 | E14: 31 | F14: 1414 | G14: 2196 | H14: 1133 | I14: 346 | J14: 1838 | K14: 893 | M14: 10 | N14: 2351 | Q14: =IF(ROWS(N$5:N14)>$N$2,"",_xlfn.AGGREGATE(14,6,$B$2:$K$23/($B$2:$K$23>0),M14)) -> 2351
A15: Pro 14 | B15: 1688 | C15: 2357 | D15: 1124 | E15: 1786 | F15: 342 | G15: 243 | H15: 1607 | I15: 658 | J15: 2132 | K15: 1293 | M15: 11 | N15: 2332 | Q15: =IF(ROWS(N$5:N15)>$N$2,"",_xlfn.AGGREGATE(14,6,$B$2:$K$23/($B$2:$K$23>0),M15)) -> 2332
A16: Pro 15 | B16: -111 | C16: 954 | D16: 1462 | E16: -12 | F16: 929 | G16: 2304 | H16: 2351 | I16: 1465 | J16: 2420 | K16: 13 | M16: 12 | N16: 2316 | Q16: =IF(ROWS(N$5:N16)>$N$2,"",_xlfn.AGGREGATE(14,6,$B$2:$K$23/($B$2:$K$23>0),M16)) -> 2316
A17: Pro 16 | B17: 2144 | C17: 92 | D17: 755 | E17: -319 | F17: 913 | G17: 1673 | H17: 1126 | I17: 1891 | J17: 2283 | K17: 1049 | M17: 13 | N17: 2310 | Q17: =IF(ROWS(N$5:N17)>$N$2,"",_xlfn.AGGREGATE(14,6,$B$2:$K$23/($B$2:$K$23>0),M17)) -> 2310
A18: Pro 17 | B18: 2310 | C18: 128 | D18: 80 | E18: 52 | F18: 1136 | G18: 2078 | H18: -14 | I18: 2064 | J18: -147 | K18: -184 | M18: 14 | N18: 2304 | Q18: =IF(ROWS(N$5:N18)>$N$2,"",_xlfn.AGGREGATE(14,6,$B$2:$K$23/($B$2:$K$23>0),M18)) -> 2304
A19: Pro 18 | B19: 448 | C19: 829 | D19: 989 | E19: -264 | F19: 555 | G19: 1078 | H19: 2264 | I19: 1992 | J19: 2 | K19: 2476 | M19: 15 | N19: 2284 | Q19: =IF(ROWS(N$5:N19)>$N$2,"",_xlfn.AGGREGATE(14,6,$B$2:$K$23/($B$2:$K$23>0),M19)) -> 2284
A20: Pro 19 | B20: 2500 | C20: 1835 | D20: 783 | E20: 1425 | F20: 1596 | G20: 2461 | H20: 342 | I20: -1458 | J20: 27 | K20: 2243 | M20: 16 | N20: 2283 | Q20: =IF(ROWS(N$5:N20)>$N$2,"",_xlfn.AGGREGATE(14,6,$B$2:$K$23/($B$2:$K$23>0),M20)) -> 2283
A21: Pro 20 | B21: 1929 | C21: 39 | D21: 372 | E21: 122 | F21: 685 | G21: 1821 | H21: 1046 | I21: 520 | J21: 1115 | K21: 2166 | M21: 17 | N21: 2280 | Q21: =IF(ROWS(N$5:N21)>$N$2,"",_xlfn.AGGREGATE(14,6,$B$2:$K$23/($B$2:$K$23>0),M21)) -> 2280
A22: Pro 21 | B22: -286 | C22: 1828 | D22: 1410 | E22: 497 | F22: 1564 | G22: 1599 | H22: 461 | I22: 681 | J22: 1102 | K22: 2146 | M22: 18 | N22: 2264 | Q22: =IF(ROWS(N$5:N22)>$N$2,"",_xlfn.AGGREGATE(14,6,$B$2:$K$23/($B$2:$K$23>0),M22)) -> 2264
A23: Pro 22 | B23: -17 | C23: 1027 | D23: 1306 | E23: 1056 | F23: 605 | G23: 555 | H23: 1973 | I23: 69 | J23: 921 | K23: -15 | M23: 19 | N23: 2243 | Q23: =IF(ROWS(N$5:N23)>$N$2,"",_xlfn.AGGREGATE(14,6,$B$2:$K$23/($B$2:$K$23>0),M23)) -> 2243
M24: 20 | N24: 2240 | Q24: =IF(ROWS(N$5:N24)>$N$2,"",_xlfn.AGGREGATE(14,6,$B$2:$K$23/($B$2:$K$23>0),M24)) -> 2240
M25: 21 | N25: 2210 | Q25: =IF(ROWS(N$5:N25)>$N$2,"",_xlfn.AGGREGATE(14,6,$B$2:$K$23/($B$2:$K$23>0),M25)) -> 2210
M26: 22 | N26: 2196 | Q26: =IF(ROWS(N$5:N26)>$N$2,"",_xlfn.AGGREGATE(14,6,$B$2:$K$23/($B$2:$K$23>0),M26)) -> 2196
M27: 23 | N27: 2196 | Q27: =IF(ROWS(N$5:N27)>$N$2,"",_xlfn.AGGREGATE(14,6,$B$2:$K$23/($B$2:$K$23>0),M27)) -> 2196
M28: 24 | N28: 2190 | Q28: =IF(ROWS(N$5:N28)>$N$2,"",_xlfn.AGGREGATE(14,6,$B$2:$K$23/($B$2:$K$23>0),M28)) -> 2190
M29: 25 | N29: 2177 | Q29: =IF(ROWS(N$5:N29)>$N$2,"",_xlfn.AGGREGATE(14,6,$B$2:$K$23/($B$2:$K$23>0),M29)) -> 2177
M30: 26 | N30: 2175 | Q30: =IF(ROWS(N$5:N30)>$N$2,"",_xlfn.AGGREGATE(14,6,$B$2:$K$23/($B$2:$K$23>0),M30)) -> 2175
M31: 27 | N31: 2167 | Q31: =IF(ROWS(N$5:N31)>$N$2,"",_xlfn.AGGREGATE(14,6,$B$2:$K$23/($B$2:$K$23>0),M31)) -> 2167
M32: 28 | N32: 2166 | Q32: =IF(ROWS(N$5:N32)>$N$2,"",_xlfn.AGGREGATE(14,6,$B$2:$K$23/($B$2:$K$23>0),M32)) -> 2166
M33: 29 | N33: 2146 | Q33: =IF(ROWS(N$5:N33)>$N$2,"",_xlfn.AGGREGATE(14,6,$B$2:$K$23/($B$2:$K$23>0),M33)) -> 2146
M34: 30 | N34: 2144 | Q34: =IF(ROWS(N$5:N34)>$N$2,"",_xlfn.AGGREGATE(14,6,$B$2:$K$23/($B$2:$K$23>0),M34)) -> 2144
M35: 31 | N35: 2132 | Q35: =IF(ROWS(N$5:N35)>$N$2,"",_xlfn.AGGREGATE(14,6,$B$2:$K$23/($B$2:$K$23>0),M35)) -> 2132
M36: 32 | N36: 2078 | Q36: =IF(ROWS(N$5:N36)>$N$2,"",_xlfn.AGGREGATE(14,6,$B$2:$K$23/($B$2:$K$23>0),M36)) -> 2078
M37: 33 | N37: 2064 | Q37: =IF(ROWS(N$5:N37)>$N$2,"",_xlfn.AGGREGATE(14,6,$B$2:$K$23/($B$2:$K$23>0),M37)) -> 2064
M38: 34 | N38: 2062 | Q38: =IF(ROWS(N$5:N38)>$N$2,"",_xlfn.AGGREGATE(14,6,$B$2:$K$23/($B$2:$K$23>0),M38)) -> 2062
M39: 35 | N39: 1992 | Q39: =IF(ROWS(N$5:N39)>$N$2,"",_xlfn.AGGREGATE(14,6,$B$2:$K$23/($B$2:$K$23>0),M39)) -> 1992
M40: 36 | N40: 1992 | Q40: =IF(ROWS(N$5:N40)>$N$2,"",_xlfn.AGGREGATE(14,6,$B$2:$K$23/($B$2:$K$23>0),M40)) -> 1992
M41: 37 | N41: 1991 | Q41: =IF(ROWS(N$5:N41)>$N$2,"",_xlfn.AGGREGATE(14,6,$B$2:$K$23/($B$2:$K$23>0),M41)) -> 1991
M42: 38 | N42: 1973 | Q42: =IF(ROWS(N$5:N42)>$N$2,"",_xlfn.AGGREGATE(14,6,$B$2:$K$23/($B$2:$K$23>0),M42)) -> 1973
M43: 39 | N43: 1940 | Q43: =IF(ROWS(N$5:N43)>$N$2,"",_xlfn.AGGREGATE(14,6,$B$2:$K$23/($B$2:$K$23>0),M43)) -> 1940
M44: 40 | N44: 1938 | Q44: =IF(ROWS(N$5:N44)>$N$2,"",_xlfn.AGGREGATE(14,6,$B$2:$K$23/($B$2:$K$23>0),M44)) -> 1938
M45: 41 | N45: 1929 | Q45: =IF(ROWS(N$5:N45)>$N$2,"",_xlfn.AGGREGATE(14,6,$B$2:$K$23/($B$2:$K$23>0),M45)) -> 1929
M46: 42 | N46: 1923 | Q46: =IF(ROWS(N$5:N46)>$N$2,"",_xlfn.AGGREGATE(14,6,$B$2:$K$23/($B$2:$K$23>0),M46)) -> 1923
M47: 43 | N47: 1919 | Q47: =IF(ROWS(N$5:N47)>$N$2,"",_xlfn.AGGREGATE(14,6,$B$2:$K$23/($B$2:$K$23>0),M47)) -> 1919
M48: 44 | N48: 1891 | Q48: =IF(ROWS(N$5:N48)>$N$2,"",_xlfn.AGGREGATE(14,6,$B$2:$K$23/($B$2:$K$23>0),M48)) -> 1891
M49: 45 | N49: 1864 | Q49: =IF(ROWS(N$5:N49)>$N$2,"",_xlfn.AGGREGATE(14,6,$B$2:$K$23/($B$2:$K$23>0),M49)) -> 1864
M50: 46 | N50: 1857 | Q50: =IF(ROWS(N$5:N50)>$N$2,"",_xlfn.AGGREGATE(14,6,$B$2:$K$23/($B$2:$K$23>0),M50)) -> 1857
M51: 47 | N51: 1838 | Q51: =IF(ROWS(N$5:N51)>$N$2,"",_xlfn.AGGREGATE(14,6,$B$2:$K$23/($B$2:$K$23>0),M51)) -> 1838
M52: 48 | N52: 1835 | Q52: =IF(ROWS(N$5:N52)>$N$2,"",_xlfn.AGGREGATE(14,6,$B$2:$K$23/($B$2:$K$23>0),M52)) -> 1835
M53: 49 | N53: 1835 | Q53: =IF(ROWS(N$5:N53)>$N$2,"",_xlfn.AGGREGATE(14,6,$B$2:$K$23/($B$2:$K$23>0),M53)) -> 1835
M54: 50 | N54: 1828 | Q54: =IF(ROWS(N$5:N54)>$N$2,"",_xlfn.AGGREGATE(14,6,$B$2:$K$23/($B$2:$K$23>0),M54)) -> 1828
M55: 51 | N55: 1821 | Q55: =IF(ROWS(N$5:N55)>$N$2,"",_xlfn.AGGREGATE(14,6,$B$2:$K$23/($B$2:$K$23>0),M55)) -> 1821
M56: 52 | N56: 1786 | Q56: =IF(ROWS(N$5:N56)>$N$2,"",_xlfn.AGGREGATE(14,6,$B$2:$K$23/($B$2:$K$23>0),M56)) -> 1786
M57: 53 | N57: 1756 | Q57: =IF(ROWS(N$5:N57)>$N$2,"",_xlfn.AGGREGATE(14,6,$B$2:$K$23/($B$2:$K$23>0),M57)) -> 1756
M58: 54 | N58: 1750 | Q58: =IF(ROWS(N$5:N58)>$N$2,"",_xlfn.AGGREGATE(14,6,$B$2:$K$23/($B$2:$K$23>0),M58)) -> 1750
M59: 55 | N59: 1749 | Q59: =IF(ROWS(N$5:N59)>$N$2,"",_xlfn.AGGREGATE(14,6,$B$2:$K$23/($B$2:$K$23>0),M59)) -> 1749
M60: 56 | N60: 1748 | Q60: =IF(ROWS(N$5:N60)>$N$2,"",_xlfn.AGGREGATE(14,6,$B$2:$K$23/($B$2:$K$23>0),M60)) -> 1748
M61: 57 | N61: 1688 | Q61: =IF(ROWS(N$5:N61)>$N$2,"",_xlfn.AGGREGATE(14,6,$B$2:$K$23/($B$2:$K$23>0),M61)) -> 1688
M62: 58 | N62: 1683 | Q62: =IF(ROWS(N$5:N62)>$N$2,"",_xlfn.AGGREGATE(14,6,$B$2:$K$23/($B$2:$K$23>0),M62)) -> 1683
M63: 59 | N63: 1673 | Q63: =IF(ROWS(N$5:N63)>$N$2,"",_xlfn.AGGREGATE(14,6,$B$2:$K$23/($B$2:$K$23>0),M63)) -> 1673
M64: 60 | N64: 1655 | Q64: =IF(ROWS(N$5:N64)>$N$2,"",_xlfn.AGGREGATE(14,6,$B$2:$K$23/($B$2:$K$23>0),M64)) -> 1655
M65: 61 | N65: 1654 | Q65: =IF(ROWS(N$5:N65)>$N$2,"",_xlfn.AGGREGATE(14,6,$B$2:$K$23/($B$2:$K$23>0),M65)) -> 1654
M66: 62 | N66: 1650 | Q66: =IF(ROWS(N$5:N66)>$N$2,"",_xlfn.AGGREGATE(14,6,$B$2:$K$23/($B$2:$K$23>0),M66)) -> 1650
M67: 63 | N67: 1646 | Q67: =IF(ROWS(N$5:N67)>$N$2,"",_xlfn.AGGREGATE(14,6,$B$2:$K$23/($B$2:$K$23>0),M67)) -> 1646
M68: 64 | N68: 1616 | Q68: =IF(ROWS(N$5:N68)>$N$2,"",_xlfn.AGGREGATE(14,6,$B$2:$K$23/($B$2:$K$23>0),M68)) -> 1616
M69: 65 | N69: 1607 | Q69: =IF(ROWS(N$5:N69)>$N$2,"",_xlfn.AGGREGATE(14,6,$B$2:$K$23/($B$2:$K$23>0),M69)) -> 1607
M70: 66 | N70: =IF(M70>$N$2,"",LARGE($B$2:$K$23,M70)) -> 1599 | Q70: =IF(ROWS(N$5:N70)>$N$2,"",_xlfn.AGGREGATE(14,6,$B$2:$K$23/($B$2:$K$23>0),M70)) -> 1599
M71: 67 | N71: 1596 | Q71: =IF(ROWS(N$5:N71)>$N$2,"",_xlfn.AGGREGATE(14,6,$B$2:$K$23/($B$2:$K$23>0),M71)) -> 1596
M72: 68 | N72: 1582 | Q72: =IF(ROWS(N$5:N72)>$N$2,"",_xlfn.AGGREGATE(14,6,$B$2:$K$23/($B$2:$K$23>0),M72)) -> 1582
M73: 69 | N73: 1564 | Q73: =IF(ROWS(N$5:N73)>$N$2,"",_xlfn.AGGREGATE(14,6,$B$2:$K$23/($B$2:$K$23>0),M73)) -> 1564
M74: 70 | N74: 1555 | Q74: =IF(ROWS(N$5:N74)>$N$2,"",_xlfn.AGGREGATE(14,6,$B$2:$K$23/($B$2:$K$23>0),M74)) -> 1555
M75: 71 | N75: 1465 | Q75: =IF(ROWS(N$5:N75)>$N$2,"",_xlfn.AGGREGATE(14,6,$B$2:$K$23/($B$2:$K$23>0),M75)) -> 1465
M76: 72 | N76: 1462 | Q76: =IF(ROWS(N$5:N76)>$N$2,"",_xlfn.AGGREGATE(14,6,$B$2:$K$23/($B$2:$K$23>0),M76)) -> 1462
M77: 73 | N77: 1440 | Q77: =IF(ROWS(N$5:N77)>$N$2,"",_xlfn.AGGREGATE(14,6,$B$2:$K$23/($B$2:$K$23>0),M77)) -> 1440
M78: 74 | N78: 1425 | Q78: =IF(ROWS(N$5:N78)>$N$2,"",_xlfn.AGGREGATE(14,6,$B$2:$K$23/($B$2:$K$23>0),M78)) -> 1425
M79: 75 | N79: 1414 | Q79: =IF(ROWS(N$5:N79)>$N$2,"",_xlfn.AGGREGATE(14,6,$B$2:$K$23/($B$2:$K$23>0),M79)) -> 1414
M80: 76 | N80: 1410 | Q80: =IF(ROWS(N$5:N80)>$N$2,"",_xlfn.AGGREGATE(14,6,$B$2:$K$23/($B$2:$K$23>0),M80)) -> 1410
M81: 77 | N81: 1358 | Q81: =IF(ROWS(N$5:N81)>$N$2,"",_xlfn.AGGREGATE(14,6,$B$2:$K$23/($B$2:$K$23>0),M81)) -> 1358
M82: 78 | N82: 1354 | Q82: =IF(ROWS(N$5:N82)>$N$2,"",_xlfn.AGGREGATE(14,6,$B$2:$K$23/($B$2:$K$23>0),M82)) -> 1354
M83: 79 | N83: 1316 | Q83: =IF(ROWS(N$5:N83)>$N$2,"",_xlfn.AGGREGATE(14,6,$B$2:$K$23/($B$2:$K$23>0),M83)) -> 1316
M84: 80 | N84: 1306 | Q84: =IF(ROWS(N$5:N84)>$N$2,"",_xlfn.AGGREGATE(14,6,$B$2:$K$23/($B$2:$K$23>0),M84)) -> 1306
M85: 81 | N85: 1298 | Q85: =IF(ROWS(N$5:N85)>$N$2,"",_xlfn.AGGREGATE(14,6,$B$2:$K$23/($B$2:$K$23>0),M85)) -> 1298
M86: 82 | N86: 1293 | Q86: =IF(ROWS(N$5:N86)>$N$2,"",_xlfn.AGGREGATE(14,6,$B$2:$K$23/($B$2:$K$23>0),M86)) -> 1293
M87: 83 | N87: 1279 | Q87: =IF(ROWS(N$5:N87)>$N$2,"",_xlfn.AGGREGATE(14,6,$B$2:$K$23/($B$2:$K$23>0),M87)) -> 1279
M88: 84 | N88: 1245 | Q88: =IF(ROWS(N$5:N88)>$N$2,"",_xlfn.AGGREGATE(14,6,$B$2:$K$23/($B$2:$K$23>0),M88)) -> 1245
M89: 85 | N89: 1231 | Q89: =IF(ROWS(N$5:N89)>$N$2,"",_xlfn.AGGREGATE(14,6,$B$2:$K$23/($B$2:$K$23>0),M89)) -> 1231
M90: 86 | N90: 1209 | Q90: =IF(ROWS(N$5:N90)>$N$2,"",_xlfn.AGGREGATE(14,6,$B$2:$K$23/($B$2:$K$23>0),M90)) -> 1209
M91: 87 | N91: 1180 | Q91: =IF(ROWS(N$5:N91)>$N$2,"",_xlfn.AGGREGATE(14,6,$B$2:$K$23/($B$2:$K$23>0),M91)) -> 1180
M92: 88 | N92: 1175 | Q92: =IF(ROWS(N$5:N92)>$N$2,"",_xlfn.AGGREGATE(14,6,$B$2:$K$23/($B$2:$K$23>0),M92)) -> 1175
M93: 89 | N93: 1142 | Q93: =IF(ROWS(N$5:N93)>$N$2,"",_xlfn.AGGREGATE(14,6,$B$2:$K$23/($B$2:$K$23>0),M93)) -> 1142
M94: 90 | N94: 1136 | Q94: =IF(ROWS(N$5:N94)>$N$2,"",_xlfn.AGGREGATE(14,6,$B$2:$K$23/($B$2:$K$23>0),M94)) -> 1136
M95: 91 | N95: 1133 | Q95: =IF(ROWS(N$5:N95)>$N$2,"",_xlfn.AGGREGATE(14,6,$B$2:$K$23/($B$2:$K$23>0),M95)) -> 1133
M96: 92 | N96: 1133 | Q96: =IF(ROWS(N$5:N96)>$N$2,"",_xlfn.AGGREGATE(14,6,$B$2:$K$23/($B$2:$K$23>0),M96)) -> 1133
M97: 93 | N97: 1129 | Q97: =IF(ROWS(N$5:N97)>$N$2,"",_xlfn.AGGREGATE(14,6,$B$2:$K$23/($B$2:$K$23>0),M97)) -> 1129
M98: 94 | N98: 1126 | Q98: =IF(ROWS(N$5:N98)>$N$2,"",_xlfn.AGGREGATE(14,6,$B$2:$K$23/($B$2:$K$23>0),M98)) -> 1126
M99: 95 | N99: 1124 | Q99: =IF(ROWS(N$5:N99)>$N$2,"",_xlfn.AGGREGATE(14,6,$B$2:$K$23/($B$2:$K$23>0),M99)) -> 1124
M100: 96 | N100: 1115 | Q100: =IF(ROWS(N$5:N100)>$N$2,"",_xlfn.AGGREGATE(14,6,$B$2:$K$23/($B$2:$K$23>0),M100)) -> 1115
M101: 97 | N101: 1102 | Q101: =IF(ROWS(N$5:N101)>$N$2,"",_xlfn.AGGREGATE(14,6,$B$2:$K$23/($B$2:$K$23>0),M101)) -> 1102
M102: 98 | N102: 1096 | Q102: =IF(ROWS(N$5:N102)>$N$2,"",_xlfn.AGGREGATE(14,6,$B$2:$K$23/($B$2:$K$23>0),M102)) -> 1096
M103: 99 | N103: 1078 | Q103: =IF(ROWS(N$5:N103)>$N$2,"",_xlfn.AGGREGATE(14,6,$B$2:$K$23/($B$2:$K$23>0),M103)) -> 1078
M104: 100 | N104: 1066 | Q104: =IF(ROWS(N$5:N104)>$N$2,"",_xlfn.AGGREGATE(14,6,$B$2:$K$23/($B$2:$K$23>0),M104)) -> 1066
M105: 101 | N105: 1056 | Q105: =IF(ROWS(N$5:N105)>$N$2,"",_xlfn.AGGREGATE(14,6,$B$2:$K$23/($B$2:$K$23>0),M105)) -> 1056
M106: 102 | N106: 1049 | Q106: =IF(ROWS(N$5:N106)>$N$2,"",_xlfn.AGGREGATE(14,6,$B$2:$K$23/($B$2:$K$23>0),M106)) -> 1049
M107: 103 | N107: 1046 | Q107: =IF(ROWS(N$5:N107)>$N$2,"",_xlfn.AGGREGATE(14,6,$B$2:$K$23/($B$2:$K$23>0),M107)) -> 1046
M108: 104 | N108: 1027 | Q108: =IF(ROWS(N$5:N108)>$N$2,"",_xlfn.AGGREGATE(14,6,$B$2:$K$23/($B$2:$K$23>0),M108)) -> 1027
M109: 105 | N109: 1025 | Q109: =IF(ROWS(N$5:N109)>$N$2,"",_xlfn.AGGREGATE(14,6,$B$2:$K$23/($B$2:$K$23>0),M109)) -> 1025
M110: 106 | N110: 1011 | Q110: =IF(ROWS(N$5:N110)>$N$2,"",_xlfn.AGGREGATE(14,6,$B$2:$K$23/($B$2:$K$23>0),M110)) -> 1011
M111: 107 | N111: 1007 | Q111: =IF(ROWS(N$5:N111)>$N$2,"",_xlfn.AGGREGATE(14,6,$B$2:$K$23/($B$2:$K$23>0),M111)) -> 1007
M112: 108 | N112: 1002 | Q112: =IF(ROWS(N$5:N112)>$N$2,"",_xlfn.AGGREGATE(14,6,$B$2:$K$23/($B$2:$K$23>0),M112)) -> 1002
M113: 109 | N113: 991 | Q113: =IF(ROWS(N$5:N113)>$N$2,"",_xlfn.AGGREGATE(14,6,$B$2:$K$23/($B$2:$K$23>0),M113)) -> 991
M114: 110 | N114: 990 | Q114: =IF(ROWS(N$5:N114)>$N$2,"",_xlfn.AGGREGATE(14,6,$B$2:$K$23/($B$2:$K$23>0),M114)) -> 990
M115: 111 | N115: 989 | Q115: =IF(ROWS(N$5:N115)>$N$2,"",_xlfn.AGGREGATE(14,6,$B$2:$K$23/($B$2:$K$23>0),M115)) -> 989
M116: 112 | N116: 958 | Q116: =IF(ROWS(N$5:N116)>$N$2,"",_xlfn.AGGREGATE(14,6,$B$2:$K$23/($B$2:$K$23>0),M116)) -> 958
M117: 113 | N117: 954 | Q117: =IF(ROWS(N$5:N117)>$N$2,"",_xlfn.AGGREGATE(14,6,$B$2:$K$23/($B$2:$K$23>0),M117)) -> 954
M118: 114 | N118: 929 | Q118: =IF(ROWS(N$5:N118)>$N$2,"",_xlfn.AGGREGATE(14,6,$B$2:$K$23/($B$2:$K$23>0),M118)) -> 929
M119: 115 | N119: 921 | Q119: =IF(ROWS(N$5:N119)>$N$2,"",_xlfn.AGGREGATE(14,6,$B$2:$K$23/($B$2:$K$23>0),M119)) -> 921
M120: 116 | N120: 917 | Q120: =IF(ROWS(N$5:N120)>$N$2,"",_xlfn.AGGREGATE(14,6,$B$2:$K$23/($B$2:$K$23>0),M120)) -> 917
M121: 117 | N121: 913 | Q121: =IF(ROWS(N$5:N121)>$N$2,"",_xlfn.AGGREGATE(14,6,$B$2:$K$23/($B$2:$K$23>0),M121)) -> 913
M122: 118 | N122: 893 | Q122: =IF(ROWS(N$5:N122)>$N$2,"",_xlfn.AGGREGATE(14,6,$B$2:$K$23/($B$2:$K$23>0),M122)) -> 893
M123: 119 | N123: 837 | Q123: =IF(ROWS(N$5:N123)>$N$2,"",_xlfn.AGGREGATE(14,6,$B$2:$K$23/($B$2:$K$23>0),M123)) -> 837
M124: 120 | N124: 829 | Q124: =IF(ROWS(N$5:N124)>$N$2,"",_xlfn.AGGREGATE(14,6,$B$2:$K$23/($B$2:$K$23>0),M124)) -> 829
M125: 121 | N125: 810 | Q125: =IF(ROWS(N$5:N125)>$N$2,"",_xlfn.AGGREGATE(14,6,$B$2:$K$23/($B$2:$K$23>0),M125)) -> 810
M126: 122 | N126: 787 | Q126: =IF(ROWS(N$5:N126)>$N$2,"",_xlfn.AGGREGATE(14,6,$B$2:$K$23/($B$2:$K$23>0),M126)) -> 787
M127: 123 | N127: 783 | Q127: =IF(ROWS(N$5:N127)>$N$2,"",_xlfn.AGGREGATE(14,6,$B$2:$K$23/($B$2:$K$23>0),M127)) -> 783
M128: 124 | N128: 780 | Q128: =IF(ROWS(N$5:N128)>$N$2,"",_xlfn.AGGREGATE(14,6,$B$2:$K$23/($B$2:$K$23>0),M128)) -> 780
M129: 125 | N129: 755 | Q129: =IF(ROWS(N$5:N129)>$N$2,"",_xlfn.AGGREGATE(14,6,$B$2:$K$23/($B$2:$K$23>0),M129)) -> 755
M130: 126 | N130: 744 | Q130: =IF(ROWS(N$5:N130)>$N$2,"",_xlfn.AGGREGATE(14,6,$B$2:$K$23/($B$2:$K$23>0),M130)) -> 744
M131: 127 | N131: 742 | Q131: =IF(ROWS(N$5:N131)>$N$2,"",_xlfn.AGGREGATE(14,6,$B$2:$K$23/($B$2:$K$23>0),M131)) -> 742
M132: 128 | N132: 728 | Q132: =IF(ROWS(N$5:N132)>$N$2,"",_xlfn.AGGREGATE(14,6,$B$2:$K$23/($B$2:$K$23>0),M132)) -> 728
M133: 129 | N133: 719 | Q133: =IF(ROWS(N$5:N133)>$N$2,"",_xlfn.AGGREGATE(14,6,$B$2:$K$23/($B$2:$K$23>0),M133)) -> 719
M134: 130 | N134: =IF(M134>$N$2,"",LARGE($B$2:$K$23,M134)) -> 685 | Q134: =IF(ROWS(N$5:N134)>$N$2,"",_xlfn.AGGREGATE(14,6,$B$2:$K$23/($B$2:$K$23>0),M134)) -> 685
M135: 131 | N135: 681 | Q135: =IF(ROWS(N$5:N135)>$N$2,"",_xlfn.AGGREGATE(14,6,$B$2:$K$23/($B$2:$K$23>0),M135)) -> 681
M136: 132 | N136: 658 | Q136: =IF(ROWS(N$5:N136)>$N$2,"",_xlfn.AGGREGATE(14,6,$B$2:$K$23/($B$2:$K$23>0),M136)) -> 658
M137: 133 | N137: 640 | Q137: =IF(ROWS(N$5:N137)>$N$2,"",_xlfn.AGGREGATE(14,6,$B$2:$K$23/($B$2:$K$23>0),M137)) -> 640
M138: 134 | N138: 605 | Q138: =IF(ROWS(N$5:N138)>$N$2,"",_xlfn.AGGREGATE(14,6,$B$2:$K$23/($B$2:$K$23>0),M138)) -> 605
M139: 135 | N139: 555 | Q139: =IF(ROWS(N$5:N139)>$N$2,"",_xlfn.AGGREGATE(14,6,$B$2:$K$23/($B$2:$K$23>0),M139)) -> 555
M140: 136 | N140: 555 | Q140: =IF(ROWS(N$5:N140)>$N$2,"",_xlfn.AGGREGATE(14,6,$B$2:$K$23/($B$2:$K$23>0),M140)) -> 555
M141: 137 | N141: 520 | Q141: =IF(ROWS(N$5:N141)>$N$2,"",_xlfn.AGGREGATE(14,6,$B$2:$K$23/($B$2:$K$23>0),M141)) -> 520
M142: 138 | N142: 497 | Q142: =IF(ROWS(N$5:N142)>$N$2,"",_xlfn.AGGREGATE(14,6,$B$2:$K$23/($B$2:$K$23>0),M142)) -> 497
M143: 139 | N143: 467 | Q143: =IF(ROWS(N$5:N143)>$N$2,"",_xlfn.AGGREGATE(14,6,$B$2:$K$23/($B$2:$K$23>0),M143)) -> 467
M144: 140 | N144: 461 | Q144: =IF(ROWS(N$5:N144)>$N$2,"",_xlfn.AGGREGATE(14,6,$B$2:$K$23/($B$2:$K$23>0),M144)) -> 461
M145: 141 | N145: 448 | Q145: =IF(ROWS(N$5:N145)>$N$2,"",_xlfn.AGGREGATE(14,6,$B$2:$K$23/($B$2:$K$23>0),M145)) -> 448
M146: 142 | N146: 403 | Q146: =IF(ROWS(N$5:N146)>$N$2,"",_xlfn.AGGREGATE(14,6,$B$2:$K$23/($B$2:$K$23>0),M146)) -> 403
M147: 143 | N147: 383 | Q147: =IF(ROWS(N$5:N147)>$N$2,"",_xlfn.AGGREGATE(14,6,$B$2:$K$23/($B$2:$K$23>0),M147)) -> 383
M148: 144 | N148: 374 | Q148: =IF(ROWS(N$5:N148)>$N$2,"",_xlfn.AGGREGATE(14,6,$B$2:$K$23/($B$2:$K$23>0),M148)) -> 374
M149: 145 | N149: 372 | Q149: =IF(ROWS(N$5:N149)>$N$2,"",_xlfn.AGGREGATE(14,6,$B$2:$K$23/($B$2:$K$23>0),M149)) -> 372
M150: 146 | N150: 361 | Q150: =IF(ROWS(N$5:N150)>$N$2,"",_xlfn.AGGREGATE(14,6,$B$2:$K$23/($B$2:$K$23>0),M150)) -> 361
M151: 147 | N151: 359 | Q151: =IF(ROWS(N$5:N151)>$N$2,"",_xlfn.AGGREGATE(14,6,$B$2:$K$23/($B$2:$K$23>0),M151)) -> 359
M152: 148 | N152: 350 | Q152: =IF(ROWS(N$5:N152)>$N$2,"",_xlfn.AGGREGATE(14,6,$B$2:$K$23/($B$2:$K$23>0),M152)) -> 350
M153: 149 | N153: 346 | Q153: =IF(ROWS(N$5:N153)>$N$2,"",_xlfn.AGGREGATE(14,6,$B$2:$K$23/($B$2:$K$23>0),M153)) -> 346
M154: 150 | N154: 342 | Q154: =IF(ROWS(N$5:N154)>$N$2,"",_xlfn.AGGREGATE(14,6,$B$2:$K$23/($B$2:$K$23>0),M154)) -> 342
M155: 151 | N155: 342 | Q155: =IF(ROWS(N$5:N155)>$N$2,"",_xlfn.AGGREGATE(14,6,$B$2:$K$23/($B$2:$K$23>0),M155)) -> 342
M156: 152 | N156: 334 | Q156: =IF(ROWS(N$5:N156)>$N$2,"",_xlfn.AGGREGATE(14,6,$B$2:$K$23/($B$2:$K$23>0),M156)) -> 334
M157: 153 | N157: 327 | Q157: =IF(ROWS(N$5:N157)>$N$2,"",_xlfn.AGGREGATE(14,6,$B$2:$K$23/($B$2:$K$23>0),M157)) -> 327
M158: 154 | N158: 323 | Q158: =IF(ROWS(N$5:N158)>$N$2,"",_xlfn.AGGREGATE(14,6,$B$2:$K$23/($B$2:$K$23>0),M158)) -> 323
M159: 155 | N159: 322 | Q159: =IF(ROWS(N$5:N159)>$N$2,"",_xlfn.AGGREGATE(14,6,$B$2:$K$23/($B$2:$K$23>0),M159)) -> 322
M160: 156 | N160: 322 | Q160: =IF(ROWS(N$5:N160)>$N$2,"",_xlfn.AGGREGATE(14,6,$B$2:$K$23/($B$2:$K$23>0),M160)) -> 322
M161: 157 | N161: 269 | Q161: =IF(ROWS(N$5:N161)>$N$2,"",_xlfn.AGGREGATE(14,6,$B$2:$K$23/($B$2:$K$23>0),M161)) -> 269
M162: 158 | N162: 267 | Q162: =IF(ROWS(N$5:N162)>$N$2,"",_xlfn.AGGREGATE(14,6,$B$2:$K$23/($B$2:$K$23>0),M162)) -> 267
M163: 159 | N163: 266 | Q163: =IF(ROWS(N$5:N163)>$N$2,"",_xlfn.AGGREGATE(14,6,$B$2:$K$23/($B$2:$K$23>0),M163)) -> 266
M164: 160 | N164: 243 | Q164: =IF(ROWS(N$5:N164)>$N$2,"",_xlfn.AGGREGATE(14,6,$B$2:$K$23/($B$2:$K$23>0),M164)) -> 243
M165: 161 | N165: 236 | Q165: =IF(ROWS(N$5:N165)>$N$2,"",_xlfn.AGGREGATE(14,6,$B$2:$K$23/($B$2:$K$23>0),M165)) -> 236
M166: 162 | N166: 196 | Q166: =IF(ROWS(N$5:N166)>$N$2,"",_xlfn.AGGREGATE(14,6,$B$2:$K$23/($B$2:$K$23>0),M166)) -> 196
M167: 163 | N167: 195 | Q167: =IF(ROWS(N$5:N167)>$N$2,"",_xlfn.AGGREGATE(14,6,$B$2:$K$23/($B$2:$K$23>0),M167)) -> 195
M168: 164 | N168: 187 | Q168: =IF(ROWS(N$5:N168)>$N$2,"",_xlfn.AGGREGATE(14,6,$B$2:$K$23/($B$2:$K$23>0),M168)) -> 187
M169: 165 | N169: 155 | Q169: =IF(ROWS(N$5:N169)>$N$2,"",_xlfn.AGGREGATE(14,6,$B$2:$K$23/($B$2:$K$23>0),M169)) -> 155
M170: 166 | N170: 128 | Q170: =IF(ROWS(N$5:N170)>$N$2,"",_xlfn.AGGREGATE(14,6,$B$2:$K$23/($B$2:$K$23>0),M170)) -> 128
M171: 167 | N171: 124 | Q171: =IF(ROWS(N$5:N171)>$N$2,"",_xlfn.AGGREGATE(14,6,$B$2:$K$23/($B$2:$K$23>0),M171)) -> 124
M172: 168 | N172: 122 | Q172: =IF(ROWS(N$5:N172)>$N$2,"",_xlfn.AGGREGATE(14,6,$B$2:$K$23/($B$2:$K$23>0),M172)) -> 122
M173: 169 | N173: 98 | Q173: =IF(ROWS(N$5:N173)>$N$2,"",_xlfn.AGGREGATE(14,6,$B$2:$K$23/($B$2:$K$23>0),M173)) -> 98
M174: 170 | N174: 92 | Q174: =IF(ROWS(N$5:N174)>$N$2,"",_xlfn.AGGREGATE(14,6,$B$2:$K$23/($B$2:$K$23>0),M174)) -> 92
M175: 171 | N175: 84 | Q175: =IF(ROWS(N$5:N175)>$N$2,"",_xlfn.AGGREGATE(14,6,$B$2:$K$23/($B$2:$K$23>0),M175)) -> 84
M176: 172 | N176: 80 | Q176: =IF(ROWS(N$5:N176)>$N$2,"",_xlfn.AGGREGATE(14,6,$B$2:$K$23/($B$2:$K$23>0),M176)) -> 80
M177: 173 | N177: 69 | Q177: =IF(ROWS(N$5:N177)>$N$2,"",_xlfn.AGGREGATE(14,6,$B$2:$K$23/($B$2:$K$23>0),M177)) -> 69
M178: 174 | N178: 59 | Q178: =IF(ROWS(N$5:N178)>$N$2,"",_xlfn.AGGREGATE(14,6,$B$2:$K$23/($B$2:$K$23>0),M178)) -> 59
M179: 175 | N179: 55 | Q179: =IF(ROWS(N$5:N179)>$N$2,"",_xlfn.AGGREGATE(14,6,$B$2:$K$23/($B$2:$K$23>0),M179)) -> 55
M180: 176 | N180: 52 | Q180: =IF(ROWS(N$5:N180)>$N$2,"",_xlfn.AGGREGATE(14,6,$B$2:$K$23/($B$2:$K$23>0),M180)) -> 52
M181: 177 | N181: 39 | Q181: =IF(ROWS(N$5:N181)>$N$2,"",_xlfn.AGGREGATE(14,6,$B$2:$K$23/($B$2:$K$23>0),M181)) -> 39
M182: 178 | N182: 38 | Q182: =IF(ROWS(N$5:N182)>$N$2,"",_xlfn.AGGREGATE(14,6,$B$2:$K$23/($B$2:$K$23>0),M182)) -> 38
M183: 179 | N183: 38 | Q183: =IF(ROWS(N$5:N183)>$N$2,"",_xlfn.AGGREGATE(14,6,$B$2:$K$23/($B$2:$K$23>0),M183)) -> 38
M184: 180 | N184: 33 | Q184: =IF(ROWS(N$5:N184)>$N$2,"",_xlfn.AGGREGATE(14,6,$B$2:$K$23/($B$2:$K$23>0),M184)) -> 33
M185: 181 | N185: 31 | Q185: =IF(ROWS(N$5:N185)>$N$2,"",_xlfn.AGGREGATE(14,6,$B$2:$K$23/($B$2:$K$23>0),M185)) -> 31
M186: 182 | N186: 27 | Q186: =IF(ROWS(N$5:N186)>$N$2,"",_xlfn.AGGREGATE(14,6,$B$2:$K$23/($B$2:$K$23>0),M186)) -> 27
M187: 183 | N187: 13 | Q187: =IF(ROWS(N$5:N187)>$N$2,"",_xlfn.AGGREGATE(14,6,$B$2:$K$23/($B$2:$K$23>0),M187)) -> 13
M188: 184 | N188: 2 | Q188: =IF(ROWS(N$5:N188)>$N$2,"",_xlfn.AGGREGATE(14,6,$B$2:$K$23/($B$2:$K$23>0),M188)) -> 2
M189: 185 | Q189: =IF(ROWS(N$5:N189)>$N$2,"",_xlfn.AGGREGATE(14,6,$B$2:$K$23/($B$2:$K$23>0),M189)) -> 
M190: 186 | Q190: =IF(ROWS(N$5:N190)>$N$2,"",_xlfn.AGGREGATE(14,6,$B$2:$K$23/($B$2:$K$23>0),M190)) -> 
M191: 187 | Q191: =IF(ROWS(N$5:N191)>$N$2,"",_xlfn.AGGREGATE(14,6,$B$2:$K$23/($B$2:$K$23>0),M191)) -> 
M192: 188 | Q192: =IF(ROWS(N$5:N192)>$N$2,"",_xlfn.AGGREGATE(14,6,$B$2:$K$23/($B$2:$K$23>0),M192)) -> 
M193: 189 | Q193: =IF(ROWS(N$5:N193)>$N$2,"",_xlfn.AGGREGATE(14,6,$B$2:$K$23/($B$2:$K$23>0),M193)) -> 
M194: 190 | Q194: =IF(ROWS(N$5:N194)>$N$2,"",_xlfn.AGGREGATE(14,6,$B$2:$K$23/($B$2:$K$23>0),M194)) -> 
M195: 191 | Q195: =IF(ROWS(N$5:N195)>$N$2,"",_xlfn.AGGREGATE(14,6,$B$2:$K$23/($B$2:$K$23>0),M195)) -> 
M196: 192 | Q196: =IF(ROWS(N$5:N196)>$N$2,"",_xlfn.AGGREGATE(14,6,$B$2:$K$23/($B$2:$K$23>0),M196)) -> 
M197: 193 | Q197: =IF(ROWS(N$5:N197)>$N$2,"",_xlfn.AGGREGATE(14,6,$B$2:$K$23/($B$2:$K$23>0),M197)) -> 
M198: 194 | N198: =IF(M198>$N$2,"",LARGE($B$2:$K$23,M198)) ->  | Q198: =IF(ROWS(N$5:N198)>$N$2,"",_xlfn.AGGREGATE(14,6,$B$2:$K$23/($B$2:$K$23>0),M198)) -> 
M199: 195 | Q199: =IF(ROWS(N$5:N199)>$N$2,"",_xlfn.AGGREGATE(14,6,$B$2:$K$23/($B$2:$K$23>0),M199)) -> 
M200: 196 | Q200: =IF(ROWS(N$5:N200)>$N$2,"",_xlfn.AGGREGATE(14,6,$B$2:$K$23/($B$2:$K$23>0),M200)) -> 
... 54 more rows
